Workbook

Sheet Examples (hidden)
B1: Black | C1: CIE red | D1: CIE grey 40% | E1: CIE grey 70% | F1: CIE grey | G1: CIE grey 25% | H1: CIE red 50% | I1: CIE red 30% | L1: Black solid | M1: CIE red solid | N1: CIE grey 70% | O1: Black dashes | P1: CIE red dashes | Q1: CIE grey 70% dashes | S1: X value | T1: 1st Y value | U1: 2nd Y value | X1: Black | Y1: CIE red | Z1: CIE red 70% | AA1: CIE grey 40%
A2: 2003-04 | B2: 36.19 | C2: 36.88 | D2: 21.56 | E2: 5.36 | F2: 3.01 | G2: 10 | H2: 3.01 | I2: 10 | K2: 2003-04 | L2: 33.19 | M2: 36.88 | N2: 21.56 | O2: 5.36 | P2: 3.01 | Q2: 10 | S2: 1.8 | T2: 10 | U2: 17 | W2: 2003-04 | X2: 33.19 | Y2: 36.88 | Z2: 21.56 | AA2: 5.36
A3: 2004-05 | B3: 39.39 | C3: 32.02 | D3: 21.6 | E3: 7.01 | F3: 3.36 | G3: 12 | H3: 3.36 | I3: 12 | K3: 2004-05 | L3: 39.39 | M3: 32.02 | N3: 21.6 | O3: 7.01 | P3: 3.36 | Q3: 12 | S3: 2.3 | T3: 12 | U3: 9 | W3: 2004-05 | X3: 39.39 | Y3: 32.02 | Z3: 21.6 | AA3: 7.01
A4: 2005-06 | B4: 42.78 | C4: 29.91 | D4: 18.35 | E4: 6.33 | F4: 2.63 | G4: 14 | H4: 2.63 | I4: 14 | K4: 2005-06 | L4: 42.78 | M4: 29.91 | N4: 18.35 | O4: 6.33 | P4: 2.63 | Q4: 14 | S4: 3.7 | T4: 16 | U4: 14 | W4: 2005-06 | X4: 42.78 | Y4: 29.91 | Z4: 18.35 | AA4: 6.33
A5: 2006-07 | B5: 42.13 | C5: 26.53 | D5: 21.6 | E5: 7.01 | F5: 2.72 | G5: 16 | H5: 2.72 | I5: 16 | K5: 2006-07 | L5: 42.13 | M5: 26.53 | N5: 21.6 | O5: 7.01 | P5: 2.72 | Q5: 16 | S5: 4.1 | T5: 8 | U5: 23 | W5: 2006-07 | X5: 42.13 | Y5: 26.53 | Z5: 21.6 | AA5: 7.01
A6: 2007-08 | B6: 41.69 | C6: 24.76 | D6: 23.98 | E6: 7 | F6: 2.57 | G6: 18 | H6: 2.57 | I6: 18 | K6: 2007-08 | L6: 41.69 | M6: 24.76 | N6: 23.98 | O6: 7 | P6: 2.57 | Q6: 18 | S6: 5.5 | T6: 14 | U6: 27 | W6: 2007-08 | X6: 41.69 | Y6: 24.76 | Z6: 23.98 | AA6: 7
A7: 2008-09 | B7: 39.39 | C7: 32.02 | D7: 21.6 | E7: 7.01 | F7: 3.36 | G7: 12 | H7: 3.36 | I7: 12 | K7: 2008-09 | L7: 39.39 | M7: 32.02 | N7: 21.6 | O7: 7.01 | P7: 3.36 | Q7: 12 | W7: 2008-09 | X7: 39.39 | Y7: 32.02 | Z7: 21.6 | AA7: 7.01
A8: 2009-10 | B8: 42.13 | C8: 26.53 | D8: 21.6 | E8: 7.01 | F8: 2.72 | G8: 16 | H8: 2.72 | I8: 16 | K8: 2009-10 | L8: 42.13 | M8: 26.53 | N8: 21.6 | O8: 7.01 | P8: 2.72 | Q8: 16 | W8: 2009-10 | X8: 42.13 | Y8: 26.53 | Z8: 21.6 | AA8: 7.01
A9: 2010-11 | B9: 45 | C9: 22 | D9: 26 | E9: 8 | F9: 2 | G9: 20 | H9: 2 | I9: 20 | K9: 2010-11 | L9: 45 | M9: 22 | N9: 26 | O9: 8 | P9: 2 | Q9: 20 | W9: 2010-11 | X9: 45 | Y9: 22 | Z9: 26 | AA9: 8
A11: – en rule for when needed

Sheet Description
B2: Sydney taxi model - fares and new licences from July 2015
B4: Contents | G4: Installing solver and enabling macros
B6: Worksheet | C6: Purpose | G6: For Microsoft 2010:
B7: Sim_template_ 201415 | C7: This worksheet should be used to undertake a simulation of the curent year (ie. 2014/15).
G8: Install Solver
B9: Sim_template_201516_onwards | C9: This worksheet should be used to undertake a simulation of 2015/16 onwards. You can model industry outcomes with different fares and licence numbers. | G9: 1. Go to the File menu and scroll down to Options.
G10: 2. Choose Add-ins
B11: Inputs and assumptions | C11: This worksheet sets out the assumptions and input data that underpin the taxi model. | G11: 3. Choose Manage: Excel Add-ins and select Go…
G12: 4. Check if Solver Add-in is ticked. If not tick it. Select OK.
B13: Base model | C13: This worksheet characterises the Sydney taxi industry for the year 2012/13. This is the baseline for the model. Calibration is undertaken of the model against input data. | G13: Enable macros
G14: 1. Go to the File menu and scroll down to Options
G15: 2. Choose Trust Center
G16: 3. Select Trust Center Settings
G17: 4. Select Macro Settings
B18: Colour coding | G18: 5. Choose Enable all macros. Select OK.
B20: Simulation inputs | G20: For Microsoft 2007
B21: Key outputs | G21: 1. Select the Office button and choose Excel options.
B22: Input data | G22: 2. Then proceed from ‘Choose Add-ins’ step onwards above.
B23: Assumptions
B26: Steps to use the model
B29: Make sure solver is installed and macros are enabled
B30: Simulation of industry in 2014/15
B31: Step 1 | C31: Change the green cells to create a new simulation
B32: Step 2 | C32: Run the macro "RUN MODEL"
B33: Simulation of industry in 2015/16 onwards
B34: Step 3 | C34: Change the green cells to create a new simulation, Run the macro "Change distance rate to achieve fare outcome"
B35: Step 4 | C35: If desired, change fare structure by editing content of green cells.
B36: Step 5 | C36: Run the macro "RUN MODEL"
B39: Model structure
B41: The taxi model is a combination of 3 equations.
C42: 1. A demand equation, linking demand for taxi services to the (real) price of services and waiting time
C43: 2. A waiting time equation, linking the average waiting time to the number of taxi on the road and the share taken up by demand
C44: 3. A taxi entry condition, linking the decision of a taxi to drive a shift to the returns available. This is capped by the number of licences available.
B45: The model is broken into 14 shifts, for each weekday and weeknight
B48: Model equations
B50: The model allows for solution of quantity of tax services (Q), waiting time (W) and number of taxis (T) using 3 options for taxi entry.
B51: 1. Fixed taxi numbers based on the number of licences available
B52: 2. Free entry of taxis but an upward sloping cost curve for additional taxis that enter
B53: 3. Free entry of taxis and a flat cost curve.
B54: Solutions are obtained for each case and appropriate values then selected by the model.
B55: Demand equation
B58: Waiting time equation
B62: Taxi numbers equation
B64: Free entry, upward sloping supply
B67: Free entry, flat supply
B70: Fixed entry

Sheet Sim_template_201415
B2: step 1 | R2: step 2
B6: Simulation year | K6: Fare change since 2012/13
B8: Number of years after 2012/13 | E8: 2 | G8: Note: Simulation year | H8: 2014/15 | K8: Actual average fare increase | N8: nominal | O8: =SUMPRODUCT(D161:Q165,Sim_template_201415!D191:Q195)/C155-1 -> 0.03889669559
B10: Number of licences | K10: Fares 2014/15 | O10: GST inclusive
K11: Hiring charge | N11: $/trip | O11: 3.6 | R11: Checks on model | S11: =IF(SUM(ABS(J121:W123))<0.1,"MODEL SIMULATION CORRECT","ERROR IN MODEL SIMULATION") -> MODEL SIMULATION CORRECT | U11: =IF(ROW(B118)=118,"","MACRO ERROR - DO NOT RUN MACRO") -> 
F12: Total | H12: 2012/13 to 2014/15
B13: Change in unrestricted licences | E13: No. | F13: =H13 -> 0 | H13: 0 | K13: Standard distance rate | N13: $/km | O13: 2.19 | R13: Summary of model outputs
B14: Total unrestricted liveences | E14: No. | F14: ='Inputs and assumptions'!C39+Sim_template_201415!F13 -> 5361 | V14: See outputs for each shift
B15: Change in peak availability licences | E15: No. | F15: =H15 -> 345 | H15: 345 | K15: Waiting time | N15: $/hr | O15: 56.68
B16: Total peak availability licences | E16: No. | F16: ='Inputs and assumptions'!C37+Sim_template_201415!F15 -> 631 | N16: $/min | O16: =O15/60 -> 0.9446666667 | U16: Difference | W16: 2012/13 | X16: 2014/15
B17: Note: Do not include replacement licences here | L17: Charged when the taxi speed falls below (km/h) | O17: =O15/O13 -> 25.88127854 | W17: 2012/13$ | X17: 2012/13$
R18: Plate lease costs | U18: =X18/W18-1 -> -0.117492807 | V18: $2012/13 (ex GST) | W18: ='Base model'!B161 -> 28323.94682 | X18: =J66 -> 24996.0868
B19: Variables (annual % change) | R19: Total trips | U19: =X19/W19-1 -> 0.01348884176 | V19: 000,000 | W19: =SUM('Base model'!J130:W130)*365/7/1000000/7 -> 43.05421542 | X19: =SUM(J57:W57)*365/7/1000000/7 -> 43.63496692
F20: Annual | H20: Cumulative | K20: Booking fee | N20: ($/booking) | O20: 2.5 | R20: Average occupancy | U20: =X20/W20-1 -> -0.009534514188 | V20: % | W20: ='Base model'!B156 -> 0.2984975214 | X20: =SUMPRODUCT(J53:W53,J61:W61)/SUM(J61:W61) -> 0.2956514926
B21: Change in demand (excluding price impacts) | E21: % | F21: 0 | H21: =(1+F21)^$E$8-1 -> 0 | R21: Average waiting time | U21: =X21/W21-1 -> -0.02241460103 | V21: mins | W21: =AVERAGE('Base model'!J131:W131) -> 8.270708548 | X21: =AVERAGE(J55:W55) -> 8.085323915
K22: Surcharges | R22: Average waiting time Fri and Sat nights | U22: =X22/W22-1 -> -0.09962910464 | V22: mins | W22: =AVERAGE('Base model'!U131:V131) -> 8.755227604 | X22: =AVERAGE(U55:V55) -> 7.882952116
B23: CPI inflator 2012/13 to 2014/15 | E23: % | H23: ='Inputs and assumptions'!E77-1 -> 0.04893233221 | M23: Peak hiring surcharge | O23: Night distance rate
R24: Average annual revenue per taxi | U24: =X24/W24-1 -> -0.02655577067 | V24: $2012/13 (ex GST) | W24: ='Base model'!B159 -> 159395.0213 | X24: =X25+X18 -> 155162.1637
B25: Real cost change applied from 2012/13 | E25: % | F25: 0 | H25: =(1+F25)^$E$8-1 -> 0 | R25: Average cost per taxi per year (excluding plate lease costs) | U25: =X25/W25-1 -> -0.006904632613 | V25: $2012/13 | W25: ='Base model'!B160 -> 131071.0745 | X25: =SUMPRODUCT(J60:W60,J61:W61)/100*365/7 -> 130166.0769
L26: $ per trip | M26: 2.5 | N26: % per km | O26: 0.2 | R26: Occupied kilometres per taxi per year | U26: =X26/W26-1 -> -0.01830461166 | V26: km | W26: ='Base model'!B158 -> 54625.39541 | X26: =SUMPRODUCT(J68:W68,J61:W61)/100*365/7 -> 53625.49876
R27: Peak plate costs | U27: =X27/W27-1 -> -0.1601997764 | V27: $2012/13 (ex GST) | W27: ='Base model'!B162 -> 21398.96244 | X27: =(SUM($Q$54:$W$54)+'Inputs and assumptions'!$C$63*SUM($Q$59:$W$59))*365/7*'Inputs and assumptions'!$C$64-('Inputs and assumptions'!$C$30*(1-'Inputs and assumptions'!$C$64*365/'Inputs and assumptions'!$C$46)) -> 17970.85344
N28: =ROUND((O13*(1+O26)),2) -> 2.63 | O28: per kilometre | R28: Kilometres per year | U28: =X28/W28-1 -> -0.01830461166 | V28: km | W28: ='Base model'!B157 -> 108952.7 | X28: ='Inputs and assumptions'!C53*X26 -> 106958.3631
K30: Hours of operation | M30: 10 pm until 6 am | O30: 10 pm until 6 am
K32: Shifts that it applies | R32: Fare schedule
K33: (only applies during the hours specified above) | U33: Dfiference | W33: 2012/13 | X33: 2014/15
K34: Monday | L34: 3 am - 3 pm | M34: No | O34: Yes
K35: Tuesday | L35: 3 am - 3 pm | M35: No | O35: Yes | R35: Hiring charge ($) | U35: =O11/W35-1 -> 0.02857142857 | W35: ='Inputs and assumptions'!C15 -> 3.5 | X35: =O11 -> 3.6
K36: Wednesday | L36: 3 am - 3 pm | M36: No | O36: Yes | R36: Peak hiring surcharge ($) | X36: =M26 -> 2.5
K37: Thursday | L37: 3 am - 3 pm | M37: No | O37: Yes | R37: Standard distance rate ($/km) | U37: =O13/W37-1 -> 0.02336448598 | W37: ='Inputs and assumptions'!C16 -> 2.14 | X37: =O13 -> 2.19
K38: Friday | L38: 3 am - 3 pm | M38: No | O38: Yes | R38: Night distance rate ($/km) | U38: =N28/W38-1 -> 0.0233463035 | W38: ='Inputs and assumptions'!C17 -> 2.57 | X38: =N28 -> 2.63
K39: Saturday | L39: 3 am - 3 pm | M39: Yes | O39: Yes | R39: Waiting time ($/hour when vehicle slower than 26km/hour) | U39: =O15/W39-1 -> 0.02495479204 | W39: ='Inputs and assumptions'!C18 -> 55.3 | X39: =O15 -> 56.68
K40: Sunday | L40: 3 am - 3 pm | M40: Yes | O40: Yes | R40: Booking fee ($/booking) | U40: =O20/W40-1 -> 0.04166666667 | W40: ='Inputs and assumptions'!C19 -> 2.4 | X40: =O20 -> 2.5
K41: Monday | L41: 3 pm - 3 am | M41: No | O41: Yes
K42: Tuesday | L42: 3 pm - 3 am | M42: No | O42: Yes
K43: Wednesday | L43: 3 pm - 3 am | M43: No | O43: Yes
K44: Thursday | L44: 3 pm - 3 am | M44: No | O44: Yes | R44: go to 'Sim template 201516 onwards' tab for next step
K45: Friday | L45: 3 pm - 3 am | M45: Yes | O45: Yes
K46: Saturday | L46: 3 pm - 3 am | M46: Yes | O46: Yes
K47: Sunday | L47: 3 pm - 3 am | M47: No | O47: Yes
B50: MODEL OUTPUTS FOR EACH SHIFT
J51: Monday | K51: Tuesday | L51: Wednesday | M51: Thursday | N51: Friday | O51: Saturday | P51: Sunday | Q51: Monday | R51: Tuesday | S51: Wednesday | T51: Thursday | U51: Friday | V51: Saturday | W51: Sunday
J52: Day | K52: Day | L52: Day | M52: Day | N52: Day | O52: Day | P52: Day | Q52: Night | R52: Night | S52: Night | T52: Night | U52: Night | V52: Night | W52: Night
B53: Occupancy rate of taxis (time) | J53: =J57*J110/J56 -> 0.2754999776 | K53: 0.2720124526 | L53: 0.2774219806 | M53: 0.2853445773 | N53: 0.2950334871 | O53: 0.2519117427 | P53: 0.2478954124 | Q53: 0.2427083082 | R53: 0.2656286859 | S53: 0.293038525 | T53: 0.3272206558 | U53: 0.4044839639 | V53: 0.3861616847 | W53: 0.2619688921
B54: Average surplus accruing to shift (adjusted for distribution) | J54: =J64*J63+_xlfn.NORM.DIST(-1*(J62-100)/'Inputs and assumptions'!$C$59,0,1,FALSE)*'Inputs and assumptions'!$C$59/$H$63 -> 34.82947084 | K54: =K64*K63+_xlfn.NORM.DIST(-1*(K62-100)/'Inputs and assumptions'!$C$59,0,1,FALSE)*'Inputs and assumptions'!$C$59/$H$63 -> 32.77762737 | L54: =L64*L63+_xlfn.NORM.DIST(-1*(L62-100)/'Inputs and assumptions'!$C$59,0,1,FALSE)*'Inputs and assumptions'!$C$59/$H$63 -> 35.37945018 | M54: =M64*M63+_xlfn.NORM.DIST(-1*(M62-100)/'Inputs and assumptions'!$C$59,0,1,FALSE)*'Inputs and assumptions'!$C$59/$H$63 -> 38.64568293 | N54: =N64*N63+_xlfn.NORM.DIST(-1*(N62-100)/'Inputs and assumptions'!$C$59,0,1,FALSE)*'Inputs and assumptions'!$C$59/$H$63 -> 45.32704043 | O54: =O64*O63+_xlfn.NORM.DIST(-1*(O62-100)/'Inputs and assumptions'!$C$59,0,1,FALSE)*'Inputs and assumptions'!$C$59/$H$63 -> 15.81205387 | P54: =P64*P63+_xlfn.NORM.DIST(-1*(P62-100)/'Inputs and assumptions'!$C$59,0,1,FALSE)*'Inputs and assumptions'!$C$59/$H$63 -> 13.01118726 | Q54: =Q64*Q63+_xlfn.NORM.DIST(-1*(Q62-100)/'Inputs and assumptions'!$C$59,0,1,FALSE)*'Inputs and assumptions'!$C$59/$H$63 -> 15.87333605 | R54: =R64*R63+_xlfn.NORM.DIST(-1*(R62-100)/'Inputs and assumptions'!$C$59,0,1,FALSE)*'Inputs and assumptions'!$C$59/$H$63 -> 24.16325612 | S54: =S64*S63+_xlfn.NORM.DIST(-1*(S62-100)/'Inputs and assumptions'!$C$59,0,1,FALSE)*'Inputs and assumptions'!$C$59/$H$63 -> 36.930139 | T54: =T64*T63+_xlfn.NORM.DIST(-1*(T62-100)/'Inputs and assumptions'!$C$59,0,1,FALSE)*'Inputs and assumptions'!$C$59/$H$63 -> 55.92722246 | U54: =U64*U63+_xlfn.NORM.DIST(-1*(U62-100)/'Inputs and assumptions'!$C$59,0,1,FALSE)*'Inputs and assumptions'!$C$59/$H$63 -> 108.9919418 | V54: =V64*V63+_xlfn.NORM.DIST(-1*(V62-100)/'Inputs and assumptions'!$C$59,0,1,FALSE)*'Inputs and assumptions'!$C$59/$H$63 -> 112.5566041 | W54: =W64*W63+_xlfn.NORM.DIST(-1*(W62-100)/'Inputs and assumptions'!$C$59,0,1,FALSE)*'Inputs and assumptions'!$C$59/$H$63 -> 9.805628132
B55: W | D55: Equilibrium waiting time | H55: Minutes, average | J55: =IF(J56=J$126,J125,IF('Inputs and assumptions'!$C$61="Flat",J128,J119)) -> 7.693781295 | K55: =IF(K56=K$126,K125,IF('Inputs and assumptions'!$C$61="Flat",K128,K119)) -> 7.599232784 | L55: =IF(L56=L$126,L125,IF('Inputs and assumptions'!$C$61="Flat",L128,L119)) -> 7.592401432 | M55: =IF(M56=M$126,M125,IF('Inputs and assumptions'!$C$61="Flat",M128,M119)) -> 7.420469535 | N55: =IF(N56=N$126,N125,IF('Inputs and assumptions'!$C$61="Flat",N128,N119)) -> 7.769883643 | O55: =IF(O56=O$126,O125,IF('Inputs and assumptions'!$C$61="Flat",O128,O119)) -> 9.151098817 | P55: =IF(P56=P$126,P125,IF('Inputs and assumptions'!$C$61="Flat",P128,P119)) -> 10.00666662 | Q55: =IF(Q56=Q$126,Q125,IF('Inputs and assumptions'!$C$61="Flat",Q128,Q119)) -> 8.068094239 | R55: =IF(R56=R$126,R125,IF('Inputs and assumptions'!$C$61="Flat",R128,R119)) -> 7.341389388 | S55: =IF(S56=S$126,S125,IF('Inputs and assumptions'!$C$61="Flat",S128,S119)) -> 7.351123007 | T55: =IF(T56=T$126,T125,IF('Inputs and assumptions'!$C$61="Flat",T128,T119)) -> 7.351469721 | U55: =IF(U56=U$126,U125,IF('Inputs and assumptions'!$C$61="Flat",U128,U119)) -> 7.795992917 | V55: =IF(V56=V$126,V125,IF('Inputs and assumptions'!$C$61="Flat",V128,V119)) -> 7.969911316 | W55: =IF(W56=W$126,W125,IF('Inputs and assumptions'!$C$61="Flat",W128,W119)) -> 10.0830201
B56: T | D56: Equilibrium number of taxis on the road | H56: Taxis on the road | J56: =IF('Inputs and assumptions'!$C$61="Flat",MIN(J129,J126),MIN(J120,J126)) -> 4441.692285 | K56: =IF('Inputs and assumptions'!$C$61="Flat",MIN(K129,K126),MIN(K120,K126)) -> 4475.411867 | L56: =IF('Inputs and assumptions'!$C$61="Flat",MIN(L129,L126),MIN(L120,L126)) -> 4512.973665 | M56: =IF('Inputs and assumptions'!$C$61="Flat",MIN(M129,M126),MIN(M120,M126)) -> 4668.728596 | N56: =IF('Inputs and assumptions'!$C$61="Flat",MIN(N129,N126),MIN(N120,N126)) -> 4520.054851 | O56: =IF('Inputs and assumptions'!$C$61="Flat",MIN(O129,O126),MIN(O120,O126)) -> 3616.601467 | P56: =IF('Inputs and assumptions'!$C$61="Flat",MIN(P129,P126),MIN(P120,P126)) -> 3289.721097 | Q56: =IF('Inputs and assumptions'!$C$61="Flat",MIN(Q129,Q126),MIN(Q120,Q126)) -> 4052.215838 | R56: =IF('Inputs and assumptions'!$C$61="Flat",MIN(R129,R126),MIN(R120,R126)) -> 4592.326358 | S56: =IF('Inputs and assumptions'!$C$61="Flat",MIN(S129,S126),MIN(S120,S126)) -> 4764.06052 | T56: =IF('Inputs and assumptions'!$C$61="Flat",MIN(T129,T126),MIN(T120,T126)) -> 5005.873676 | U56: =IF('Inputs and assumptions'!$C$61="Flat",MIN(U129,U126),MIN(U120,U126)) -> 5332.88 | V56: =IF('Inputs and assumptions'!$C$61="Flat",MIN(V129,V126),MIN(V120,V126)) -> 5060.800597 | W56: =IF('Inputs and assumptions'!$C$61="Flat",MIN(W129,W126),MIN(W120,W126)) -> 3327.066211
B57: Q | D57: Equilibrium demand | H57: Occupied kilometres | J57: =IF(J56=J$126,J124,IF('Inputs and assumptions'!$C$61="Flat",J127,J118)) -> 391579.5601 | K57: =IF(K56=K$126,K124,IF('Inputs and assumptions'!$C$61="Flat",K127,K118)) -> 389557.6827 | L57: =IF(L56=L$126,L124,IF('Inputs and assumptions'!$C$61="Flat",L127,L118)) -> 400639.3896 | M57: =IF(M56=M$126,M124,IF('Inputs and assumptions'!$C$61="Flat",M127,M118)) -> 426302.8442 | N57: =IF(N56=N$126,N124,IF('Inputs and assumptions'!$C$61="Flat",N127,N118)) -> 426741.6143 | O57: =IF(O56=O$126,O124,IF('Inputs and assumptions'!$C$61="Flat",O127,O118)) -> 291540.601 | P57: =IF(P56=P$126,P124,IF('Inputs and assumptions'!$C$61="Flat",P127,P118)) -> 260962.1657 | Q57: =IF(Q56=Q$126,Q124,IF('Inputs and assumptions'!$C$61="Flat",Q127,Q118)) -> 314722.0642 | R57: =IF(R56=R$126,R124,IF('Inputs and assumptions'!$C$61="Flat",R127,R118)) -> 390353.157 | S57: =IF(S56=S$126,S124,IF('Inputs and assumptions'!$C$61="Flat",S127,S118)) -> 446737.0457 | T57: =IF(T56=T$126,T124,IF('Inputs and assumptions'!$C$61="Flat",T127,T118)) -> 524168.0855 | U57: =IF(U56=U$126,U124,IF('Inputs and assumptions'!$C$61="Flat",U127,U118)) -> 690260.6212 | V57: =IF(V56=V$126,V124,IF('Inputs and assumptions'!$C$61="Flat",V127,V118)) -> 625371.9311 | W57: =IF(W56=W$126,W124,IF('Inputs and assumptions'!$C$61="Flat",W127,W118)) -> 278908.1117
B59: Revenue per taxi (excluding GST) | J59: =J57*J105/J56 -> 241.6378772 | K59: =K57*K105/K56 -> 238.5790089 | L59: 243.3236441 | M59: 250.272463 | N59: 258.7704948 | O59: 223.4440767 | P59: 219.8816179 | Q59: 216.6096463 | R59: 237.0653733 | S59: 261.5278056 | T59: 292.0342984 | U59: 383.2361148 | V59: 381.4452635 | W59: 233.7991207
B60: Cost per taxi | J60: =J107+J108*J56+J106*J57/J56 -> 213.7743503 | K60: =K107+K108*K56+K106*K57/K56 -> 213.5389929 | L60: 214.7128382 | M60: 217.3386987 | N60: 217.497602 | O60: 223.4440764 | P60: 219.8816174 | Q60: 216.6096461 | R60: 225.0119113 | S60: 230.7924251 | T60: 238.2499903 | U60: 273.8704714 | V60: 268.590907 | W60: 233.7991203
B61: Share of taxis on the road | H61: % | J61: =J56/('Base model'!J6+$F$13)*100 -> 82.85193593 | K61: =K56/('Base model'!K6+$F$13)*100 -> 83.48091526 | L61: =L56/('Base model'!L6+$F$13)*100 -> 84.18156435 | M61: =M56/('Base model'!M6+$F$13)*100 -> 87.08689789 | N61: =N56/('Base model'!N6+$F$13)*100 -> 84.3136514 | O61: =O56/('Base model'!O6+$F$13)*100 -> 67.46132189 | P61: =P56/('Base model'!P6+$F$13)*100 -> 61.3639451 | Q61: =Q56/('Base model'!Q6+$F$13+$F$15)*100 -> 67.62710009 | R61: =R56/('Base model'!R6+$F$13+$F$15)*100 -> 76.64096058 | S61: =S56/('Base model'!S6+$F$13+$F$15)*100 -> 79.50701803 | T61: =T56/('Base model'!T6+$F$13+$F$15)*100 -> 83.54261809 | U61: =U56/('Base model'!U6+$F$13+$F$15)*100 -> 89 | V61: =V56/('Base model'!V6+$F$13+$F$15)*100 -> 84.45928901 | W61: =W56/('Base model'!W6+$F$13+$F$15)*100 -> 55.52513703
B62: Free market taxis on the road as a proportion of maximum | H62: % | J62: =J120/J126*100 -> 115.1613787 | K62: 113.5911927 | L62: 115.4193434 | M62: 117.3598154 | N62: 122.0643261 | O62: 88.76489722 | P62: 80.74203302 | Q62: 88.98302644 | R62: 106.223158 | S62: 115.3753544 | T62: 125.8508566 | U62: 146.1518118 | V62: 148.5134286 | W62: 73.05939083
B63: Percentage of shifts where surplus accrues | H63: ='Base model'!C145 -> 0.5714894073 | J63: =(1-_xlfn.NORM.DIST(-1*(J62-100)/'Inputs and assumptions'!$C$59,0,1,TRUE)) -> 0.7275073044 | K63: =(1-_xlfn.NORM.DIST(-1*(K62-100)/'Inputs and assumptions'!$C$59,0,1,TRUE)) -> 0.7062989259 | L63: =(1-_xlfn.NORM.DIST(-1*(L62-100)/'Inputs and assumptions'!$C$59,0,1,TRUE)) -> 0.7309174874 | M63: =(1-_xlfn.NORM.DIST(-1*(M62-100)/'Inputs and assumptions'!$C$59,0,1,TRUE)) -> 0.7558640913 | N63: =(1-_xlfn.NORM.DIST(-1*(N62-100)/'Inputs and assumptions'!$C$59,0,1,TRUE)) -> 0.8108084644 | O63: =(1-_xlfn.NORM.DIST(-1*(O62-100)/'Inputs and assumptions'!$C$59,0,1,TRUE)) -> 0.3268811354 | P63: =(1-_xlfn.NORM.DIST(-1*(P62-100)/'Inputs and assumptions'!$C$59,0,1,TRUE)) -> 0.2209940029 | Q63: =(1-_xlfn.NORM.DIST(-1*(Q62-100)/'Inputs and assumptions'!$C$59,0,1,TRUE)) -> 0.3300289193 | R63: =(1-_xlfn.NORM.DIST(-1*(R62-100)/'Inputs and assumptions'!$C$59,0,1,TRUE)) -> 0.598106351 | S63: =(1-_xlfn.NORM.DIST(-1*(S62-100)/'Inputs and assumptions'!$C$59,0,1,TRUE)) -> 0.7303374889 | T63: =(1-_xlfn.NORM.DIST(-1*(T62-100)/'Inputs and assumptions'!$C$59,0,1,TRUE)) -> 0.8489756589 | U63: =(1-_xlfn.NORM.DIST(-1*(U62-100)/'Inputs and assumptions'!$C$59,0,1,TRUE)) -> 0.9673011686 | V63: =(1-_xlfn.NORM.DIST(-1*(V62-100)/'Inputs and assumptions'!$C$59,0,1,TRUE)) -> 0.9736159213 | W63: =(1-_xlfn.NORM.DIST(-1*(W62-100)/'Inputs and assumptions'!$C$59,0,1,TRUE)) -> 0.1410628286
B64: Surplus per taxi | J64: =J59-J60 -> 27.86352697 | K64: =K59-K60 -> 25.04001602 | L64: 28.61080588 | M64: 32.93376428 | N64: 41.2728928 | O64: 3.176919847e-07 | P64: 4.652202392e-07 | Q64: 1.629075541e-07 | R64: 12.05346202 | S64: 30.73538043 | T64: 53.78430814 | U64: 109.3656434 | V64: 112.8543565 | W64: 3.981711245e-07
B65: Surplus (basic) | H65: $/taxi | J65: =SUMPRODUCT(J61:W61,J64:W64)*365/7/100 -> 21003.80559
B66: Surplus accounting for shift variation | H66: $/taxi | J66: =SUMPRODUCT(J61:W61,J54:W54)*365/7/100 -> 24996.0868
B67: Revenue per taxi (including GST) | J67: =J59*$D$112 -> 265.801665 | K67: 262.4369098 | L67: 267.6560085 | M67: 275.2997093 | N67: 284.6475443 | O67: 245.7884844 | P67: 241.8697796 | Q67: 238.2706109 | R67: 260.7719106 | S67: 287.6805861 | T67: 321.2377283 | U67: 421.5597263 | V67: 419.5897899 | W67: 257.1790328
B68: Occupied kms per shift | J68: =J59/J105 -> 88.15999285 | K68: 87.04398483 | L68: 88.77503381 | M68: 91.31026475 | N68: 94.41071588 | O68: 80.61175767 | P68: 79.32653197 | Q68: 77.66665864 | R68: 85.00117948 | S68: 93.77232799 | T68: 104.7106099 | U68: 129.4348684 | V68: 123.5717391 | W68: 83.83004546
B70: Difference in revenue per taxi per shift (nominal) | J70: =J67-'Base model'!J149 -> -1.619558919 | K70: =K67-'Base model'!K149 -> -1.599842442 | L70: =L67-'Base model'!L149 -> -1.638725447 | M70: =M67-'Base model'!M149 -> -1.704947641 | N70: =N67-'Base model'!N149 -> -1.738362951 | O70: =O67-'Base model'!O149 -> 0.3664692786 | P70: =P67-'Base model'!P149 -> 0.3746602235 | Q70: =Q67-'Base model'!Q149 -> 0.6336761889 | R70: =R67-'Base model'!R149 -> -14.28752713 | S70: =S67-'Base model'!S149 -> -15.68128795 | T70: =T67-'Base model'!T149 -> -17.39838271 | U70: =U67-'Base model'!U149 -> -16.84241852 | V70: =V67-'Base model'!V149 -> -14.75769074 | W70: =W67-'Base model'!W149 -> 0.7420682161
B71: Difference in costs per taxi per shift (nominal) | J71: =J60-'Base model'!J140 -> 0.7180190939 | K71: =K60-'Base model'!K140 -> 0.7088068705 | L71: =L60-'Base model'!L140 -> 0.7217970958 | M71: =M60-'Base model'!M140 -> 0.7393706105 | N71: =N60-'Base model'!N140 -> 0.7683062348 | O71: =O60-'Base model'!O140 -> 0.3331535719 | P71: =P60-'Base model'!P140 -> 0.340599738 | Q71: =Q60-'Base model'!Q140 -> 0.5760690997 | R71: =R60-'Base model'!R140 -> 1.119046427 | S71: =S60-'Base model'!S140 -> 1.090339767 | T71: =T60-'Base model'!T140 -> 1.072101363 | U71: =U60-'Base model'!U140 -> -1.021776956 | V71: =V60-'Base model'!V140 -> -1.930135173 | W71: =W60-'Base model'!W140 -> 0.674607071
B73: Difference in surplus per taxi (accruing to the licence owner) | J73: =J64-'Base model'!J141 -> -2.190345384 | K73: =K64-'Base model'!K141 -> -2.16320909 | L73: =L64-'Base model'!L141 -> -2.211547503 | M73: =M64-'Base model'!M141 -> -2.289323011 | N73: =N64-'Base model'!N141 -> -2.34863619 | O73: =O64-'Base model'!O141 -> 3.176792802e-07 | P73: =P64-'Base model'!P141 -> 4.652125085e-07 | Q73: =Q64-'Base model'!Q141 -> 1.62906332e-07 | R73: =R64-'Base model'!R141 -> -14.10770745 | S73: =S64-'Base model'!S141 -> -15.34605608 | T73: =T64-'Base model'!T141 -> -16.88881292 | U73: =U64-'Base model'!U141 -> -14.28951261 | V73: =V64-'Base model'!V141 -> -11.48594731 | W73: =W64-'Base model'!W141 -> 3.981711245e-07
B75: Additional taxis on the road | W75: =W74/('Base model'!W6+$F$13+$F$15) -> 0
K76: Revenue per taxi
B98: CALIBRATION OF MODEL PARAMETERS
B99: Day | D99: Description | H99: Unit | J99: Monday | K99: Tuesday | L99: Wednesday | M99: Thursday | N99: Friday | O99: Saturday | P99: Sunday | Q99: Monday | R99: Tuesday | S99: Wednesday | T99: Thursday | U99: Friday | V99: Saturday | W99: Sunday
B100: Shift | J100: Day | K100: Day | L100: Day | M100: Day | N100: Day | O100: Day | P100: Day | Q100: Night | R100: Night | S100: Night | T100: Night | U100: Night | V100: Night | W100: Night
D102: Demand intercept with y axis | H102: Kms occupied | J102: ='Base model'!J10*(1+$H$21) -> 750754.6418 | K102: ='Base model'!K10*(1+$H$21) -> 745474.7778 | L102: ='Base model'!L10*(1+$H$21) -> 766577.1462 | M102: ='Base model'!M10*(1+$H$21) -> 812903.9058 | N102: ='Base model'!N10*(1+$H$21) -> 821005.5818 | O102: ='Base model'!O10*(1+$H$21) -> 582039.9533 | P102: ='Base model'!P10*(1+$H$21) -> 530527.6125 | Q102: ='Base model'!Q10*(1+$H$21) -> 612163.2256 | R102: ='Base model'!R10*(1+$H$21) -> 748363.2967 | S102: ='Base model'!S10*(1+$H$21) -> 856624.1995 | T102: ='Base model'!T10*(1+$H$21) -> 1005106.135 | U102: ='Base model'!U10*(1+$H$21) -> 1351981.545 | V102: ='Base model'!V10*(1+$H$21) -> 1246928.967 | W102: ='Base model'!W10*(1+$H$21) -> 549010.5928
D103: Impact of price on demand kilometres | H103: Change in Q per extra dollar | J103: ='Base model'!J11*(1+$H$21) -> 109156.5769 | K103: ='Base model'!K11*(1+$H$21) -> 108388.9069 | L103: ='Base model'!L11*(1+$H$21) -> 111457.1027 | M103: ='Base model'!M11*(1+$H$21) -> 118192.8193 | N103: ='Base model'!N11*(1+$H$21) -> 119622.7902 | O103: ='Base model'!O11*(1+$H$21) -> 84804.83541 | P103: ='Base model'!P11*(1+$H$21) -> 77314.33654 | Q103: ='Base model'!Q11*(1+$H$21) -> 88385.83826 | R103: ='Base model'!R11*(1+$H$21) -> 108050.7854 | S103: ='Base model'!S11*(1+$H$21) -> 123681.7972 | T103: ='Base model'!T11*(1+$H$21) -> 145120.0343 | U103: ='Base model'!U11*(1+$H$21) -> 188111.9187 | V103: ='Base model'!V11*(1+$H$21) -> 170004.9267 | W103: ='Base model'!W11*(1+$H$21) -> 76970.22446
D104: Impact of waiting time on demand kilometres | H104: Change in Q per extra minute | J104: ='Base model'!J12*(1+$H$21) -> 7796.898352 | K104: ='Base model'!K12*(1+$H$21) -> 7742.064775 | L104: ='Base model'!L12*(1+$H$21) -> 7961.221624 | M104: ='Base model'!M12*(1+$H$21) -> 8442.344237 | N104: ='Base model'!N12*(1+$H$21) -> 8544.485015 | O104: ='Base model'!O12*(1+$H$21) -> 6057.488243 | P104: ='Base model'!P12*(1+$H$21) -> 5522.45261 | Q104: ='Base model'!Q12*(1+$H$21) -> 6313.274161 | R104: ='Base model'!R12*(1+$H$21) -> 7717.91324 | S104: ='Base model'!S12*(1+$H$21) -> 8834.414088 | T104: ='Base model'!T12*(1+$H$21) -> 10365.71673 | U104: ='Base model'!U12*(1+$H$21) -> 13436.56562 | V104: ='Base model'!V12*(1+$H$21) -> 12143.20905 | W104: ='Base model'!W12*(1+$H$21) -> 5497.873176
B105: P | D105: Price per kilometre of demand (excluding GST) | H105: $/km occupied (real 2012/13) | J105: =SUMPRODUCT(Sim_template_201415!D161:D165,Sim_template_201415!D191:D195)/Sim_template_201415!D174/'Base model'!$B$20/(1+$H$23) -> 2.740901734 | K105: =SUMPRODUCT(Sim_template_201415!E161:E165,Sim_template_201415!E191:E195)/Sim_template_201415!E174/'Base model'!$B$20/(1+$H$23) -> 2.740901734 | L105: =SUMPRODUCT(Sim_template_201415!F161:F165,Sim_template_201415!F191:F195)/Sim_template_201415!F174/'Base model'!$B$20/(1+$H$23) -> 2.740901734 | M105: =SUMPRODUCT(Sim_template_201415!G161:G165,Sim_template_201415!G191:G195)/Sim_template_201415!G174/'Base model'!$B$20/(1+$H$23) -> 2.740901734 | N105: =SUMPRODUCT(Sim_template_201415!H161:H165,Sim_template_201415!H191:H195)/Sim_template_201415!H174/'Base model'!$B$20/(1+$H$23) -> 2.740901734 | O105: =SUMPRODUCT(Sim_template_201415!I161:I165,Sim_template_201415!I191:I195)/Sim_template_201415!I174/'Base model'!$B$20/(1+$H$23) -> 2.771854667 | P105: =SUMPRODUCT(Sim_template_201415!J161:J165,Sim_template_201415!J191:J195)/Sim_template_201415!J174/'Base model'!$B$20/(1+$H$23) -> 2.771854667 | Q105: =SUMPRODUCT(Sim_template_201415!K161:K165,Sim_template_201415!K191:K195)/Sim_template_201415!K174/'Base model'!$B$20/(1+$H$23) -> 2.788965691 | R105: =SUMPRODUCT(Sim_template_201415!L161:L165,Sim_template_201415!L191:L195)/Sim_template_201415!L174/'Base model'!$B$20/(1+$H$23) -> 2.788965691 | S105: =SUMPRODUCT(Sim_template_201415!M161:M165,Sim_template_201415!M191:M195)/Sim_template_201415!M174/'Base model'!$B$20/(1+$H$23) -> 2.788965691 | T105: =SUMPRODUCT(Sim_template_201415!N161:N165,Sim_template_201415!N191:N195)/Sim_template_201415!N174/'Base model'!$B$20/(1+$H$23) -> 2.788965691 | U105: =SUMPRODUCT(Sim_template_201415!O161:O165,Sim_template_201415!O191:O195)/Sim_template_201415!O174/'Base model'!$B$20/(1+$H$23) -> 2.960841382 | V105: =SUMPRODUCT(Sim_template_201415!P161:P165,Sim_template_201415!P191:P195)/Sim_template_201415!P174/'Base model'!$B$20/(1+$H$23) -> 3.086832526 | W105: =SUMPRODUCT(Sim_template_201415!Q161:Q165,Sim_template_201415!Q191:Q195)/Sim_template_201415!Q174/'Base model'!$B$20/(1+$H$23) -> 2.788965691
B106: c | D106: Variable cost | H106: $/km occupied | J106: =('Inputs and assumptions'!C27+'Inputs and assumptions'!C25+Sim_template_201415!E203+Sim_template_201415!E205)*'Inputs and assumptions'!C53/Sim_template_201415!$E$210 -> 0.4828223323 | K106: =J106 -> 0.4828223323 | L106: 0.4828223323 | M106: 0.4828223323 | N106: 0.4828223323 | O106: 0.4828223323 | P106: 0.4828223323 | Q106: 0.4828223323 | R106: 0.4828223323 | S106: 0.4828223323 | T106: 0.4828223323 | U106: 0.4828223323 | V106: 0.4828223323 | W106: 0.4828223323
D107: Fixed component of shift costs | H107: $/taxi/shift | J107: =(('Inputs and assumptions'!$C$23*(1+Sim_template_201415!$G$201)+IF('Inputs and assumptions'!D6="Yes",'Inputs and assumptions'!$C$24*(1+Sim_template_201415!$G$202),0))*'Inputs and assumptions'!$C$43+('Inputs and assumptions'!$C$26*(1+Sim_template_201415!$G$204))/'Inputs and assumptions'!$C$46)*(1+'Inputs and assumptions'!$C$31)-IF('Inputs and assumptions'!$C$61="Flat",0,'Inputs and assumptions'!$C$60)*(1+Sim_template_201415!$G$204) -> 131.2335063 | K107: =(('Inputs and assumptions'!$C$23*(1+Sim_template_201415!$G$201)+IF('Inputs and assumptions'!E6="Yes",'Inputs and assumptions'!$C$24*(1+Sim_template_201415!$G$202),0))*'Inputs and assumptions'!$C$43+('Inputs and assumptions'!$C$26*(1+Sim_template_201415!$G$204))/'Inputs and assumptions'!$C$46)*(1+'Inputs and assumptions'!$C$31)-IF('Inputs and assumptions'!$C$61="Flat",0,'Inputs and assumptions'!$C$60)*(1+Sim_template_201415!$G$204) -> 131.2335063 | L107: =(('Inputs and assumptions'!$C$23*(1+Sim_template_201415!$G$201)+IF('Inputs and assumptions'!F6="Yes",'Inputs and assumptions'!$C$24*(1+Sim_template_201415!$G$202),0))*'Inputs and assumptions'!$C$43+('Inputs and assumptions'!$C$26*(1+Sim_template_201415!$G$204))/'Inputs and assumptions'!$C$46)*(1+'Inputs and assumptions'!$C$31)-IF('Inputs and assumptions'!$C$61="Flat",0,'Inputs and assumptions'!$C$60)*(1+Sim_template_201415!$G$204) -> 131.2335063 | M107: =(('Inputs and assumptions'!$C$23*(1+Sim_template_201415!$G$201)+IF('Inputs and assumptions'!G6="Yes",'Inputs and assumptions'!$C$24*(1+Sim_template_201415!$G$202),0))*'Inputs and assumptions'!$C$43+('Inputs and assumptions'!$C$26*(1+Sim_template_201415!$G$204))/'Inputs and assumptions'!$C$46)*(1+'Inputs and assumptions'!$C$31)-IF('Inputs and assumptions'!$C$61="Flat",0,'Inputs and assumptions'!$C$60)*(1+Sim_template_201415!$G$204) -> 131.2335063 | N107: =(('Inputs and assumptions'!$C$23*(1+Sim_template_201415!$G$201)+IF('Inputs and assumptions'!H6="Yes",'Inputs and assumptions'!$C$24*(1+Sim_template_201415!$G$202),0))*'Inputs and assumptions'!$C$43+('Inputs and assumptions'!$C$26*(1+Sim_template_201415!$G$204))/'Inputs and assumptions'!$C$46)*(1+'Inputs and assumptions'!$C$31)-IF('Inputs and assumptions'!$C$61="Flat",0,'Inputs and assumptions'!$C$60)*(1+Sim_template_201415!$G$204) -> 131.2335063 | O107: =(('Inputs and assumptions'!$C$23*(1+Sim_template_201415!$G$201)+IF('Inputs and assumptions'!I6="Yes",'Inputs and assumptions'!$C$24*(1+Sim_template_201415!$G$202),0))*'Inputs and assumptions'!$C$43+('Inputs and assumptions'!$C$26*(1+Sim_template_201415!$G$204))/'Inputs and assumptions'!$C$46)*(1+'Inputs and assumptions'!$C$31)-IF('Inputs and assumptions'!$C$61="Flat",0,'Inputs and assumptions'!$C$60)*(1+Sim_template_201415!$G$204) -> 151.9735063 | P107: =(('Inputs and assumptions'!$C$23*(1+Sim_template_201415!$G$201)+IF('Inputs and assumptions'!J6="Yes",'Inputs and assumptions'!$C$24*(1+Sim_template_201415!$G$202),0))*'Inputs and assumptions'!$C$43+('Inputs and assumptions'!$C$26*(1+Sim_template_201415!$G$204))/'Inputs and assumptions'!$C$46)*(1+'Inputs and assumptions'!$C$31)-IF('Inputs and assumptions'!$C$61="Flat",0,'Inputs and assumptions'!$C$60)*(1+Sim_template_201415!$G$204) -> 151.9735063 | Q107: =(('Inputs and assumptions'!$C$23*(1+Sim_template_201415!$G$201)+IF('Inputs and assumptions'!K6="Yes",'Inputs and assumptions'!$C$24*(1+Sim_template_201415!$G$202),0))*'Inputs and assumptions'!$C$43+'Inputs and assumptions'!$C$28*(1+Sim_template_201415!$G$206)+('Inputs and assumptions'!$C$26*(1+Sim_template_201415!$G$204))/'Inputs and assumptions'!$C$46)*(1+'Inputs and assumptions'!$C$31)-IF('Inputs and assumptions'!$C$61="Flat",0,'Inputs and assumptions'!$C$60)*(1+Sim_template_201415!$G$204) -> 142.6405063 | R107: =(('Inputs and assumptions'!$C$23*(1+Sim_template_201415!$G$201)+IF('Inputs and assumptions'!L6="Yes",'Inputs and assumptions'!$C$24*(1+Sim_template_201415!$G$202),0))*'Inputs and assumptions'!$C$43+'Inputs and assumptions'!$C$28*(1+Sim_template_201415!$G$206)+('Inputs and assumptions'!$C$26*(1+Sim_template_201415!$G$204))/'Inputs and assumptions'!$C$46)*(1+'Inputs and assumptions'!$C$31)-IF('Inputs and assumptions'!$C$61="Flat",0,'Inputs and assumptions'!$C$60)*(1+Sim_template_201415!$G$204) -> 142.6405063 | S107: =(('Inputs and assumptions'!$C$23*(1+Sim_template_201415!$G$201)+IF('Inputs and assumptions'!M6="Yes",'Inputs and assumptions'!$C$24*(1+Sim_template_201415!$G$202),0))*'Inputs and assumptions'!$C$43+'Inputs and assumptions'!$C$28*(1+Sim_template_201415!$G$206)+('Inputs and assumptions'!$C$26*(1+Sim_template_201415!$G$204))/'Inputs and assumptions'!$C$46)*(1+'Inputs and assumptions'!$C$31)-IF('Inputs and assumptions'!$C$61="Flat",0,'Inputs and assumptions'!$C$60)*(1+Sim_template_201415!$G$204) -> 142.6405063 | T107: =(('Inputs and assumptions'!$C$23*(1+Sim_template_201415!$G$201)+IF('Inputs and assumptions'!N6="Yes",'Inputs and assumptions'!$C$24*(1+Sim_template_201415!$G$202),0))*'Inputs and assumptions'!$C$43+'Inputs and assumptions'!$C$28*(1+Sim_template_201415!$G$206)+('Inputs and assumptions'!$C$26*(1+Sim_template_201415!$G$204))/'Inputs and assumptions'!$C$46)*(1+'Inputs and assumptions'!$C$31)-IF('Inputs and assumptions'!$C$61="Flat",0,'Inputs and assumptions'!$C$60)*(1+Sim_template_201415!$G$204) -> 142.6405063 | U107: =(('Inputs and assumptions'!$C$23*(1+Sim_template_201415!$G$201)+IF('Inputs and assumptions'!O6="Yes",'Inputs and assumptions'!$C$24*(1+Sim_template_201415!$G$202),0))*'Inputs and assumptions'!$C$43+'Inputs and assumptions'!$C$28*(1+Sim_template_201415!$G$206)+('Inputs and assumptions'!$C$26*(1+Sim_template_201415!$G$204))/'Inputs and assumptions'!$C$46)*(1+'Inputs and assumptions'!$C$31)-IF('Inputs and assumptions'!$C$61="Flat",0,'Inputs and assumptions'!$C$60)*(1+Sim_template_201415!$G$204) -> 163.3805063 | V107: =(('Inputs and assumptions'!$C$23*(1+Sim_template_201415!$G$201)+IF('Inputs and assumptions'!P6="Yes",'Inputs and assumptions'!$C$24*(1+Sim_template_201415!$G$202),0))*'Inputs and assumptions'!$C$43+'Inputs and assumptions'!$C$28*(1+Sim_template_201415!$G$206)+('Inputs and assumptions'!$C$26*(1+Sim_template_201415!$G$204))/'Inputs and assumptions'!$C$46)*(1+'Inputs and assumptions'!$C$31)-IF('Inputs and assumptions'!$C$61="Flat",0,'Inputs and assumptions'!$C$60)*(1+Sim_template_201415!$G$204) -> 163.3805063 | W107: =(('Inputs and assumptions'!$C$23*(1+Sim_template_201415!$G$201)+IF('Inputs and assumptions'!Q6="Yes",'Inputs and assumptions'!$C$24*(1+Sim_template_201415!$G$202),0))*'Inputs and assumptions'!$C$43+'Inputs and assumptions'!$C$28*(1+Sim_template_201415!$G$206)+('Inputs and assumptions'!$C$26*(1+Sim_template_201415!$G$204))/'Inputs and assumptions'!$C$46)*(1+'Inputs and assumptions'!$C$31)-IF('Inputs and assumptions'!$C$61="Flat",0,'Inputs and assumptions'!$C$60)*(1+Sim_template_201415!$G$204) -> 163.3805063
D108: Variable component of fixed costs | H108: $/additional taxi per shift | J108: ='Base model'!J16*(1+Sim_template_201415!$G$207) -> 0.009 | K108: ='Base model'!K16*(1+Sim_template_201415!$G$207) -> 0.009 | L108: ='Base model'!L16*(1+Sim_template_201415!$G$207) -> 0.009 | M108: ='Base model'!M16*(1+Sim_template_201415!$G$207) -> 0.009 | N108: ='Base model'!N16*(1+Sim_template_201415!$G$207) -> 0.009 | O108: ='Base model'!O16*(1+Sim_template_201415!$G$207) -> 0.009 | P108: ='Base model'!P16*(1+Sim_template_201415!$G$207) -> 0.009 | Q108: ='Base model'!Q16*(1+Sim_template_201415!$G$207) -> 0.009 | R108: ='Base model'!R16*(1+Sim_template_201415!$G$207) -> 0.009 | S108: ='Base model'!S16*(1+Sim_template_201415!$G$207) -> 0.009 | T108: ='Base model'!T16*(1+Sim_template_201415!$G$207) -> 0.009 | U108: ='Base model'!U16*(1+Sim_template_201415!$G$207) -> 0.009 | V108: ='Base model'!V16*(1+Sim_template_201415!$G$207) -> 0.009 | W108: ='Base model'!W16*(1+Sim_template_201415!$G$207) -> 0.009
D109: Waiting time constant | H109: Unit | J109: ='Base model'!J17 -> 24758.6356 | K109: ='Base model'!K17 -> 24758.6356 | L109: ='Base model'!L17 -> 24758.6356 | M109: ='Base model'!M17 -> 24758.6356 | N109: ='Base model'!N17 -> 24758.6356 | O109: ='Base model'!O17 -> 24758.6356 | P109: ='Base model'!P17 -> 24758.6356 | Q109: ='Base model'!Q17 -> 24758.6356 | R109: ='Base model'!R17 -> 24758.6356 | S109: ='Base model'!S17 -> 24758.6356 | T109: ='Base model'!T17 -> 24758.6356 | U109: ='Base model'!U17 -> 24758.6356 | V109: ='Base model'!V17 -> 24758.6356 | W109: ='Base model'!W17 -> 24758.6356
D110: Constant to link occupied taxi kms to occupied taxis | H110: Unit | J110: ='Base model'!J18 -> 0.003125 | K110: ='Base model'!K18 -> 0.003125 | L110: ='Base model'!L18 -> 0.003125 | M110: ='Base model'!M18 -> 0.003125 | N110: ='Base model'!N18 -> 0.003125 | O110: ='Base model'!O18 -> 0.003125 | P110: ='Base model'!P18 -> 0.003125 | Q110: ='Base model'!Q18 -> 0.003125 | R110: ='Base model'!R18 -> 0.003125 | S110: ='Base model'!S18 -> 0.003125 | T110: ='Base model'!T18 -> 0.003125 | U110: ='Base model'!U18 -> 0.003125 | V110: ='Base model'!V18 -> 0.003125 | W110: ='Base model'!W18 -> 0.003125
B112: GST adjustor | D112: =(1+'Inputs and assumptions'!$C$20) -> 1.1
J116: Monday | K116: Tuesday | L116: Wednesday | M116: Thursday | N116: Friday | O116: Saturday | P116: Sunday | Q116: Monday | R116: Tuesday | S116: Wednesday | T116: Thursday | U116: Friday | V116: Saturday | W116: Sunday
B117: SIMULATION MODEL | J117: Day | K117: Day | L117: Day | M117: Day | N117: Day | O117: Day | P117: Day | Q117: Night | R117: Night | S117: Night | T117: Night | U117: Night | V117: Night | W117: Night
B118: Q* | D118: Free entry demand | H118: Occupied kilometres | J118: 401559.7869 | K118: 398454.5331 | L118: 410863.9815 | M118: 438094.3869 | N118: 441984.9857 | O118: 291540.601 | P118: 260962.1657 | Q118: 314722.0642 | R118: 394589.7952 | S118: 457881.181 | T118: 544557.8726 | U118: 734512.5873 | V118: 666806.4439 | W118: 278908.1117
B119: W* | D119: Free entry waiting time | H119: Minutes, average | J119: 6.413756045 | K119: 6.450075465 | L119: 6.30810207 | M119: 6.023755258 | N119: 5.985882455 | O119: 9.151098817 | P119: 10.00666662 | Q119: 8.068094239 | R119: 6.792453674 | S119: 6.089677116 | T119: 5.384428977 | U119: 4.502594341 | V119: 4.557756205 | W119: 10.0830201
B120: T* | D120: Free entry number of taxis on the road | H120: Taxis on the road | J120: 5115.114073 | K120: 5083.673717 | L120: 5208.844572 | M120: 5479.211263 | N120: 5517.374491 | O120: 3616.601467 | P120: 3289.721097 | Q120: 4052.215838 | R120: 4878.114081 | S120: 5496.551707 | T120: 6299.934899 | U120: 7794.100743 | V120: 7515.968483 | W120: 3327.066211
B121: Q* zero condition | D121: Zero condition to solve for free entry | H121: Occupied kilometres | J121: =J102-J103*J105-J104*J119-J118 -> -3.143213689e-09 | K121: =K102-K103*K105-K104*K119-K118 -> -4.831235856e-09 | L121: =L102-L103*L105-L104*L119-L118 -> -8.149072528e-09 | M121: -6.98491931e-10 | N121: 4.540197551e-09 | O121: -8.498318493e-09 | P121: -4.153116606e-08 | Q121: 0 | R121: -1.396983862e-09 | S121: -4.132743925e-09 | T121: 1.28056854e-09 | U121: 3.143213689e-09 | V121: -2.211891115e-09 | W121: -2.613523975e-08
B122: W* zero condition | D122: Zero condition to solve for free entry | H122: Minutes, average | J122: =J109/(J120-J118*J110)-J119 -> -9.309629245e-08 | K122: =K109/(K120-K118*K110)-K119 -> -9.563236958e-08 | L122: -8.602698287e-08 | M122: -6.910247574e-08 | N122: -6.76943861e-08 | O122: -6.087658679e-07 | P122: -9.410246964e-07 | Q122: -3.013376322e-07 | R122: -1.331062078e-07 | S122: -7.964456472e-08 | T122: -4.473265847e-08 | U122: -2.11424549e-08 | V122: -2.134080646e-08 | W122: -8.466436228e-07
B123: T* zero condition | D123: Zero condition to solve for free entry | H123: Taxis on the road | J123: =(-J107+SQRT(J107^2+4*J108*(J105-J106)*J118))/(2*J108)-J120 -> 1.296285518e-06 | K123: =(-K107+SQRT(K107^2+4*K108*(K105-K106)*K118))/(2*K108)-K120 -> 1.32189416e-06 | L123: 1.224017979e-06 | M123: 1.04382616e-06 | N123: 1.035163223e-06 | O123: 5.293007234e-06 | P123: 7.246818768e-06 | Q123: 3.062137694e-06 | R123: 1.702488589e-06 | S123: 1.177332706e-06 | T123: 7.77358764e-07 | U123: 4.428557077e-07 | V123: 4.254416126e-07 | W123: 5.933422926e-06
B124: Qbar | D124: Fixed taxi numbers demand | H124: Occupied kilometres | J124: =((J110*(J102-J103*J105)+J126)-SQRT((J110*(J102-J103*J105)+J126)^2-4*J110*(J126*(J102-J103*J105)-J104*J109)))/(2*J110) -> 391579.5601 | K124: 389557.6827 | L124: 400639.3896 | M124: 426302.8442 | N124: 426741.6143 | O124: 299200.7185 | P124: 273746.781 | Q124: 321613.7834 | R124: 390353.157 | S124: 446737.0457 | T124: 524168.0855 | U124: 690260.6212 | V124: 625371.9311 | W124: 296807.4401
B125: Wbar | D125: Fixed taxi numbers waiting time | H125: Minutes, average | J125: =J109/(J126-J124*J110) -> 7.693781295 | K125: 7.599232784 | L125: 7.592401432 | M125: 7.420469535 | N125: 7.769883643 | O125: 7.886528882 | P125: 7.69164172 | Q125: 6.976470617 | R125: 7.341389388 | S125: 7.351123007 | T125: 7.351469721 | U125: 7.795992917 | V125: 7.969911316 | W125: 6.827337799
B126: Tbar | D126: Fixed taxi numbers | H126: Taxis on the road | J126: ='Base model'!J8/'Base model'!J6*('Base model'!J6+$F$13) -> 4441.692285 | K126: ='Base model'!K8/'Base model'!K6*('Base model'!K6+$F$13) -> 4475.411867 | L126: ='Base model'!L8/'Base model'!L6*('Base model'!L6+$F$13) -> 4512.973665 | M126: ='Base model'!M8/'Base model'!M6*('Base model'!M6+$F$13) -> 4668.728596 | N126: ='Base model'!N8/'Base model'!N6*('Base model'!N6+$F$13) -> 4520.054851 | O126: ='Base model'!O8/'Base model'!O6*('Base model'!O6+$F$13) -> 4074.36 | P126: ='Base model'!P8/'Base model'!P6*('Base model'!P6+$F$13) -> 4074.36 | Q126: ='Base model'!Q8/'Base model'!Q6*('Base model'!Q6+$F$13+$F$15) -> 4553.92 | R126: ='Base model'!R8/'Base model'!R6*('Base model'!R6+$F$13+$F$15) -> 4592.326358 | S126: ='Base model'!S8/'Base model'!S6*('Base model'!S6+$F$13+$F$15) -> 4764.06052 | T126: ='Base model'!T8/'Base model'!T6*('Base model'!T6+$F$13+$F$15) -> 5005.873676 | U126: ='Base model'!U8/'Base model'!U6*('Base model'!U6+$F$13+$F$15) -> 5332.88 | V126: ='Base model'!V8/'Base model'!V6*('Base model'!V6+$F$13+$F$15) -> 5060.800597 | W126: ='Base model'!W8/'Base model'!W6*('Base model'!W6+$F$13+$F$15) -> 4553.92
B127: Q*_flat | D127: Free entry demand, flat cost curve | H127: Occupied kilometres | J127: =(J102-J103*J105+SQRT((J102-J103*J105)^2-4*J104*J109/((J105-J106)/J107-J110)))/2 -> 418836.6962 | K127: 415641.2647 | L127: 428410.7463 | M127: 456427.8165 | N127: 460508.2699 | O127: 305901.8 | P127: 274495.6288 | Q127: 329259.8612 | R127: 411401.0968 | S127: 476483.7903 | T127: 565580.0573 | U127: 758595.3189 | V127: 688050.3429 | W127: 291914.398
B128: W*_flat | D128: Free entry waiting time, flat cost curve | H128: Minutes, average | J128: =J109/((J105-J106)/J107-J110)/J127 -> 4.197886532 | K128: 4.230159696 | L128: 4.104072882 | M128: 3.852151123 | N128: 3.818018136 | O128: 6.780281331 | P128: 7.55604114 | Q128: 5.765359298 | R128: 4.614235152 | S128: 3.983978974 | T128: 3.356379663 | U128: 2.710266434 | V128: 2.808309338 | W128: 7.717325977
B129: T*_flat | D129: Free entry number of taxis on the road, flat cost curve | H129: Taxis on the road | J129: =(J105-J106)*J127/J107 -> 7206.745767 | K129: 7151.76333 | L129: 7371.482395 | M129: 7853.560265 | N129: 7923.770899 | O129: 4607.507772 | P129: 4134.466495 | Q129: 5323.315668 | R129: 6651.335806 | S129: 7703.561611 | T129: 9144.027365 | U129: 11505.74015 | V129: 10966.36402 | W129: 4120.420884
B133: Difference between free entry and actual (for info) | J133: =J120-J126 -> 673.4217874 | K133: =K120-K126 -> 608.2618504 | L133: 695.8709074 | M133: 810.4826674 | N133: 997.3196401 | O133: -457.7585334 | P133: =P120-P126 -> -784.6389034 | Q133: -501.7041624 | R133: 285.7877232 | S133: 732.4911865 | T133: 1294.061223 | U133: 2461.220743 | V133: 2455.167886 | W133: -1226.853789
B137: Baseline data
B138: Baseline taxis on the road | H138: No. | J138: ='Base model'!J132 -> 4441.692285 | K138: ='Base model'!K132 -> 4475.411867 | L138: ='Base model'!L132 -> 4512.973665 | M138: ='Base model'!M132 -> 4668.728596 | N138: ='Base model'!N132 -> 4520.054851 | O138: ='Base model'!O132 -> 3636.931504 | P138: ='Base model'!P132 -> 3308.553483 | Q138: ='Base model'!Q132 -> 4094.124209 | R138: ='Base model'!R132 -> 4327.915044 | S138: ='Base model'!S132 -> 4489.761308 | T138: ='Base model'!T132 -> 4717.651643 | U138: ='Base model'!U132 -> 5025.83 | V138: ='Base model'!V132 -> 4769.41605 | W138: ='Base model'!W132 -> 3367.423977
B139: Baseline revenue per taxi | H139: $/taxi | J139: ='Base model'!J149 -> 267.4212239 | K139: ='Base model'!K149 -> 264.0367523 | L139: ='Base model'!L149 -> 269.2947339 | M139: ='Base model'!M149 -> 277.0046569 | N139: ='Base model'!N149 -> 286.3859073 | O139: ='Base model'!O149 -> 245.4220151 | P139: ='Base model'!P149 -> 241.4951194 | Q139: ='Base model'!Q149 -> 237.6369348 | R139: ='Base model'!R149 -> 275.0594378 | S139: ='Base model'!S149 -> 303.3618741 | T139: ='Base model'!T149 -> 338.636111 | U139: ='Base model'!U149 -> 438.4021448 | V139: ='Base model'!V149 -> 434.3474806 | W139: ='Base model'!W149 -> 256.4369646
B140: Simulation revenue per taxi | H140: $/taxi | J140: =J67 -> 265.801665 | K140: 262.4369098 | L140: 267.6560085 | M140: 275.2997093 | N140: 284.6475443 | O140: 245.7884844 | P140: 241.8697796 | Q140: 238.2706109 | R140: 260.7719106 | S140: 287.6805861 | T140: 321.2377283 | U140: 421.5597263 | V140: 419.5897899 | W140: 257.1790328
B141: Headings for charts | J141: Day | Q141: Night
J142: Monday | K142: Tuesday | L142: Wednesday | M142: Thursday | N142: Friday | O142: Saturday | P142: Sunday | Q142: Monday | R142: Tuesday | S142: Wednesday | T142: Thursday | U142: Friday | V142: Saturday | W142: Sunday
B143: Additional taxis on the road | H143: No. | I143: =B143 -> Additional taxis on the road | J143: =J56-J138 -> 0 | K143: 0 | L143: 0 | M143: 0 | N143: 0 | O143: -20.33003727 | P143: -18.83238592 | Q143: -41.90837148 | R143: 264.411314 | S143: 274.2992122 | T143: 288.2220324 | U143: 307.05 | V143: 291.3845471 | W143: -40.35776597
B144: Proportion of taxis on the road 2011/12 | H144: % | I144: Proportion of taxis on the road 2011/12 | J144: ='Base model'!J142/100 -> 0.8285193593 | K144: ='Base model'!K142/100 -> 0.8348091526 | L144: ='Base model'!L142/100 -> 0.8418156435 | M144: ='Base model'!M142/100 -> 0.8708689789 | N144: ='Base model'!N142/100 -> 0.843136514 | O144: ='Base model'!O142/100 -> 0.6784054288 | P144: ='Base model'!P142/100 -> 0.6171523004 | Q144: ='Base model'!Q142/100 -> 0.7250087142 | R144: ='Base model'!R142/100 -> 0.7664096058 | S144: ='Base model'!S142/100 -> 0.7950701803 | T144: ='Base model'!T142/100 -> 0.8354261809 | U144: ='Base model'!U142/100 -> 0.89 | V144: ='Base model'!V142/100 -> 0.8445928901 | W144: ='Base model'!W142/100 -> 0.5963208743
B145: Proportion of taxis on the road 2014/15 | H145: % | I145: Proportion of taxis on the road 2014/15 | J145: =J61/100 -> 0.8285193593 | K145: =K61/100 -> 0.8348091526 | L145: 0.8418156435 | M145: 0.8708689789 | N145: 0.843136514 | O145: 0.6746132189 | P145: 0.613639451 | Q145: 0.6762710009 | R145: 0.7664096058 | S145: 0.7950701803 | T145: 0.8354261809 | U145: 0.89 | V145: 0.8445928901 | W145: 0.5552513703
B148: Revenue | C148: 2012/13
C149: Revenue | D149: Revenue share
B150: Flagfall ($) | C150: =W35*R175 -> 2901869.334 | D150: =C150/$C$155 -> 0.1594503149
B151: Standard kilometre charge ($/km) | C151: =W37*R176 -> 7921310.31 | D151: 0.435255788
B152: Night kilometre charge ($/km) | C152: =W38*R177 -> 2998114.012 | D152: 0.1647387144
B153: Waiting time ($/hour when vehicle slower than 26km/hour) | C153: =W39*R178 -> 3979942.981 | D153: 0.2186877108
B154: Booking fee ($/booking) | C154: =W40*R179 -> 397970.6515 | D154: 0.02186747176
B155: Weighted average | C155: =SUM(C150:C154) -> 18199207.29 | D155: 1
B158: Fare setting for 2014/15 | T158: DO NOT DELETE
B159: Fares | D159: Monday | E159: Tuesday | F159: Wednesday | G159: Thursday | H159: Friday | I159: Saturday | J159: Sunday | K159: Monday | L159: Tuesday | M159: Wednesday | N159: Thursday | O159: Friday | P159: Saturday | Q159: Sunday | T159: Yes
D160: Day | E160: Day | F160: Day | G160: Day | H160: Day | I160: Day | J160: Day | K160: Night | L160: Night | M160: Night | N160: Night | O160: Night | P160: Night | Q160: Night | T160: No
B161: Average flagfall ($) | D161: =IF(AND(M34="Yes", $M$30="5 pm until 5 am"), $O$11+(1-'Inputs and assumptions'!D10)*Sim_template_201415!$M$26, IF(AND(M34="Yes", $M$30="10 pm until 6 am"), $O$11+(1-'Inputs and assumptions'!D9)*Sim_template_201415!$M$26, IF(AND(M34="Yes", $M$30="12 am until 5 am"), $O$11+(1-'Inputs and assumptions'!D11)*Sim_template_201415!$M$26, $O$11))) -> 3.6 | E161: =IF(AND(M35="Yes", $M$30="5 pm until 5 am"), $O$11+(1-'Inputs and assumptions'!E10)*Sim_template_201415!$M$26, IF(AND(M35="Yes", $M$30="10 pm until 6 am"), $O$11+(1-'Inputs and assumptions'!E9)*Sim_template_201415!$M$26, IF(AND(M35="Yes", $M$30="12 am until 5 am"), $O$11+(1-'Inputs and assumptions'!E11)*Sim_template_201415!$M$26, $O$11))) -> 3.6 | F161: =IF(AND(M36="Yes", $M$30="5 pm until 5 am"), $O$11+(1-'Inputs and assumptions'!F10)*Sim_template_201415!$M$26, IF(AND(M36="Yes", $M$30="10 pm until 6 am"), $O$11+(1-'Inputs and assumptions'!F9)*Sim_template_201415!$M$26, IF(AND(M36="Yes", $M$30="12 am until 5 am"), $O$11+(1-'Inputs and assumptions'!F11)*Sim_template_201415!$M$26, $O$11))) -> 3.6 | G161: =IF(AND(M37="Yes", $M$30="5 pm until 5 am"), $O$11+(1-'Inputs and assumptions'!G10)*Sim_template_201415!$M$26, IF(AND(M37="Yes", $M$30="10 pm until 6 am"), $O$11+(1-'Inputs and assumptions'!G9)*Sim_template_201415!$M$26, IF(AND(M37="Yes", $M$30="12 am until 5 am"), $O$11+(1-'Inputs and assumptions'!G11)*Sim_template_201415!$M$26, $O$11))) -> 3.6 | H161: =IF(AND(M38="Yes", $M$30="5 pm until 5 am"), $O$11+(1-'Inputs and assumptions'!H10)*Sim_template_201415!$M$26, IF(AND(M38="Yes", $M$30="10 pm until 6 am"), $O$11+(1-'Inputs and assumptions'!H9)*Sim_template_201415!$M$26, IF(AND(M38="Yes", $M$30="12 am until 5 am"), $O$11+(1-'Inputs and assumptions'!H11)*Sim_template_201415!$M$26, $O$11))) -> 3.6 | I161: =IF(AND(M39="Yes", $M$30="5 pm until 5 am"), $O$11+(1-'Inputs and assumptions'!I10)*Sim_template_201415!$M$26, IF(AND(M39="Yes", $M$30="10 pm until 6 am"), $O$11+(1-'Inputs and assumptions'!I9)*Sim_template_201415!$M$26, IF(AND(M39="Yes", $M$30="12 am until 5 am"), $O$11+(1-'Inputs and assumptions'!I11)*Sim_template_201415!$M$26, $O$11))) -> 3.85 | J161: =IF(AND(M40="Yes", $M$30="5 pm until 5 am"), $O$11+(1-'Inputs and assumptions'!J10)*Sim_template_201415!$M$26, IF(AND(M40="Yes", $M$30="10 pm until 6 am"), $O$11+(1-'Inputs and assumptions'!J9)*Sim_template_201415!$M$26, IF(AND(M40="Yes", $M$30="12 am until 5 am"), $O$11+(1-'Inputs and assumptions'!J11)*Sim_template_201415!$M$26, $O$11))) -> 3.85 | K161: =IF(AND(M41="Yes", $M$30="5 pm until 5 am"), $O$11+(1-'Inputs and assumptions'!K10)*Sim_template_201415!$M$26, IF(AND(M41="Yes", $M$30="10 pm until 6 am"), $O$11+(1-'Inputs and assumptions'!K9)*Sim_template_201415!$M$26, IF(AND(M41="Yes", $M$30="12 am until 5 am"), $O$11+(1-'Inputs and assumptions'!K11)*Sim_template_201415!$M$26, $O$11))) -> 3.6 | L161: =IF(AND(M42="Yes", $M$30="5 pm until 5 am"), $O$11+(1-'Inputs and assumptions'!L10)*Sim_template_201415!$M$26, IF(AND(M42="Yes", $M$30="10 pm until 6 am"), $O$11+(1-'Inputs and assumptions'!L9)*Sim_template_201415!$M$26, IF(AND(M42="Yes", $M$30="12 am until 5 am"), $O$11+(1-'Inputs and assumptions'!L11)*Sim_template_201415!$M$26, $O$11))) -> 3.6 | M161: =IF(AND(M43="Yes", $M$30="5 pm until 5 am"), $O$11+(1-'Inputs and assumptions'!M10)*Sim_template_201415!$M$26, IF(AND(M43="Yes", $M$30="10 pm until 6 am"), $O$11+(1-'Inputs and assumptions'!M9)*Sim_template_201415!$M$26, IF(AND(M43="Yes", $M$30="12 am until 5 am"), $O$11+(1-'Inputs and assumptions'!M11)*Sim_template_201415!$M$26, $O$11))) -> 3.6 | N161: =IF(AND(M44="Yes", $M$30="5 pm until 5 am"), $O$11+(1-'Inputs and assumptions'!N10)*Sim_template_201415!$M$26, IF(AND(M44="Yes", $M$30="10 pm until 6 am"), $O$11+(1-'Inputs and assumptions'!N9)*Sim_template_201415!$M$26, IF(AND(M44="Yes", $M$30="12 am until 5 am"), $O$11+(1-'Inputs and assumptions'!N11)*Sim_template_201415!$M$26, $O$11))) -> 3.6 | O161: =IF(AND(M45="Yes", $M$30="5 pm until 5 am"), $O$11+(1-'Inputs and assumptions'!O10)*Sim_template_201415!$M$26, IF(AND(M45="Yes", $M$30="10 pm until 6 am"), $O$11+(1-'Inputs and assumptions'!O9)*Sim_template_201415!$M$26, IF(AND(M45="Yes", $M$30="12 am until 5 am"), $O$11+(1-'Inputs and assumptions'!O11)*Sim_template_201415!$M$26, $O$11))) -> 4.6 | P161: =IF(AND(M46="Yes", $M$30="5 pm until 5 am"), $O$11+(1-'Inputs and assumptions'!P10)*Sim_template_201415!$M$26, IF(AND(M46="Yes", $M$30="10 pm until 6 am"), $O$11+(1-'Inputs and assumptions'!P9)*Sim_template_201415!$M$26, IF(AND(M46="Yes", $M$30="12 am until 5 am"), $O$11+(1-'Inputs and assumptions'!P11)*Sim_template_201415!$M$26, $O$11))) -> 5.1 | Q161: =IF(AND(M47="Yes", $M$30="5 pm until 5 am"), $O$11+(1-'Inputs and assumptions'!Q10)*Sim_template_201415!$M$26, IF(AND(M47="Yes", $M$30="10 pm until 6 am"), $O$11+(1-'Inputs and assumptions'!Q9)*Sim_template_201415!$M$26, IF(AND(M47="Yes", $M$30="12 am until 5 am"), $O$11+(1-'Inputs and assumptions'!Q11)*Sim_template_201415!$M$26, $O$11))) -> 3.6
B162: Standard kilometre charge ($/km) | D162: =$O$13 -> 2.19 | E162: 2.19 | F162: 2.19 | G162: 2.19 | H162: 2.19 | I162: 2.19 | J162: 2.19 | K162: 2.19 | L162: 2.19 | M162: 2.19 | N162: 2.19 | O162: 2.19 | P162: 2.19 | Q162: 2.19 | T162: DO NOT DELETE
B163: Night kilometre charge ($/km) | D163: =IF(O34="No",O13,IF(O34="Yes",$N$28,"na")) -> 2.63 | E163: =IF(O35="No",D162,IF(O35="Yes",$N$28,"na")) -> 2.63 | F163: =IF(O36="No",E162,IF(O36="Yes",$N$28,"na")) -> 2.63 | G163: =IF(O37="No",F162,IF(O37="Yes",$N$28,"na")) -> 2.63 | H163: =IF(O38="No",G162,IF(O38="Yes",$N$28,"na")) -> 2.63 | I163: =IF(O39="No",H162,IF(O39="Yes",$N$28,"na")) -> 2.63 | J163: =IF(O40="No",I162,IF(O40="Yes",$N$28,"na")) -> 2.63 | K163: =IF(O41="No",J162,IF(O41="Yes",$N$28,"na")) -> 2.63 | L163: =IF(O42="No",K162,IF(O42="Yes",$N$28,"na")) -> 2.63 | M163: =IF(O43="No",L162,IF(O43="Yes",$N$28,"na")) -> 2.63 | N163: =IF(O44="No",M162,IF(O44="Yes",$N$28,"na")) -> 2.63 | O163: =IF(O45="No",N162,IF(O45="Yes",$N$28,"na")) -> 2.63 | P163: =IF(O46="No",O162,IF(O46="Yes",$N$28,"na")) -> 2.63 | Q163: =IF(O47="No",P162,IF(O47="Yes",$N$28,"na")) -> 2.63 | T163: 10 pm until 6 am
B164: Waiting time ($/hour when vehicle slower than 26km/hour) | D164: =$O$15 -> 56.68 | E164: 56.68 | F164: 56.68 | G164: 56.68 | H164: 56.68 | I164: 56.68 | J164: 56.68 | K164: 56.68 | L164: 56.68 | M164: 56.68 | N164: 56.68 | O164: 56.68 | P164: 56.68 | Q164: 56.68 | T164: 5 pm until 5 am
B165: Booking fee ($/booking) | D165: =$O$20 -> 2.5 | E165: 2.5 | F165: 2.5 | G165: 2.5 | H165: 2.5 | I165: 2.5 | J165: 2.5 | K165: 2.5 | L165: 2.5 | M165: 2.5 | N165: 2.5 | O165: 2.5 | P165: 2.5 | Q165: 2.5 | T165: 12 am until 5 am
F167: Km threshold for waiting
F168: 2012/13
F169: =ROUND(W39/W37,0) -> 26
B171: Weights 2012/13
D172: Monday | E172: Tuesday | F172: Wednesday | G172: Thursday | H172: Friday | I172: Saturday | J172: Sunday | K172: Monday | L172: Tuesday | M172: Wednesday | N172: Thursday | O172: Friday | P172: Saturday | Q172: Sunday | R172: Total
D173: Day | E173: Day | F173: Day | G173: Day | H173: Day | I173: Day | J173: Day | K173: Night | L173: Night | M173: Night | N173: Night | O173: Night | P173: Night | Q173: Night
B174: Occupied kms | D174: ='Base model'!J9 -> 382718.9454 | E174: ='Base model'!K9 -> 380027.3817 | F174: ='Base model'!L9 -> 390784.9258 | G174: ='Base model'!M9 -> 414401.3346 | H174: ='Base model'!N9 -> 419415.022 | I174: ='Base model'!O9 -> 297338.1731 | J174: ='Base model'!P9 -> 271075.3871 | K174: ='Base model'!Q9 -> 315327.6217 | L174: ='Base model'!R9 -> 385484.7998 | M174: ='Base model'!S9 -> 441250.4054 | N174: ='Base model'!T9 -> 517734.0189 | O174: ='Base model'!U9 -> 682678.0371 | P174: ='Base model'!V9 -> 630901.6342 | Q174: ='Base model'!W9 -> 274600.9802
B175: Flagfall (no of trips) | D175: =D174/'Inputs and assumptions'!$C$44 -> 54674.13506 | E175: ='Base model'!K9/'Inputs and assumptions'!$C$44 -> 54289.62595 | F175: ='Base model'!L9/'Inputs and assumptions'!$C$44 -> 55826.41797 | G175: ='Base model'!M9/'Inputs and assumptions'!$C$44 -> 59200.19066 | H175: ='Base model'!N9/'Inputs and assumptions'!$C$44 -> 59916.43172 | I175: ='Base model'!O9/'Inputs and assumptions'!$C$44 -> 42476.88188 | J175: ='Base model'!P9/'Inputs and assumptions'!$C$44 -> 38725.0553 | K175: ='Base model'!Q9/'Inputs and assumptions'!$C$44 -> 45046.8031 | L175: ='Base model'!R9/'Inputs and assumptions'!$C$44 -> 55069.25712 | M175: ='Base model'!S9/'Inputs and assumptions'!$C$44 -> 63035.7722 | N175: ='Base model'!T9/'Inputs and assumptions'!$C$44 -> 73962.00271 | O175: ='Base model'!U9/'Inputs and assumptions'!$C$44 -> 97525.43387 | P175: ='Base model'!V9/'Inputs and assumptions'!$C$44 -> 90128.80489 | Q175: ='Base model'!W9/'Inputs and assumptions'!$C$44 -> 39228.71145 | R175: =SUM(D175:Q175) -> 829105.5239
B176: Standard kilometre charge (kms) | D176: =D174*'Inputs and assumptions'!D9*('Inputs and assumptions'!$C$52/'Inputs and assumptions'!$C$44) -> 288919.3498 | E176: =E174*'Inputs and assumptions'!E9*('Inputs and assumptions'!$C$52/'Inputs and assumptions'!$C$44) -> 286887.4545 | F176: =F174*'Inputs and assumptions'!F9*('Inputs and assumptions'!$C$52/'Inputs and assumptions'!$C$44) -> 295008.46 | G176: =G174*'Inputs and assumptions'!G9*('Inputs and assumptions'!$C$52/'Inputs and assumptions'!$C$44) -> 312836.7843 | H176: =H174*'Inputs and assumptions'!H9*('Inputs and assumptions'!$C$52/'Inputs and assumptions'!$C$44) -> 316621.68 | I176: =I174*'Inputs and assumptions'!I9*('Inputs and assumptions'!$C$52/'Inputs and assumptions'!$C$44) -> 224464.33 | J176: =J174*'Inputs and assumptions'!J9*('Inputs and assumptions'!$C$52/'Inputs and assumptions'!$C$44) -> 204638.2222 | K176: =K174*'Inputs and assumptions'!K9*('Inputs and assumptions'!$C$52/'Inputs and assumptions'!$C$44) -> 198370.6593 | L176: =L174*'Inputs and assumptions'!L9*('Inputs and assumptions'!$C$52/'Inputs and assumptions'!$C$44) -> 242506.1068 | M176: =M174*'Inputs and assumptions'!M9*('Inputs and assumptions'!$C$52/'Inputs and assumptions'!$C$44) -> 277587.9049 | N176: =N174*'Inputs and assumptions'!N9*('Inputs and assumptions'!$C$52/'Inputs and assumptions'!$C$44) -> 325703.2737 | O176: =O174*'Inputs and assumptions'!O9*('Inputs and assumptions'!$C$52/'Inputs and assumptions'!$C$44) -> 343574.8295 | P176: =P174*'Inputs and assumptions'!P9*('Inputs and assumptions'!$C$52/'Inputs and assumptions'!$C$44) -> 211678.0382 | Q176: =Q174*'Inputs and assumptions'!Q9*('Inputs and assumptions'!$C$52/'Inputs and assumptions'!$C$44) -> 172749.7807 | R176: =SUM(D176:Q176) -> 3701546.874
B177: Night kilometre charge (kms) | D177: =D174*(1-'Inputs and assumptions'!D9)*('Inputs and assumptions'!$C$52/'Inputs and assumptions'!$C$44) -> 32102.14998 | E177: =E174*(1-'Inputs and assumptions'!E9)*('Inputs and assumptions'!$C$52/'Inputs and assumptions'!$C$44) -> 31876.38383 | F177: =F174*(1-'Inputs and assumptions'!F9)*('Inputs and assumptions'!$C$52/'Inputs and assumptions'!$C$44) -> 32778.71777 | G177: =G174*(1-'Inputs and assumptions'!G9)*('Inputs and assumptions'!$C$52/'Inputs and assumptions'!$C$44) -> 34759.6427 | H177: =H174*(1-'Inputs and assumptions'!H9)*('Inputs and assumptions'!$C$52/'Inputs and assumptions'!$C$44) -> 35180.18667 | I177: =I174*(1-'Inputs and assumptions'!I9)*('Inputs and assumptions'!$C$52/'Inputs and assumptions'!$C$44) -> 24940.48111 | J177: =J174*(1-'Inputs and assumptions'!J9)*('Inputs and assumptions'!$C$52/'Inputs and assumptions'!$C$44) -> 22737.58024 | K177: =K174*(1-'Inputs and assumptions'!K9)*('Inputs and assumptions'!$C$52/'Inputs and assumptions'!$C$44) -> 66123.5531 | L177: =L174*(1-'Inputs and assumptions'!L9)*('Inputs and assumptions'!$C$52/'Inputs and assumptions'!$C$44) -> 80835.36893 | M177: =M174*(1-'Inputs and assumptions'!M9)*('Inputs and assumptions'!$C$52/'Inputs and assumptions'!$C$44) -> 92529.30162 | N177: =N174*(1-'Inputs and assumptions'!N9)*('Inputs and assumptions'!$C$52/'Inputs and assumptions'!$C$44) -> 108567.7579 | O177: =O174*(1-'Inputs and assumptions'!O9)*('Inputs and assumptions'!$C$52/'Inputs and assumptions'!$C$44) -> 229049.8863 | P177: =P174*(1-'Inputs and assumptions'!P9)*('Inputs and assumptions'!$C$52/'Inputs and assumptions'!$C$44) -> 317517.0573 | Q177: =Q174*(1-'Inputs and assumptions'!Q9)*('Inputs and assumptions'!$C$52/'Inputs and assumptions'!$C$44) -> 57583.26022 | R177: =SUM(D177:Q177) -> 1166581.328
B178: Waiting time (hours) | D178: ='Inputs and assumptions'!$C$51/60*Sim_template_201415!D175 -> 4745.957355 | E178: ='Inputs and assumptions'!$C$51/60*Sim_template_201415!E175 -> 4712.580259 | F178: ='Inputs and assumptions'!$C$51/60*Sim_template_201415!F175 -> 4845.980621 | G178: ='Inputs and assumptions'!$C$51/60*Sim_template_201415!G175 -> 5138.83905 | H178: ='Inputs and assumptions'!$C$51/60*Sim_template_201415!H175 -> 5201.011949 | I178: ='Inputs and assumptions'!$C$51/60*Sim_template_201415!I175 -> 3687.181694 | J178: ='Inputs and assumptions'!$C$51/60*Sim_template_201415!J175 -> 3361.506511 | K178: ='Inputs and assumptions'!$C$51/60*Sim_template_201415!K175 -> 3910.262252 | L178: ='Inputs and assumptions'!$C$51/60*Sim_template_201415!L175 -> 4780.255702 | M178: ='Inputs and assumptions'!$C$51/60*Sim_template_201415!M175 -> 5471.784535 | N178: ='Inputs and assumptions'!$C$51/60*Sim_template_201415!N175 -> 6420.229791 | O178: ='Inputs and assumptions'!$C$51/60*Sim_template_201415!O175 -> 8465.640099 | P178: ='Inputs and assumptions'!$C$51/60*Sim_template_201415!P175 -> 7823.579906 | Q178: ='Inputs and assumptions'!$C$51/60*Sim_template_201415!Q175 -> 3405.226099 | R178: =SUM(D178:Q178) -> 71970.03582
B179: Booking fee (number) | D179: =D175*'Inputs and assumptions'!$C$47 -> 10934.82701 | E179: =E175*'Inputs and assumptions'!$C$47 -> 10857.92519 | F179: =F175*'Inputs and assumptions'!$C$47 -> 11165.28359 | G179: =G175*'Inputs and assumptions'!$C$47 -> 11840.03813 | H179: =H175*'Inputs and assumptions'!$C$47 -> 11983.28634 | I179: =I175*'Inputs and assumptions'!$C$47 -> 8495.376375 | J179: =J175*'Inputs and assumptions'!$C$47 -> 7745.011059 | K179: =K175*'Inputs and assumptions'!$C$47 -> 9009.360619 | L179: =L175*'Inputs and assumptions'!$C$47 -> 11013.85142 | M179: =M175*'Inputs and assumptions'!$C$47 -> 12607.15444 | N179: =N175*'Inputs and assumptions'!$C$47 -> 14792.40054 | O179: =O175*'Inputs and assumptions'!$C$47 -> 19505.08677 | P179: =P175*'Inputs and assumptions'!$C$47 -> 18025.76098 | Q179: =Q175*'Inputs and assumptions'!$C$47 -> 7845.742291 | R179: =SUM(D179:Q179) -> 165821.1048
B181: Weights 2014/15
B182: Different distance rate night hours adjustment
B183: Distance surcharge hours: | D183: ='Inputs and assumptions'!B9 -> The proportion of trips in each shift for which the standard distance rate currently applies (rather than the night time distance rate)
B184: =Sim_template_201415!O30 -> 10 pm until 6 am | D184: =IF($B$184="5 pm until 5 am", 'Inputs and assumptions'!D10, IF($B$184="12 am until 5 am", 'Inputs and assumptions'!D11,'Inputs and assumptions'!D9)) -> 0.9 | E184: =IF($B$184="5 pm until 5 am", 'Inputs and assumptions'!E10, IF($B$184="12 am until 5 am", 'Inputs and assumptions'!E11,'Inputs and assumptions'!E9)) -> 0.9 | F184: =IF($B$184="5 pm until 5 am", 'Inputs and assumptions'!F10, IF($B$184="12 am until 5 am", 'Inputs and assumptions'!F11,'Inputs and assumptions'!F9)) -> 0.9 | G184: =IF($B$184="5 pm until 5 am", 'Inputs and assumptions'!G10, IF($B$184="12 am until 5 am", 'Inputs and assumptions'!G11,'Inputs and assumptions'!G9)) -> 0.9 | H184: =IF($B$184="5 pm until 5 am", 'Inputs and assumptions'!H10, IF($B$184="12 am until 5 am", 'Inputs and assumptions'!H11,'Inputs and assumptions'!H9)) -> 0.9 | I184: =IF($B$184="5 pm until 5 am", 'Inputs and assumptions'!I10, IF($B$184="12 am until 5 am", 'Inputs and assumptions'!I11,'Inputs and assumptions'!I9)) -> 0.9 | J184: =IF($B$184="5 pm until 5 am", 'Inputs and assumptions'!J10, IF($B$184="12 am until 5 am", 'Inputs and assumptions'!J11,'Inputs and assumptions'!J9)) -> 0.9 | K184: =IF($B$184="5 pm until 5 am", 'Inputs and assumptions'!K10, IF($B$184="12 am until 5 am", 'Inputs and assumptions'!K11,'Inputs and assumptions'!K9)) -> 0.75 | L184: =IF($B$184="5 pm until 5 am", 'Inputs and assumptions'!L10, IF($B$184="12 am until 5 am", 'Inputs and assumptions'!L11,'Inputs and assumptions'!L9)) -> 0.75 | M184: =IF($B$184="5 pm until 5 am", 'Inputs and assumptions'!M10, IF($B$184="12 am until 5 am", 'Inputs and assumptions'!M11,'Inputs and assumptions'!M9)) -> 0.75 | N184: =IF($B$184="5 pm until 5 am", 'Inputs and assumptions'!N10, IF($B$184="12 am until 5 am", 'Inputs and assumptions'!N11,'Inputs and assumptions'!N9)) -> 0.75 | O184: =IF($B$184="5 pm until 5 am", 'Inputs and assumptions'!O10, IF($B$184="12 am until 5 am", 'Inputs and assumptions'!O11,'Inputs and assumptions'!O9)) -> 0.6 | P184: =IF($B$184="5 pm until 5 am", 'Inputs and assumptions'!P10, IF($B$184="12 am until 5 am", 'Inputs and assumptions'!P11,'Inputs and assumptions'!P9)) -> 0.4 | Q184: =IF($B$184="5 pm until 5 am", 'Inputs and assumptions'!Q10, IF($B$184="12 am until 5 am", 'Inputs and assumptions'!Q11,'Inputs and assumptions'!Q9)) -> 0.75
D185: =Sim_template_201415!D172 -> Monday | E185: =Sim_template_201415!E172 -> Tuesday | F185: =Sim_template_201415!F172 -> Wednesday | G185: =Sim_template_201415!G172 -> Thursday | H185: =Sim_template_201415!H172 -> Friday | I185: =Sim_template_201415!I172 -> Saturday | J185: =Sim_template_201415!J172 -> Sunday | K185: =Sim_template_201415!K172 -> Monday | L185: =Sim_template_201415!L172 -> Tuesday | M185: =Sim_template_201415!M172 -> Wednesday | N185: =Sim_template_201415!N172 -> Thursday | O185: =Sim_template_201415!O172 -> Friday | P185: =Sim_template_201415!P172 -> Saturday | Q185: =Sim_template_201415!Q172 -> Sunday | R185: =Sim_template_201415!R172 -> Total
D186: =Sim_template_201415!D173 -> Day | E186: =Sim_template_201415!E173 -> Day | F186: =Sim_template_201415!F173 -> Day | G186: =Sim_template_201415!G173 -> Day | H186: =Sim_template_201415!H173 -> Day | I186: =Sim_template_201415!I173 -> Day | J186: =Sim_template_201415!J173 -> Day | K186: =Sim_template_201415!K173 -> Night | L186: =Sim_template_201415!L173 -> Night | M186: =Sim_template_201415!M173 -> Night | N186: =Sim_template_201415!N173 -> Night | O186: =Sim_template_201415!O173 -> Night | P186: =Sim_template_201415!P173 -> Night | Q186: =Sim_template_201415!Q173 -> Night
B187: =Sim_template_201415!B176 -> Standard kilometre charge (kms) | D187: =D174*D184*('Inputs and assumptions'!$C$52/'Inputs and assumptions'!$C$44) -> 288919.3498 | E187: =E174*E184*('Inputs and assumptions'!$C$52/'Inputs and assumptions'!$C$44) -> 286887.4545 | F187: =F174*F184*('Inputs and assumptions'!$C$52/'Inputs and assumptions'!$C$44) -> 295008.46 | G187: =G174*G184*('Inputs and assumptions'!$C$52/'Inputs and assumptions'!$C$44) -> 312836.7843 | H187: =H174*H184*('Inputs and assumptions'!$C$52/'Inputs and assumptions'!$C$44) -> 316621.68 | I187: =I174*I184*('Inputs and assumptions'!$C$52/'Inputs and assumptions'!$C$44) -> 224464.33 | J187: =J174*J184*('Inputs and assumptions'!$C$52/'Inputs and assumptions'!$C$44) -> 204638.2222 | K187: =K174*K184*('Inputs and assumptions'!$C$52/'Inputs and assumptions'!$C$44) -> 198370.6593 | L187: =L174*L184*('Inputs and assumptions'!$C$52/'Inputs and assumptions'!$C$44) -> 242506.1068 | M187: =M174*M184*('Inputs and assumptions'!$C$52/'Inputs and assumptions'!$C$44) -> 277587.9049 | N187: =N174*N184*('Inputs and assumptions'!$C$52/'Inputs and assumptions'!$C$44) -> 325703.2737 | O187: =O174*O184*('Inputs and assumptions'!$C$52/'Inputs and assumptions'!$C$44) -> 343574.8295 | P187: =P174*P184*('Inputs and assumptions'!$C$52/'Inputs and assumptions'!$C$44) -> 211678.0382 | Q187: =Q174*Q184*('Inputs and assumptions'!$C$52/'Inputs and assumptions'!$C$44) -> 172749.7807 | R187: =SUM(D187:Q187) -> 3701546.874
B188: =Sim_template_201415!B177 -> Night kilometre charge (kms) | D188: =D174*(1-D184)*('Inputs and assumptions'!$C$52/'Inputs and assumptions'!$C$44) -> 32102.14998 | E188: =E174*(1-E184)*('Inputs and assumptions'!$C$52/'Inputs and assumptions'!$C$44) -> 31876.38383 | F188: =F174*(1-F184)*('Inputs and assumptions'!$C$52/'Inputs and assumptions'!$C$44) -> 32778.71777 | G188: =G174*(1-G184)*('Inputs and assumptions'!$C$52/'Inputs and assumptions'!$C$44) -> 34759.6427 | H188: =H174*(1-H184)*('Inputs and assumptions'!$C$52/'Inputs and assumptions'!$C$44) -> 35180.18667 | I188: =I174*(1-I184)*('Inputs and assumptions'!$C$52/'Inputs and assumptions'!$C$44) -> 24940.48111 | J188: =J174*(1-J184)*('Inputs and assumptions'!$C$52/'Inputs and assumptions'!$C$44) -> 22737.58024 | K188: =K174*(1-K184)*('Inputs and assumptions'!$C$52/'Inputs and assumptions'!$C$44) -> 66123.5531 | L188: =L174*(1-L184)*('Inputs and assumptions'!$C$52/'Inputs and assumptions'!$C$44) -> 80835.36893 | M188: =M174*(1-M184)*('Inputs and assumptions'!$C$52/'Inputs and assumptions'!$C$44) -> 92529.30162 | N188: =N174*(1-N184)*('Inputs and assumptions'!$C$52/'Inputs and assumptions'!$C$44) -> 108567.7579 | O188: =O174*(1-O184)*('Inputs and assumptions'!$C$52/'Inputs and assumptions'!$C$44) -> 229049.8863 | P188: =P174*(1-P184)*('Inputs and assumptions'!$C$52/'Inputs and assumptions'!$C$44) -> 317517.0573 | Q188: =Q174*(1-Q184)*('Inputs and assumptions'!$C$52/'Inputs and assumptions'!$C$44) -> 57583.26022 | R188: =SUM(D188:Q188) -> 1166581.328
S189: =R188/SUM(R187:R188) -> 0.2396365255
B190: Waiting time threshold adjustment
B191: Flagfall (no of trips) | D191: =D175 -> 54674.13506 | E191: =E175 -> 54289.62595 | F191: 55826.41797 | G191: 59200.19066 | H191: 59916.43172 | I191: 42476.88188 | J191: 38725.0553 | K191: 45046.8031 | L191: 55069.25712 | M191: 63035.7722 | N191: 73962.00271 | O191: 97525.43387 | P191: 90128.80489 | Q191: 39228.71145 | R191: =SUM(D191:Q191) -> 829105.5239
B192: Standard kilometre charge (kms) | D192: =(D178-D194)*AVERAGE(Sim_template_201415!$F$169:$G$169)*D184+D187 -> 289426.4521 | E192: =(E178-E194)*AVERAGE(Sim_template_201415!$F$169:$G$169)*E184+E187 -> 287390.9904 | F192: =(F178-F194)*AVERAGE(Sim_template_201415!$F$169:$G$169)*F184+F187 -> 295526.2497 | G192: =(G178-G194)*AVERAGE(Sim_template_201415!$F$169:$G$169)*G184+G187 -> 313385.8657 | H192: =(H178-H194)*AVERAGE(Sim_template_201415!$F$169:$G$169)*H184+H187 -> 317177.4046 | I192: =(I178-I194)*AVERAGE(Sim_template_201415!$F$169:$G$169)*I184+I187 -> 224858.3028 | J192: =(J178-J194)*AVERAGE(Sim_template_201415!$F$169:$G$169)*J184+J187 -> 204997.3969 | K192: =(K178-K194)*AVERAGE(Sim_template_201415!$F$169:$G$169)*K184+K187 -> 198718.8333 | L192: =(L178-L194)*AVERAGE(Sim_template_201415!$F$169:$G$169)*L184+L187 -> 242931.746 | M192: =(M178-M194)*AVERAGE(Sim_template_201415!$F$169:$G$169)*M184+M187 -> 278075.1185 | N192: =(N178-N194)*AVERAGE(Sim_template_201415!$F$169:$G$169)*N184+N187 -> 326274.938 | O192: =(O178-O194)*AVERAGE(Sim_template_201415!$F$169:$G$169)*O184+O187 -> 344177.8614 | P192: =(P178-P194)*AVERAGE(Sim_template_201415!$F$169:$G$169)*P184+P187 -> 212049.5689 | Q192: =(Q178-Q194)*AVERAGE(Sim_template_201415!$F$169:$G$169)*Q184+Q187 -> 173052.9857 | R192: =SUM(D192:Q192) -> 3708043.714
B193: Night kilometre charge (kms) | D193: =(D178-D194)*AVERAGE(Sim_template_201415!$F$169:$G$169)*(1-D184)+D188 -> 32158.49468 | E193: =(E178-E194)*AVERAGE(Sim_template_201415!$F$169:$G$169)*(1-E184)+E188 -> 31932.33227 | F193: =(F178-F194)*AVERAGE(Sim_template_201415!$F$169:$G$169)*(1-F184)+F188 -> 32836.24996 | G193: =(G178-G194)*AVERAGE(Sim_template_201415!$F$169:$G$169)*(1-G184)+G188 -> 34820.65175 | H193: =(H178-H194)*AVERAGE(Sim_template_201415!$F$169:$G$169)*(1-H184)+H188 -> 35241.93384 | I193: =(I178-I194)*AVERAGE(Sim_template_201415!$F$169:$G$169)*(1-I184)+I188 -> 24984.25587 | J193: =(J178-J194)*AVERAGE(Sim_template_201415!$F$169:$G$169)*(1-J184)+J188 -> 22777.48854 | K193: =(K178-K194)*AVERAGE(Sim_template_201415!$F$169:$G$169)*(1-K184)+K188 -> 66239.61111 | L193: =(L178-L194)*AVERAGE(Sim_template_201415!$F$169:$G$169)*(1-L184)+L188 -> 80977.24866 | M193: =(M178-M194)*AVERAGE(Sim_template_201415!$F$169:$G$169)*(1-M184)+M188 -> 92691.70618 | N193: =(N178-N194)*AVERAGE(Sim_template_201415!$F$169:$G$169)*(1-N184)+N188 -> 108758.3127 | O193: =(O178-O194)*AVERAGE(Sim_template_201415!$F$169:$G$169)*(1-O184)+O188 -> 229451.9076 | P193: =(P178-P194)*AVERAGE(Sim_template_201415!$F$169:$G$169)*(1-P184)+P188 -> 318074.3534 | Q193: =(Q178-Q194)*AVERAGE(Sim_template_201415!$F$169:$G$169)*(1-Q184)+Q188 -> 57684.32858 | R193: 1168628.875
B194: Waiting time hours | D194: =D178*(1+(Sim_template_201415!$O$17-Sim_template_201415!$F$169)/Sim_template_201415!$F$169) -> 4724.286316 | E194: =E178*(1+(Sim_template_201415!$O$17-Sim_template_201415!$F$169)/Sim_template_201415!$F$169) -> 4691.061628 | F194: =F178*(1+(Sim_template_201415!$O$17-Sim_template_201415!$F$169)/Sim_template_201415!$F$169) -> 4823.852855 | G194: =G178*(1+(Sim_template_201415!$O$17-Sim_template_201415!$F$169)/Sim_template_201415!$F$169) -> 5115.374032 | H194: =H178*(1+(Sim_template_201415!$O$17-Sim_template_201415!$F$169)/Sim_template_201415!$F$169) -> 5177.263036 | I194: =I178*(1+(Sim_template_201415!$O$17-Sim_template_201415!$F$169)/Sim_template_201415!$F$169) -> 3670.345248 | J194: =J178*(1+(Sim_template_201415!$O$17-Sim_template_201415!$F$169)/Sim_template_201415!$F$169) -> 3346.157166 | K194: =K178*(1+(Sim_template_201415!$O$17-Sim_template_201415!$F$169)/Sim_template_201415!$F$169) -> 3892.407173 | L194: =L178*(1+(Sim_template_201415!$O$17-Sim_template_201415!$F$169)/Sim_template_201415!$F$169) -> 4758.42805 | M194: =M178*(1+(Sim_template_201415!$O$17-Sim_template_201415!$F$169)/Sim_template_201415!$F$169) -> 5446.799218 | N194: =N178*(1+(Sim_template_201415!$O$17-Sim_template_201415!$F$169)/Sim_template_201415!$F$169) -> 6390.913673 | O194: =O178*(1+(Sim_template_201415!$O$17-Sim_template_201415!$F$169)/Sim_template_201415!$F$169) -> 8426.984208 | P194: =P178*(1+(Sim_template_201415!$O$17-Sim_template_201415!$F$169)/Sim_template_201415!$F$169) -> 7787.855797 | Q194: =Q178*(1+(Sim_template_201415!$O$17-Sim_template_201415!$F$169)/Sim_template_201415!$F$169) -> 3389.677121 | R194: 71641.40552
B195: Booking fee (number) | D195: =D179 -> 10934.82701 | E195: =E179 -> 10857.92519 | F195: 11165.28359 | G195: 11840.03813 | H195: 11983.28634 | I195: 8495.376375 | J195: 7745.011059 | K195: 9009.360619 | L195: 11013.85142 | M195: 12607.15444 | N195: 14792.40054 | O195: 19505.08677 | P195: 18025.76098 | Q195: 7845.742291 | R195: 165821.1048
B199: Cost changes assumed from 2011/12 survey
E200: Nominal (units) | F200: Real from 2011/12 (%) | G200: Real (%, from 2012/13) | H200: Weight
B201: Labour cost ($/hour) | E201: ='Inputs and assumptions'!C23*($E$212-1) -> 0.877428285 | F201: =('Inputs and assumptions'!C23+E201)/'Inputs and assumptions'!C23/Sim_template_201415!$E$211-1 -> 0.01122032659 | G201: =(1+F201)*$E$211/$E$210/(1+'Inputs and assumptions'!$C$31)-1 -> 0 | H201: ='Inputs and assumptions'!C43*'Inputs and assumptions'!C46*'Inputs and assumptions'!C23*(1+'Inputs and assumptions'!C31)/Sim_template_201415!W25 -> 0.4367279372
B202: Weekend labour cost premium ($ per hour) | E202: ='Inputs and assumptions'!C24*($E$212-1) -> 0.175485657 | F202: =('Inputs and assumptions'!C24+E202)/'Inputs and assumptions'!C24/Sim_template_201415!$E$211-1 -> 0.01122032659 | G202: =(1+F202)*$E$211/$E$210/(1+'Inputs and assumptions'!$C$31)-1 -> 0 | H202: ='Inputs and assumptions'!C24*'Inputs and assumptions'!C43*'Inputs and assumptions'!C46*(5/14)/Sim_template_201415!W25*(1+'Inputs and assumptions'!C31) -> 0.03119485265
B203: Operator variable costs ($/km) | E203: ='Inputs and assumptions'!C25*($E$212-1) -> 0.008497523928 | F203: =('Inputs and assumptions'!C25+E203)/'Inputs and assumptions'!C25/Sim_template_201415!$E$211-1 -> 0.01122032659 | G203: =(1+F203)*$E$211/$E$210/(1+'Inputs and assumptions'!$C$31)-1 -> 0 | H203: =1-SUM(H204:H206,H201:H202) -> 0.1351913932
B204: Operator costs (fixed, non plate, $/year) | E204: ='Inputs and assumptions'!C26*($E$212-1) -> 2862.30268 | F204: =('Inputs and assumptions'!C26+E204)/'Inputs and assumptions'!C26/Sim_template_201415!$E$211-1 -> 0.01122032659 | G204: =(1+F204)*$E$211/$E$210/(1+'Inputs and assumptions'!$C$31)-1 -> 0 | H204: ='Inputs and assumptions'!C26*(1+'Inputs and assumptions'!C31)/Sim_template_201415!W25 -> 0.2580927609
B205: Fuel cost ($/km) | E205: ='Inputs and assumptions'!C27*($E$212-1) -> 0.01198468634 | F205: =('Inputs and assumptions'!C27+E205)/'Inputs and assumptions'!C27/Sim_template_201415!$E$211-1 -> 0.01122032659 | G205: =(1+F205)*$E$211/$E$210/(1+'Inputs and assumptions'!$C$31)-1 -> 0 | H205: ='Inputs and assumptions'!C27*(1+'Inputs and assumptions'!C31)*'Inputs and assumptions'!C45/Sim_template_201415!W25 -> 0.1156300508
B206: Cleaning ($/night shift) | E206: ='Inputs and assumptions'!C28*($E$212-1) -> 0.9651711135 | F206: =('Inputs and assumptions'!C28+E206)/'Inputs and assumptions'!C28/Sim_template_201415!$E$211-1 -> 0.01122032659 | G206: =(1+F206)*$E$211/$E$210/(1+'Inputs and assumptions'!$C$31)-1 -> 0 | H206: ='Inputs and assumptions'!C28*'Inputs and assumptions'!C46/2/Sim_template_201415!W25 -> 0.02316300535
B207: Variable component of fixed costs | F207: =F206 -> 0.01122032659
B208: Total costs | F208: =SUMPRODUCT(F201:F207,$H$201:$H$207) -> 0.01122032659 | G208: =SUMPRODUCT(G201:G207,$H$201:$H$207) -> 0 | H208: =SUM(H201:H206) -> 1
B210: CPI change from 2012/13 to 2014/15 | E210: ='Inputs and assumptions'!E77 -> 1.048932332
B211: CPI change from 2011/12 to 2014/15 | E211: =AVERAGE('Inputs and assumptions'!C89:C92)/AVERAGE('Inputs and assumptions'!C77:C80) -> 1.075673421
B212: Nominal change in costs from 2011/12 | E212: =$E$210*(1+'Inputs and assumptions'!$C$31)*(1+Sim_template_201415!$H$25) -> 1.087742829

Sheet Sim_template_201516_onwards
B1: step 3 | M1: step 4 | V1: step 5
B6: Simulation year | M6: Average fare change target
Q7: Cumulative | R7: 2015/16 | S7: 2016/17 | T7: 2017/18
B8: Number of years after 2014/15 | E8: 3 | G8: Simulation year | H8: =INDEX(I12:K12,1,E8) -> 2017/18 | M8: Nominal fare increase sought from 2014/15 | Q8: =PRODUCT(1+R8:OFFSET(R8,0,$E$8-1))-1 -> 0 | R8: 0 | S8: 0 | T8: 0
B11: Number of licences | V11: Check on model | W11: =IF(SUM(ABS(J132:W134))<0.1,"MODEL SIMULATION CORRECT","ERROR IN MODEL SIMULATION") -> MODEL SIMULATION CORRECT | Y11: =IF(ROW(B129)=129,"","MACRO ERROR - DO NOT RUN MACRO") -> 
F12: Total | H12: 2012/13 to 2014/15 | I12: 2015/16 | J12: 2016/17 | K12: 2017/18
B13: Change in unrestricted licences | E13: No. | F13: =SUM(H13,I13:OFFSET(I13,0,$E$8-1)) -> 0 | H13: =Sim_template_201415!H13 -> 0 | I13: 0 | J13: 0 | K13: 0 | V13: Summary of model outputs
B14: Total unrestricted licences | E14: No. | F14: ='Inputs and assumptions'!C39+Sim_template_201516_onwards!F13 -> 5361 | T14: 1.125896551e+11 | Z14: See outputs for each shift
B15: Change in peak availability licences | E15: No. | F15: =SUM(H15,I15:OFFSET(I15,0,$E$8-1)) -> 345 | H15: =Sim_template_201415!H15 -> 345 | I15: 0 | J15: 0 | K15: 0 | Y15: Difference
B16: Total peak availability licences | E16: No. | F16: ='Inputs and assumptions'!C37+Sim_template_201516_onwards!F15 -> 631 | Q16: do not use this cell | Y16: ="from 2012/13 to "&CHOOSE($E$8, "2015/16", "2016/17", "2017/18") -> from 2012/13 to 2017/18 | Z16: ="from 2014/15 to "&CHOOSE($E$8, "2015/16", "2016/17", "2017/18") -> from 2014/15 to 2017/18 | AB16: 2012/13 | AC16: 2014/15 | AD16: =H8 -> 2017/18
B17: Note: Do not include replacement licences here | M17: ="Average fare increase from 2014/15 to "&CHOOSE($E$8, "2015/16", "2016/17", "2017/18") -> Average fare increase from 2014/15 to 2017/18 | P17: nominal | Q17: =SUMPRODUCT(D173:Q177,Sim_template_201516_onwards!D204:Q208)/C167-1 -> 3.359459377e-10 | Y17: Real | Z17: Real
V18: Plate lease costs | Y18: =$AD18/AB18-1 -> -0.2360384899 | Z18: =$AD18/AC18-1 -> -0.1343282909 | AA18: $2012/13 (ex GST) | AB18: ='Base model'!B161 -> 28323.94682 | AC18: =Sim_template_201415!X18 -> 24996.0868 | AD18: =J78 -> 21638.40518
B19: Forecasts (annual % change) | M19: Fares | V19: Total trips | Y19: =$AD19/AB19-1 -> 0.06441171629 | Z19: =AD19/AC19-1 -> 0.05024512597 | AA19: 000,000 | AB19: =SUM('Base model'!J130:W130)*365/7/1000000/7 -> 43.05421542 | AC19: =Sim_template_201415!X19 -> 43.63496692 | AD19: =SUM(J69:W69)*365/7/1000000/7 -> 45.82741133
F20: Annual | H20: Cumulative from 2014/15 | Q20: GST inclusive | V20: Average occupancy | Y20: =$AD20/AB20-1 -> 0.05006650577 | Z20: =AD20/AC20-1 -> 0.06017475703 | AA20: % | AB20: ='Base model'!B156 -> 0.2984975214 | AC20: =Sim_template_201415!X20 -> 0.2956514926 | AD20: =SUMPRODUCT(J65:W65,J73:W73)/SUM(J73:W73) -> 0.3134422493
B21: Change in demand (excluding price impacts) | E21: % | F21: 0 | H21: =(1+F21)^($E$8)-1 -> 0 | M21: Hiring charge | P21: $/trip | Q21: 3.6 | V21: Average waiting time | Y21: =$AD21/AB21-1 -> 0.01734105648 | Z21: =AD21/AC21-1 -> 0.0406671965 | AA21: mins | AB21: =AVERAGE('Base model'!J131:W131) -> 8.270708548 | AC21: =Sim_template_201415!X21 -> 8.085323915 | AD21: =AVERAGE(J67:W67) -> 8.414131372
V22: Average waiting time Fri and Sat nights | Y22: =$AD22/AB22-1 -> -0.06715997543 | Z22: =AD22/AC22-1 -> 0.0360619489 | AA22: mins | AB22: =AVERAGE('Base model'!U131:V131) -> 8.755227604 | AC22: =Sim_template_201415!X22 -> 7.882952116 | AD22: =AVERAGE(U67:V67) -> 8.167226733
B23: CPI from 2014/15 | E23: % | F23: 0.025 | H23: =(1+F23)^($E$8)-1 -> 0.076890625 | M23: Standard distance rate | P23: $/km | Q23: 2.189740846
V24: Average annual revenue per taxi | Y24: =$AD24/AB24-1 -> -0.0466568326 | Z24: =AD24/AC24-1 -> -0.02064942328 | AA24: $2012/13 (ex GST) | AB24: ='Base model'!B159 -> 159395.0213 | AC24: =Sim_template_201415!X24 -> 155162.1637 | AD24: =AD25+AD18 -> 151958.1545
B25: Real change in costs | E25: % | F25: 0 | H25: =(1+F25)^($E$8)-1 -> 0 | M25: Waiting time | P25: $/hr | Q25: 56.68 | V25: Average cost per taxi per year (excluding plate lease costs) | Y25: =$AD25/AB25-1 -> -0.005732196782 | Z25: =AD25/AC25-1 -> 0.001180587353 | AA25: $2012/13 | AB25: ='Base model'!B160 -> 131071.0745 | AC25: =Sim_template_201415!X25 -> 130166.0769 | AD25: =SUMPRODUCT(J72:W72,J73:W73)/100*365/7 -> 130319.7493
P26: $/min | Q26: =Q25/60 -> 0.9446666667 | V26: Occupied kilometres per taxi per year | Y26: =$AD26/AB26-1 -> 0.03099616915 | Z26: =AD26/AC26-1 -> 0.05022003912 | AA26: km | AB26: ='Base model'!B158 -> 54625.39541 | AC26: =Sim_template_201415!X26 -> 53625.49876 | AD26: =SUMPRODUCT(J80:W80,J73:W73)/100*365/7 -> 56318.57341
N27: Charged when the taxi speed falls below (km/h) | P27: Charged when the taxi speed falls below (km/h) | Q27: =Q25/Q23 -> 25.88434156 | V27: Peak plate costs | Y27: =$AD27/AB27-1 -> -0.2630582261 | Z27: =AD27/AC27-1 -> -0.1224796645 | AA27: $2012/13 (ex GST) | AB27: ='Base model'!B162 -> 21398.96244 | AC27: =Sim_template_201415!X27 -> 17970.85344 | AD27: =(SUM($Q$66:$W$66)+'Inputs and assumptions'!$C$63*SUM($Q$71:$W$71))*365/7*'Inputs and assumptions'!$C$64-('Inputs and assumptions'!$C$30*(1-'Inputs and assumptions'!$C$64*365/'Inputs and assumptions'!$C$46)) -> 15769.78934
V28: Kilometres per year | Y28: =$AD28/AB28-1 -> 0.03099616915 | Z28: =AD28/AC28-1 -> 0.05022003912 | AA28: km | AB28: ='Base model'!B157 -> 108952.7 | AC28: =Sim_template_201415!X28 -> 106958.3631 | AD28: ='Inputs and assumptions'!C53*AD26 -> 112329.8163
M29: Booking fee | P29: ($/booking) | Q29: 2.5
M31: Surcharges | O31: Peak hiring charge | Q31: Night distance rate
V32: Fare schedule
Y33: Dfiference (nominal to 2012/13) | Z33: Dfiference (nominal to 2014/15) | AB33: 2012/13 | AC33: =AC16 -> 2014/15 | AD33: =AD16 -> 2017/18
M34: Level | N34: $ per trip | O34: 2.5 | P34: % per km | Q34: 0.2
V35: Hiring charge ($) | Y35: =$AD35/AB35-1 -> 0.02857142857 | Z35: =$AD35/AC35-1 -> 0 | AB35: ='Inputs and assumptions'!C15 -> 3.5 | AC35: =Sim_template_201415!X35 -> 3.6 | AD35: =Q21 -> 3.6
P36: =ROUND((Q23*(1+Q34)),2) -> 2.63 | Q36: per kilometre | V36: Peak hiring surcharge ($) | Z36: =AD36/AC36-1 -> 0 | AC36: =Sim_template_201415!X36 -> 2.5 | AD36: =O34 -> 2.5
V37: Standard distance rate ($/km) | Y37: =$AD37/AB37-1 -> 0.02324338609 | Z37: -0.0001183350564 | AB37: ='Inputs and assumptions'!C16 -> 2.14 | AC37: =Sim_template_201415!X37 -> 2.19 | AD37: =Q23 -> 2.189740846
M38: Hours of operation | O38: 10 pm until 6 am | Q38: 10 pm until 6 am | V38: Night distance rate ($/km) | Y38: =$AD38/AB38-1 -> 0.0233463035 | Z38: 0 | AB38: ='Inputs and assumptions'!C17 -> 2.57 | AC38: =Sim_template_201415!X38 -> 2.63 | AD38: =P36 -> 2.63
V39: Waiting time ($/hour when vehicle slower than 26km/hour) | Y39: =$AD39/AB39-1 -> 0.02495479204 | Z39: 0 | AB39: ='Inputs and assumptions'!C18 -> 55.3 | AC39: =Sim_template_201415!X39 -> 56.68 | AD39: =Q25 -> 56.68
V40: Booking fee ($/booking) | Y40: =$AD40/AB40-1 -> 0.04166666667 | Z40: 0 | AB40: ='Inputs and assumptions'!C19 -> 2.4 | AC40: =Sim_template_201415!X40 -> 2.5 | AD40: =Q29 -> 2.5
M41: Shifts that it applies
M42: (only applies during the hours specified above)
M43: Monday | N43: 3 am - 3 pm | O43: No | Q43: Yes
M44: Tuesday | N44: 3 am - 3 pm | O44: No | Q44: Yes
M45: Wednesday | N45: 3 am - 3 pm | O45: No | Q45: Yes
M46: Thursday | N46: 3 am - 3 pm | O46: No | Q46: Yes
M47: Friday | N47: 3 am - 3 pm | O47: No | Q47: Yes
M48: Saturday | N48: 3 am - 3 pm | O48: Yes | Q48: Yes
M49: Sunday | N49: 3 am - 3 pm | O49: Yes | Q49: Yes
M50: Monday | N50: 3 pm - 3 am | O50: No | Q50: Yes
M51: Tuesday | N51: 3 pm - 3 am | O51: No | Q51: Yes
M52: Wednesday | N52: 3 pm - 3 am | O52: No | Q52: Yes
M53: Thursday | N53: 3 pm - 3 am | O53: No | Q53: Yes
M54: Friday | N54: 3 pm - 3 am | O54: Yes | Q54: Yes
M55: Saturday | N55: 3 pm - 3 am | O55: Yes | Q55: Yes
M56: Sunday | N56: 3 pm - 3 am | O56: No | Q56: Yes
B62: MODEL OUTPUTS FOR EACH SHIFT
J63: Monday | K63: Tuesday | L63: Wednesday | M63: Thursday | N63: Friday | O63: Saturday | P63: Sunday | Q63: Monday | R63: Tuesday | S63: Wednesday | T63: Thursday | U63: Friday | V63: Saturday | W63: Sunday
J64: Day | K64: Day | L64: Day | M64: Day | N64: Day | O64: Day | P64: Day | Q64: Night | R64: Night | S64: Night | T64: Night | U64: Night | V64: Night | W64: Night
B65: Occupancy rate of taxis (time) | J65: =J69*J122/J68 -> 0.2896981607 | K65: 0.2860294241 | L65: 0.2916948154 | M65: 0.2999638733 | N65: 0.3102211519 | O65: 0.2738376005 | P65: 0.2695745091 | Q65: 0.2636060582 | R65: 0.2795360109 | S65: 0.308267259 | T65: 0.3440524529 | U65: 0.4255488133 | V65: 0.407187348 | W65: 0.284788488
B66: Average surplus accruing to shift (adjusted for distribution) | J66: =J76*J75+_xlfn.NORM.DIST(-1*(J74-100)/'Inputs and assumptions'!$C$59,0,1,FALSE)*'Inputs and assumptions'!$C$59/$H$75 -> 29.24913439 | K66: =K76*K75+_xlfn.NORM.DIST(-1*(K74-100)/'Inputs and assumptions'!$C$59,0,1,FALSE)*'Inputs and assumptions'!$C$59/$H$75 -> 27.43946551 | L66: =L76*L75+_xlfn.NORM.DIST(-1*(L74-100)/'Inputs and assumptions'!$C$59,0,1,FALSE)*'Inputs and assumptions'!$C$59/$H$75 -> 29.70618359 | M66: =M76*M75+_xlfn.NORM.DIST(-1*(M74-100)/'Inputs and assumptions'!$C$59,0,1,FALSE)*'Inputs and assumptions'!$C$59/$H$75 -> 32.52675749 | N66: =N76*N75+_xlfn.NORM.DIST(-1*(N74-100)/'Inputs and assumptions'!$C$59,0,1,FALSE)*'Inputs and assumptions'!$C$59/$H$75 -> 38.55612647 | O66: =O76*O75+_xlfn.NORM.DIST(-1*(O74-100)/'Inputs and assumptions'!$C$59,0,1,FALSE)*'Inputs and assumptions'!$C$59/$H$75 -> 14.69518676 | P66: =P76*P75+_xlfn.NORM.DIST(-1*(P74-100)/'Inputs and assumptions'!$C$59,0,1,FALSE)*'Inputs and assumptions'!$C$59/$H$75 -> 11.66010556 | Q66: =Q76*Q75+_xlfn.NORM.DIST(-1*(Q74-100)/'Inputs and assumptions'!$C$59,0,1,FALSE)*'Inputs and assumptions'!$C$59/$H$75 -> 14.82142278 | R66: =R76*R75+_xlfn.NORM.DIST(-1*(R74-100)/'Inputs and assumptions'!$C$59,0,1,FALSE)*'Inputs and assumptions'!$C$59/$H$75 -> 19.82225475 | S66: =S76*S75+_xlfn.NORM.DIST(-1*(S74-100)/'Inputs and assumptions'!$C$59,0,1,FALSE)*'Inputs and assumptions'!$C$59/$H$75 -> 30.83443396 | T66: =T76*T75+_xlfn.NORM.DIST(-1*(T74-100)/'Inputs and assumptions'!$C$59,0,1,FALSE)*'Inputs and assumptions'!$C$59/$H$75 -> 47.71432083 | U66: =U76*U75+_xlfn.NORM.DIST(-1*(U74-100)/'Inputs and assumptions'!$C$59,0,1,FALSE)*'Inputs and assumptions'!$C$59/$H$75 -> 96.95356888 | V66: =V76*V75+_xlfn.NORM.DIST(-1*(V74-100)/'Inputs and assumptions'!$C$59,0,1,FALSE)*'Inputs and assumptions'!$C$59/$H$75 -> 101.3786171 | W66: =W76*W75+_xlfn.NORM.DIST(-1*(W74-100)/'Inputs and assumptions'!$C$59,0,1,FALSE)*'Inputs and assumptions'!$C$59/$H$75 -> 8.469103529
B67: W | D67: Equilibrium waiting time | H67: Minutes, average | J67: =IF(J68=J$137,J136,IF('Inputs and assumptions'!$C$61="Flat",J139,J130)) -> 7.847571851 | K67: =IF(K68=K$137,K136,IF('Inputs and assumptions'!$C$61="Flat",K139,K130)) -> 7.748424127 | L67: =IF(L68=L$137,L136,IF('Inputs and assumptions'!$C$61="Flat",L139,L130)) -> 7.745393522 | M67: =IF(M68=M$137,M136,IF('Inputs and assumptions'!$C$61="Flat",M139,M130)) -> 7.575435881 | N67: =IF(N68=N$137,N136,IF('Inputs and assumptions'!$C$61="Flat",N139,N130)) -> 7.940962227 | O67: =IF(O68=O$137,O136,IF('Inputs and assumptions'!$C$61="Flat",O139,O130)) -> 9.818379684 | P67: =IF(P68=P$137,P136,IF('Inputs and assumptions'!$C$61="Flat",P139,P130)) -> 10.74143909 | Q67: =IF(Q68=Q$137,Q136,IF('Inputs and assumptions'!$C$61="Flat",Q139,Q130)) -> 8.625148899 | R67: =IF(R68=R$137,R136,IF('Inputs and assumptions'!$C$61="Flat",R139,R130)) -> 7.483102354 | S67: =IF(S68=S$137,S136,IF('Inputs and assumptions'!$C$61="Flat",S139,S130)) -> 7.512960507 | T67: =IF(T68=T$137,T136,IF('Inputs and assumptions'!$C$61="Flat",T139,T130)) -> 7.540110486 | U67: =IF(U68=U$137,U136,IF('Inputs and assumptions'!$C$61="Flat",U139,U130)) -> 8.081868237 | V67: =IF(V68=V$137,V136,IF('Inputs and assumptions'!$C$61="Flat",V139,V130)) -> 8.252585228 | W67: =IF(W68=W$137,W136,IF('Inputs and assumptions'!$C$61="Flat",W139,W130)) -> 10.88445711
B68: T | D68: Equilibrium number of taxis on the road | H68: Taxis on the road | J68: =IF('Inputs and assumptions'!$C$61="Flat",MIN(J140,J137),MIN(J131,J137)) -> 4441.692285 | K68: =IF('Inputs and assumptions'!$C$61="Flat",MIN(K140,K137),MIN(K131,K137)) -> 4475.411867 | L68: =IF('Inputs and assumptions'!$C$61="Flat",MIN(L140,L137),MIN(L131,L137)) -> 4512.973665 | M68: =IF('Inputs and assumptions'!$C$61="Flat",MIN(M140,M137),MIN(M131,M137)) -> 4668.728596 | N68: =IF('Inputs and assumptions'!$C$61="Flat",MIN(N140,N137),MIN(N131,N137)) -> 4520.054851 | O68: =IF('Inputs and assumptions'!$C$61="Flat",MIN(O140,O137),MIN(O131,O137)) -> 3472.58705 | P68: =IF('Inputs and assumptions'!$C$61="Flat",MIN(P140,P137),MIN(P131,P137)) -> 3155.646344 | Q68: =IF('Inputs and assumptions'!$C$61="Flat",MIN(Q140,Q137),MIN(Q131,Q137)) -> 3898.072561 | R68: =IF('Inputs and assumptions'!$C$61="Flat",MIN(R140,R137),MIN(R131,R137)) -> 4592.326358 | S68: =IF('Inputs and assumptions'!$C$61="Flat",MIN(S140,S137),MIN(S131,S137)) -> 4764.06052 | T68: =IF('Inputs and assumptions'!$C$61="Flat",MIN(T140,T137),MIN(T131,T137)) -> 5005.873676 | U68: =IF('Inputs and assumptions'!$C$61="Flat",MIN(U140,U137),MIN(U131,U137)) -> 5332.88 | V68: =IF('Inputs and assumptions'!$C$61="Flat",MIN(V140,V137),MIN(V131,V137)) -> 5060.800597 | W68: =IF('Inputs and assumptions'!$C$61="Flat",MIN(W140,W137),MIN(W131,W137)) -> 3180.427058
B69: Q | D69: Equilibrium demand | H69: Occupied kilometres | J69: =IF(J68=J$137,J135,IF('Inputs and assumptions'!$C$61="Flat",J138,J129)) -> 411760.0273 | K69: =IF(K68=K$137,K135,IF('Inputs and assumptions'!$C$61="Flat",K138,K129)) -> 409631.8332 | L69: =IF(L68=L$137,L135,IF('Inputs and assumptions'!$C$61="Flat",L138,L129)) -> 421251.5264 | M69: =IF(M68=M$137,M135,IF('Inputs and assumptions'!$C$61="Flat",M138,M129)) -> 448143.9722 | N69: =IF(N68=N$137,N135,IF('Inputs and assumptions'!$C$61="Flat",N138,N129)) -> 448709.3193 | O69: =IF(O68=O$137,O135,IF('Inputs and assumptions'!$C$61="Flat",O138,O129)) -> 304295.9697 | P69: =IF(P68=P$137,P135,IF('Inputs and assumptions'!$C$61="Flat",P138,P129)) -> 272218.1805 | Q69: =IF(Q68=Q$137,Q135,IF('Inputs and assumptions'!$C$61="Flat",Q138,Q129)) -> 328817.7736 | R69: =IF(R68=R$137,R135,IF('Inputs and assumptions'!$C$61="Flat",R138,R129)) -> 410790.5891 | S69: =IF(S68=S$137,S135,IF('Inputs and assumptions'!$C$61="Flat",S138,S129)) -> 469953.2411 | T69: =IF(T68=T$137,T135,IF('Inputs and assumptions'!$C$61="Flat",T138,T129)) -> 551130.5975 | U69: =IF(U68=U$137,U135,IF('Inputs and assumptions'!$C$61="Flat",U138,U129)) -> 726208.2417 | V69: =IF(V68=V$137,V135,IF('Inputs and assumptions'!$C$61="Flat",V138,V129)) -> 659422.0717 | W69: =IF(W68=W$137,W135,IF('Inputs and assumptions'!$C$61="Flat",W138,W129)) -> 289839.6842
B71: Revenue per taxi (excluding GST) | J71: =J69*J117/J68 -> 235.9339241 | K71: 232.9460576 | L71: 237.5600254 | M71: 244.2944531 | N71: 252.6481133 | O71: 225.5355606 | P71: 222.0244332 | Q71: 218.4511247 | R71: 231.6523239 | S71: 255.4619947 | T71: 285.1172913 | U71: 374.3910006 | V71: 373.4855772 | W71: 236.0050673
B72: Cost per taxi | J72: =J119+J120*J68+J118*J69/J68 -> 215.9680142 | K72: 215.7046591 | L72: 216.9180361 | M72: 219.5974259 | N72: 219.844144 | O72: 225.5355607 | P72: 222.0244333 | Q72: 218.4511248 | R72: 227.1606368 | S72: 233.1453125 | T72: 240.8505559 | U72: 277.1250569 | V72: 271.8394381 | W72: 236.0050673
B73: Share of taxis on the road | H73: % | J73: =J68/('Base model'!J6+$F$13)*100 -> 82.85193593 | K73: =K68/('Base model'!K6+$F$13)*100 -> 83.48091526 | L73: =L68/('Base model'!L6+$F$13)*100 -> 84.18156435 | M73: =M68/('Base model'!M6+$F$13)*100 -> 87.08689789 | N73: =N68/('Base model'!N6+$F$13)*100 -> 84.3136514 | O73: =O68/('Base model'!O6+$F$13)*100 -> 64.77498695 | P73: =P68/('Base model'!P6+$F$13)*100 -> 58.86301704 | Q73: =Q68/('Base model'!Q6+$F$13+$F$15)*100 -> 65.05461551 | R73: =R68/('Base model'!R6+$F$13+$F$15)*100 -> 76.64096058 | S73: =S68/('Base model'!S6+$F$13+$F$15)*100 -> 79.50701803 | T73: =T68/('Base model'!T6+$F$13+$F$15)*100 -> 83.54261809 | U73: =U68/('Base model'!U6+$F$13+$F$15)*100 -> 89 | V73: =V68/('Base model'!V6+$F$13+$F$15)*100 -> 84.45928901 | W73: =W68/('Base model'!W6+$F$13+$F$15)*100 -> 53.07788815
B74: Free market taxis on the road as a proportion of maximum | H74: % | J74: =J131/J137*100 -> 110.9448698 | K74: 109.427034 | L74: 111.2086949 | M74: 113.1211502 | N74: 117.6789115 | O74: 85.23024598 | P74: 77.45133821 | Q74: 85.5981783 | R74: 102.3347772 | S74: 111.2508735 | T74: 121.4693116 | U74: 141.5011479 | V74: 144.1051489 | W74: 69.83932651
B75: Percentage of shifts where surplus accrues | H75: ='Base model'!C145 -> 0.5714894073 | J75: =(1-_xlfn.NORM.DIST(-1*(J74-100)/'Inputs and assumptions'!$C$59,0,1,TRUE)) -> 0.6689278975 | K75: =(1-_xlfn.NORM.DIST(-1*(K74-100)/'Inputs and assumptions'!$C$59,0,1,TRUE)) -> 0.646674531 | L75: =(1-_xlfn.NORM.DIST(-1*(L74-100)/'Inputs and assumptions'!$C$59,0,1,TRUE)) -> 0.672738426 | M75: =(1-_xlfn.NORM.DIST(-1*(M74-100)/'Inputs and assumptions'!$C$59,0,1,TRUE)) -> 0.6998046919 | N75: =(1-_xlfn.NORM.DIST(-1*(N74-100)/'Inputs and assumptions'!$C$59,0,1,TRUE)) -> 0.7598435771 | O75: =(1-_xlfn.NORM.DIST(-1*(O74-100)/'Inputs and assumptions'!$C$59,0,1,TRUE)) -> 0.2777104894 | P75: =(1-_xlfn.NORM.DIST(-1*(P74-100)/'Inputs and assumptions'!$C$59,0,1,TRUE)) -> 0.1840027354 | Q75: =(1-_xlfn.NORM.DIST(-1*(Q74-100)/'Inputs and assumptions'!$C$59,0,1,TRUE)) -> 0.2826566633 | R75: =(1-_xlfn.NORM.DIST(-1*(R74-100)/'Inputs and assumptions'!$C$59,0,1,TRUE)) -> 0.5371323803 | S75: =(1-_xlfn.NORM.DIST(-1*(S74-100)/'Inputs and assumptions'!$C$59,0,1,TRUE)) -> 0.6733459756 | T75: =(1-_xlfn.NORM.DIST(-1*(T74-100)/'Inputs and assumptions'!$C$59,0,1,TRUE)) -> 0.8043119704 | U75: =(1-_xlfn.NORM.DIST(-1*(U74-100)/'Inputs and assumptions'!$C$59,0,1,TRUE)) -> 0.9512261499 | V75: =(1-_xlfn.NORM.DIST(-1*(V74-100)/'Inputs and assumptions'!$C$59,0,1,TRUE)) -> 0.9608656121 | W75: =(1-_xlfn.NORM.DIST(-1*(W74-100)/'Inputs and assumptions'!$C$59,0,1,TRUE)) -> 0.1142731663
B76: Surplus per taxi | J76: =J71-J72 -> 19.96590984 | K76: 17.24139849 | L76: 20.64198938 | M76: 24.69702715 | N76: 32.80396922 | O76: -6.169810263e-08 | P76: -6.609704428e-08 | Q76: -5.453517815e-08 | R76: 4.491687156 | S76: 22.31668224 | T76: 44.26673543 | U76: 97.26594365 | V76: 101.6461391 | W76: 2.510375907e-09
B77: Surplus (basic) | H77: $/taxi | J77: =SUMPRODUCT(J73:W73,J76:W76)*365/7/100 -> 17106.08767
B78: Surplus accounting for shift variation | H78: $/taxi | J78: =SUMPRODUCT(J73:W73,J66:W66)*365/7/100 -> 21638.40518
B79: Revenue per taxi (including GST) | J79: =J71*$D$124 -> 259.5273165 | K79: 256.2406634 | L79: 261.316028 | M79: 268.7238984 | N79: 277.9129246 | O79: 248.0891166 | P79: 244.2268765 | Q79: 240.2962372 | R79: 254.8175563 | S79: 281.0081942 | T79: 313.6290205 | U79: 411.8301006 | V79: 410.8341349 | W79: 259.605574
B80: Occupied kms per shift | J80: =J71/J117 -> 92.70341141 | K80: 91.5294157 | L80: 93.34234092 | M80: 95.98843947 | N80: 99.27076862 | O80: 87.62803215 | P80: 86.26384291 | Q80: 84.35393864 | R80: 89.4515235 | S80: 98.6455229 | T80: 110.0967849 | U80: 136.1756203 | V80: 130.2999514 | W80: 91.13231617
B82: Difference in revenue per taxi per shift (nominal) | J82: =J79-'Base model'!J149 -> -7.893907423 | K82: =K79-'Base model'!K149 -> -7.796088915 | L82: =L79-'Base model'!L149 -> -7.978705942 | M82: =M79-'Base model'!M149 -> -8.280758533 | N82: =N79-'Base model'!N149 -> -8.472982695 | O82: =O79-'Base model'!O149 -> 2.667101549 | P82: =P79-'Base model'!P149 -> 2.7317571 | Q82: =Q79-'Base model'!Q149 -> 2.659302455 | R82: =R79-'Base model'!R149 -> -20.24188145 | S82: =S79-'Base model'!S149 -> -22.35367989 | T82: =T79-'Base model'!T149 -> -25.00709051 | U82: =U79-'Base model'!U149 -> -26.57204415 | V82: =V79-'Base model'!V149 -> -23.51334568 | W82: =W79-'Base model'!W149 -> 3.168609477
B83: Difference in costs per taxi per shift (nominal) | J83: =J72-'Base model'!J140 -> 2.911683041 | K83: =K72-'Base model'!K140 -> 2.874473066 | L83: =L72-'Base model'!L140 -> 2.926994967 | M83: =M72-'Base model'!M140 -> 2.998097838 | N83: =N72-'Base model'!N140 -> 3.114848235 | O83: =O72-'Base model'!O140 -> 2.424637833 | P83: =P72-'Base model'!P140 -> 2.483415611 | Q83: =Q72-'Base model'!Q140 -> 2.41754774 | R83: =R72-'Base model'!R140 -> 3.267771906 | S83: =S72-'Base model'!S140 -> 3.443227099 | T83: =T72-'Base model'!T140 -> 3.672666975 | U83: =U72-'Base model'!U140 -> 2.232808555 | V83: =V72-'Base model'!V140 -> 1.318395961 | W83: =W72-'Base model'!W140 -> 2.880554068
B85: Difference in surplus per taxi (accruing to the licence owner) | J85: =J76-'Base model'!J141 -> -10.08796252 | K85: =K76-'Base model'!K141 -> -9.961826625 | L85: =L76-'Base model'!L141 -> -10.18036401 | M85: =M76-'Base model'!M141 -> -10.52606014 | N85: =N76-'Base model'!N141 -> -10.81755978 | O85: =O76-'Base model'!O141 -> -6.171080713e-08 | P85: =P76-'Base model'!P141 -> -6.610477499e-08 | Q85: =Q76-'Base model'!Q141 -> -5.453640028e-08 | R85: =R76-'Base model'!R141 -> -21.66948232 | S85: =S76-'Base model'!S141 -> -23.76475427 | T85: =T76-'Base model'!T141 -> -26.40638562 | U85: =U76-'Base model'!U141 -> -26.38921232 | V85: =V76-'Base model'!V141 -> -22.69416476 | W85: =W76-'Base model'!W141 -> 2.510375907e-09
B86: Difference in the number of taxis on the road | J86: =J68-'Base model'!J132 -> 0 | K86: =K68-'Base model'!K132 -> 0 | L86: =L68-'Base model'!L132 -> 0 | M86: =M68-'Base model'!M132 -> 0 | N86: =N68-'Base model'!N132 -> 0 | O86: =O68-'Base model'!O132 -> -164.3444536 | P86: =P68-'Base model'!P132 -> -152.9071388 | Q86: =Q68-'Base model'!Q132 -> -196.0516479 | R86: =R68-'Base model'!R132 -> 264.411314 | S86: =S68-'Base model'!S132 -> 274.2992122 | T86: =T68-'Base model'!T132 -> 288.2220324 | U86: =U68-'Base model'!U132 -> 307.05 | V86: =V68-'Base model'!V132 -> 291.3845471 | W86: =W68-'Base model'!W132 -> -186.996919
B87: Additional taxis on the road | W87: =W86/('Base model'!W6+$F$13+$F$15) -> -0.03120776351
K88: Revenue per taxi
B110: CALIBRATION OF MODEL PARAMETERS
B111: Day | D111: Description | H111: Unit | J111: Monday | K111: Tuesday | L111: Wednesday | M111: Thursday | N111: Friday | O111: Saturday | P111: Sunday | Q111: Monday | R111: Tuesday | S111: Wednesday | T111: Thursday | U111: Friday | V111: Saturday | W111: Sunday
B112: Shift | J112: Day | K112: Day | L112: Day | M112: Day | N112: Day | O112: Day | P112: Day | Q112: Night | R112: Night | S112: Night | T112: Night | U112: Night | V112: Night | W112: Night
D114: Demand intercept with y axis | H114: Kms occupied | J114: =Sim_template_201415!J102*(1+$H$21) -> 750754.6418 | K114: =Sim_template_201415!K102*(1+$H$21) -> 745474.7778 | L114: =Sim_template_201415!L102*(1+$H$21) -> 766577.1462 | M114: =Sim_template_201415!M102*(1+$H$21) -> 812903.9058 | N114: =Sim_template_201415!N102*(1+$H$21) -> 821005.5818 | O114: =Sim_template_201415!O102*(1+$H$21) -> 582039.9533 | P114: =Sim_template_201415!P102*(1+$H$21) -> 530527.6125 | Q114: =Sim_template_201415!Q102*(1+$H$21) -> 612163.2256 | R114: =Sim_template_201415!R102*(1+$H$21) -> 748363.2967 | S114: =Sim_template_201415!S102*(1+$H$21) -> 856624.1995 | T114: =Sim_template_201415!T102*(1+$H$21) -> 1005106.135 | U114: =Sim_template_201415!U102*(1+$H$21) -> 1351981.545 | V114: =Sim_template_201415!V102*(1+$H$21) -> 1246928.967 | W114: =Sim_template_201415!W102*(1+$H$21) -> 549010.5928
D115: Impact of price on demand kilometres | H115: Change in Q per extra dollar | J115: =Sim_template_201415!J103*(1+$H$21) -> 109156.5769 | K115: =Sim_template_201415!K103*(1+$H$21) -> 108388.9069 | L115: =Sim_template_201415!L103*(1+$H$21) -> 111457.1027 | M115: =Sim_template_201415!M103*(1+$H$21) -> 118192.8193 | N115: =Sim_template_201415!N103*(1+$H$21) -> 119622.7902 | O115: =Sim_template_201415!O103*(1+$H$21) -> 84804.83541 | P115: =Sim_template_201415!P103*(1+$H$21) -> 77314.33654 | Q115: =Sim_template_201415!Q103*(1+$H$21) -> 88385.83826 | R115: =Sim_template_201415!R103*(1+$H$21) -> 108050.7854 | S115: =Sim_template_201415!S103*(1+$H$21) -> 123681.7972 | T115: =Sim_template_201415!T103*(1+$H$21) -> 145120.0343 | U115: =Sim_template_201415!U103*(1+$H$21) -> 188111.9187 | V115: =Sim_template_201415!V103*(1+$H$21) -> 170004.9267 | W115: =Sim_template_201415!W103*(1+$H$21) -> 76970.22446
D116: Impact of waiting time on demand kilometres | H116: Change in Q per extra minute | J116: =Sim_template_201415!J104*(1+$H$21) -> 7796.898352 | K116: =Sim_template_201415!K104*(1+$H$21) -> 7742.064775 | L116: =Sim_template_201415!L104*(1+$H$21) -> 7961.221624 | M116: =Sim_template_201415!M104*(1+$H$21) -> 8442.344237 | N116: =Sim_template_201415!N104*(1+$H$21) -> 8544.485015 | O116: =Sim_template_201415!O104*(1+$H$21) -> 6057.488243 | P116: =Sim_template_201415!P104*(1+$H$21) -> 5522.45261 | Q116: =Sim_template_201415!Q104*(1+$H$21) -> 6313.274161 | R116: =Sim_template_201415!R104*(1+$H$21) -> 7717.91324 | S116: =Sim_template_201415!S104*(1+$H$21) -> 8834.414088 | T116: =Sim_template_201415!T104*(1+$H$21) -> 10365.71673 | U116: =Sim_template_201415!U104*(1+$H$21) -> 13436.56562 | V116: =Sim_template_201415!V104*(1+$H$21) -> 12143.20905 | W116: =Sim_template_201415!W104*(1+$H$21) -> 5497.873176
B117: P | D117: Price per kilometre of demand (excluding GST) | H117: $/km occupied (real 2012/13) | J117: =SUMPRODUCT(Sim_template_201516_onwards!D173:D177,Sim_template_201516_onwards!D204:D208)/Sim_template_201516_onwards!D186/'Base model'!$B$20/(1+$H$23)/(1+Sim_template_201415!$H$23) -> 2.545040366 | K117: =SUMPRODUCT(Sim_template_201516_onwards!E173:E177,Sim_template_201516_onwards!E204:E208)/Sim_template_201516_onwards!E186/'Base model'!$B$20/(1+$H$23)/(1+Sim_template_201415!$H$23) -> 2.545040366 | L117: =SUMPRODUCT(Sim_template_201516_onwards!F173:F177,Sim_template_201516_onwards!F204:F208)/Sim_template_201516_onwards!F186/'Base model'!$B$20/(1+$H$23)/(1+Sim_template_201415!$H$23) -> 2.545040366 | M117: =SUMPRODUCT(Sim_template_201516_onwards!G173:G177,Sim_template_201516_onwards!G204:G208)/Sim_template_201516_onwards!G186/'Base model'!$B$20/(1+$H$23)/(1+Sim_template_201415!$H$23) -> 2.545040366 | N117: =SUMPRODUCT(Sim_template_201516_onwards!H173:H177,Sim_template_201516_onwards!H204:H208)/Sim_template_201516_onwards!H186/'Base model'!$B$20/(1+$H$23)/(1+Sim_template_201415!$H$23) -> 2.545040366 | O117: =SUMPRODUCT(Sim_template_201516_onwards!I173:I177,Sim_template_201516_onwards!I204:I208)/Sim_template_201516_onwards!I186/'Base model'!$B$20/(1+$H$23)/(1+Sim_template_201415!$H$23) -> 2.573783241 | P117: =SUMPRODUCT(Sim_template_201516_onwards!J173:J177,Sim_template_201516_onwards!J204:J208)/Sim_template_201516_onwards!J186/'Base model'!$B$20/(1+$H$23)/(1+Sim_template_201415!$H$23) -> 2.573783241 | Q117: =SUMPRODUCT(Sim_template_201516_onwards!K173:K177,Sim_template_201516_onwards!K204:K208)/Sim_template_201516_onwards!K186/'Base model'!$B$20/(1+$H$23)/(1+Sim_template_201415!$H$23) -> 2.589696797 | R117: =SUMPRODUCT(Sim_template_201516_onwards!L173:L177,Sim_template_201516_onwards!L204:L208)/Sim_template_201516_onwards!L186/'Base model'!$B$20/(1+$H$23)/(1+Sim_template_201415!$H$23) -> 2.589696797 | S117: =SUMPRODUCT(Sim_template_201516_onwards!M173:M177,Sim_template_201516_onwards!M204:M208)/Sim_template_201516_onwards!M186/'Base model'!$B$20/(1+$H$23)/(1+Sim_template_201415!$H$23) -> 2.589696797 | T117: =SUMPRODUCT(Sim_template_201516_onwards!N173:N177,Sim_template_201516_onwards!N204:N208)/Sim_template_201516_onwards!N186/'Base model'!$B$20/(1+$H$23)/(1+Sim_template_201415!$H$23) -> 2.589696797 | U117: =SUMPRODUCT(Sim_template_201516_onwards!O173:O177,Sim_template_201516_onwards!O204:O208)/Sim_template_201516_onwards!O186/'Base model'!$B$20/(1+$H$23)/(1+Sim_template_201415!$H$23) -> 2.749324731 | V117: =SUMPRODUCT(Sim_template_201516_onwards!P173:P177,Sim_template_201516_onwards!P204:P208)/Sim_template_201516_onwards!P186/'Base model'!$B$20/(1+$H$23)/(1+Sim_template_201415!$H$23) -> 2.866352391 | W117: =SUMPRODUCT(Sim_template_201516_onwards!Q173:Q177,Sim_template_201516_onwards!Q204:Q208)/Sim_template_201516_onwards!Q186/'Base model'!$B$20/(1+$H$23)/(1+Sim_template_201415!$H$23) -> 2.589696797
B118: c | D118: Variable cost | H118: $/km occupied | J118: =Sim_template_201415!J106*(1+$H$25) -> 0.4828223323 | K118: =Sim_template_201415!K106*(1+$H$25) -> 0.4828223323 | L118: =Sim_template_201415!L106*(1+$H$25) -> 0.4828223323 | M118: =Sim_template_201415!M106*(1+$H$25) -> 0.4828223323 | N118: =Sim_template_201415!N106*(1+$H$25) -> 0.4828223323 | O118: =Sim_template_201415!O106*(1+$H$25) -> 0.4828223323 | P118: =Sim_template_201415!P106*(1+$H$25) -> 0.4828223323 | Q118: =Sim_template_201415!Q106*(1+$H$25) -> 0.4828223323 | R118: =Sim_template_201415!R106*(1+$H$25) -> 0.4828223323 | S118: =Sim_template_201415!S106*(1+$H$25) -> 0.4828223323 | T118: =Sim_template_201415!T106*(1+$H$25) -> 0.4828223323 | U118: =Sim_template_201415!U106*(1+$H$25) -> 0.4828223323 | V118: =Sim_template_201415!V106*(1+$H$25) -> 0.4828223323 | W118: =Sim_template_201415!W106*(1+$H$25) -> 0.4828223323
D119: Fixed component of shift costs | H119: $/taxi/shift | J119: =Sim_template_201415!J107*(1+$H$25) -> 131.2335063 | K119: =Sim_template_201415!K107*(1+$H$25) -> 131.2335063 | L119: =Sim_template_201415!L107*(1+$H$25) -> 131.2335063 | M119: =Sim_template_201415!M107*(1+$H$25) -> 131.2335063 | N119: =Sim_template_201415!N107*(1+$H$25) -> 131.2335063 | O119: =Sim_template_201415!O107*(1+$H$25) -> 151.9735063 | P119: =Sim_template_201415!P107*(1+$H$25) -> 151.9735063 | Q119: =Sim_template_201415!Q107*(1+$H$25) -> 142.6405063 | R119: =Sim_template_201415!R107*(1+$H$25) -> 142.6405063 | S119: =Sim_template_201415!S107*(1+$H$25) -> 142.6405063 | T119: =Sim_template_201415!T107*(1+$H$25) -> 142.6405063 | U119: =Sim_template_201415!U107*(1+$H$25) -> 163.3805063 | V119: =Sim_template_201415!V107*(1+$H$25) -> 163.3805063 | W119: =Sim_template_201415!W107*(1+$H$25) -> 163.3805063
D120: Variable component of fixed costs | H120: $/additional taxi per shift | J120: =Sim_template_201415!J108*(1+$H$25) -> 0.009 | K120: =Sim_template_201415!K108*(1+$H$25) -> 0.009 | L120: =Sim_template_201415!L108*(1+$H$25) -> 0.009 | M120: =Sim_template_201415!M108*(1+$H$25) -> 0.009 | N120: =Sim_template_201415!N108*(1+$H$25) -> 0.009 | O120: =Sim_template_201415!O108*(1+$H$25) -> 0.009 | P120: =Sim_template_201415!P108*(1+$H$25) -> 0.009 | Q120: =Sim_template_201415!Q108*(1+$H$25) -> 0.009 | R120: =Sim_template_201415!R108*(1+$H$25) -> 0.009 | S120: =Sim_template_201415!S108*(1+$H$25) -> 0.009 | T120: =Sim_template_201415!T108*(1+$H$25) -> 0.009 | U120: =Sim_template_201415!U108*(1+$H$25) -> 0.009 | V120: =Sim_template_201415!V108*(1+$H$25) -> 0.009 | W120: =Sim_template_201415!W108*(1+$H$25) -> 0.009
D121: Waiting time constant | H121: Unit | J121: ='Base model'!J17 -> 24758.6356 | K121: ='Base model'!K17 -> 24758.6356 | L121: ='Base model'!L17 -> 24758.6356 | M121: ='Base model'!M17 -> 24758.6356 | N121: ='Base model'!N17 -> 24758.6356 | O121: ='Base model'!O17 -> 24758.6356 | P121: ='Base model'!P17 -> 24758.6356 | Q121: ='Base model'!Q17 -> 24758.6356 | R121: ='Base model'!R17 -> 24758.6356 | S121: ='Base model'!S17 -> 24758.6356 | T121: ='Base model'!T17 -> 24758.6356 | U121: ='Base model'!U17 -> 24758.6356 | V121: ='Base model'!V17 -> 24758.6356 | W121: ='Base model'!W17 -> 24758.6356
D122: Constant to link occupied taxi kms to occupied taxis | H122: Unit | J122: ='Base model'!J18 -> 0.003125 | K122: ='Base model'!K18 -> 0.003125 | L122: ='Base model'!L18 -> 0.003125 | M122: ='Base model'!M18 -> 0.003125 | N122: ='Base model'!N18 -> 0.003125 | O122: ='Base model'!O18 -> 0.003125 | P122: ='Base model'!P18 -> 0.003125 | Q122: ='Base model'!Q18 -> 0.003125 | R122: ='Base model'!R18 -> 0.003125 | S122: ='Base model'!S18 -> 0.003125 | T122: ='Base model'!T18 -> 0.003125 | U122: ='Base model'!U18 -> 0.003125 | V122: ='Base model'!V18 -> 0.003125 | W122: ='Base model'!W18 -> 0.003125
B124: GST adjustor | D124: =(1+'Inputs and assumptions'!$C$20) -> 1.1
J127: Monday | K127: Tuesday | L127: Wednesday | M127: Thursday | N127: Friday | O127: Saturday | P127: Sunday | Q127: Monday | R127: Tuesday | S127: Wednesday | T127: Thursday | U127: Friday | V127: Saturday | W127: Sunday
B128: SIMULATION MODEL | J128: Day | K128: Day | L128: Day | M128: Day | N128: Day | O128: Day | P128: Day | Q128: Night | R128: Night | S128: Night | T128: Night | U128: Night | V128: Night | W128: Night
B129: Q* | D129: Free entry demand | H129: Occupied kilometres | J129: 419571.5053 | K129: 416320.708 | L129: 429311.6067 | M129: 457816.3313 | N129: 461974.0523 | O129: 304295.9697 | P129: 272218.1805 | Q129: 328817.7736 | R129: 412515.0518 | S129: 478822.4125 | T129: 569613.0563 | U129: 770073.8376 | V129: 700720.1822 | W129: 289839.6842
B130: W* | D130: Free entry waiting time | H130: Minutes, average | J130: 6.845701917 | K130: 6.884458891 | L130: 6.732975993 | M130: 6.429739991 | N130: 6.388530104 | O130: 9.818379684 | P130: 10.74143909 | Q130: 8.625148899 | R130: 7.259665963 | S130: 6.509026205 | T130: 5.75707326 | U130: 4.817224794 | V130: 4.851662922 | W130: 10.88445711
B131: T* | D131: Free entry number of taxis on the road | H131: Taxis on the road | J131: 4927.829721 | K131: 4897.310464 | L131: 5018.819113 | M131: 5281.319489 | N131: 5319.151348 | O131: 3472.58705 | P131: 3155.646344 | Q131: 3898.072561 | R131: 4699.546945 | S131: 5300.058942 | T131: 6080.600291 | U131: 7546.086414 | V131: 7292.874238 | W131: 3180.427058
B132: Q* zero condition | D132: Zero condition to solve for free entry | H132: Occupied kilometres | J132: =J114-J115*J117-J116*J130-J129 -> 0 | K132: =K114-K115*K117-K116*K130-K129 -> 8.149072528e-10 | L132: =L114-L115*L117-L116*L130-L129 -> 7.334165275e-09 | M132: 5.995389074e-09 | N132: -2.037268132e-09 | O132: 3.899913281e-09 | P132: -7.566995919e-10 | Q132: 4.773028195e-09 | R132: -5.529727787e-09 | S132: 6.635673344e-09 | T132: 3.958120942e-09 | U132: -5.471520126e-09 | V132: 2.677552402e-09 | W132: 4.656612873e-10
B133: W* zero condition | D133: Zero condition to solve for free entry | H133: Minutes, average | J133: =J121/(J131-J129*J122)-J130 -> -1.956383802e-07 | K133: =K121/(K131-K129*K122)-K130 -> -1.995557994e-07 | L133: -1.845246729e-07 | M133: -1.566881593e-07 | N133: -1.547493236e-07 | O133: -3.063783698e-07 | P133: -2.149754046e-07 | Q133: -3.832497999e-07 | R133: -2.254953664e-07 | S133: -1.565652461e-07 | T133: -1.022315796e-07 | U133: -5.194860453e-08 | V133: -5.638437983e-08 | W133: -8.443953092e-09
B134: T* zero condition | D134: Zero condition to solve for free entry | H134: Taxis on the road | J134: =(-J119+SQRT(J119^2+4*J120*(J117-J118)*J129))/(2*J120)-J131 -> -9.994855645e-07 | K134: =(-K119+SQRT(K119^2+4*K120*(K117-K118)*K129))/(2*K120)-K131 -> -9.994737411e-07 | L134: -9.995146684e-07 | M134: -9.995865184e-07 | N134: -9.995901564e-07 | O134: -9.989371392e-07 | P134: -9.990594663e-07 | Q134: -9.989489627e-07 | R134: -9.994028005e-07 | S134: -9.99585609e-07 | T134: -9.997229427e-07 | U134: -9.998593669e-07 | V134: -9.998611858e-07 | W134: 3.618697519e-08
B135: Qbar | D135: Fixed taxi numbers demand | H135: Occupied kilometres | J135: =((J122*(J114-J115*J117)+J137)-SQRT((J122*(J114-J115*J117)+J137)^2-4*J122*(J137*(J114-J115*J117)-J116*J121)))/(2*J122) -> 411760.0273 | K135: 409631.8332 | L135: 421251.5264 | M135: 448143.9722 | N135: 448709.3193 | O135: 315223.8194 | P135: 288445.622 | Q135: 338559.1714 | R135: 410790.5891 | S135: 469953.2411 | T135: 551130.5975 | U135: 726208.2417 | V135: 659422.0717 | W135: 311658.608
B136: Wbar | D136: Fixed taxi numbers waiting time | H136: Minutes, average | J136: =J121/(J137-J135*J122) -> 7.847571851 | K136: 7.748424127 | L136: 7.745393522 | M136: 7.575435881 | N136: 7.940962227 | O136: 8.014356422 | P136: 7.802990777 | Q136: 7.082146406 | R136: 7.483102354 | S136: 7.512960507 | T136: 7.540110486 | U136: 8.081868237 | V136: 8.252585228 | W136: 6.915845404
B137: Tbar | D137: Fixed taxi numbers | H137: Taxis on the road | J137: ='Base model'!J8/'Base model'!J6*('Base model'!J6+$F$13) -> 4441.692285 | K137: ='Base model'!K8/'Base model'!K6*('Base model'!K6+$F$13) -> 4475.411867 | L137: ='Base model'!L8/'Base model'!L6*('Base model'!L6+$F$13) -> 4512.973665 | M137: ='Base model'!M8/'Base model'!M6*('Base model'!M6+$F$13) -> 4668.728596 | N137: ='Base model'!N8/'Base model'!N6*('Base model'!N6+$F$13) -> 4520.054851 | O137: ='Base model'!O8/'Base model'!O6*('Base model'!O6+$F$13) -> 4074.36 | P137: ='Base model'!P8/'Base model'!P6*('Base model'!P6+$F$13) -> 4074.36 | Q137: ='Base model'!Q8/'Base model'!Q6*('Base model'!Q6+$F$13+$F$15) -> 4553.92 | R137: ='Base model'!R8/'Base model'!R6*('Base model'!R6+$F$13+$F$15) -> 4592.326358 | S137: ='Base model'!S8/'Base model'!S6*('Base model'!S6+$F$13+$F$15) -> 4764.06052 | T137: ='Base model'!T8/'Base model'!T6*('Base model'!T6+$F$13+$F$15) -> 5005.873676 | U137: ='Base model'!U8/'Base model'!U6*('Base model'!U6+$F$13+$F$15) -> 5332.88 | V137: ='Base model'!V8/'Base model'!V6*('Base model'!V6+$F$13+$F$15) -> 5060.800597 | W137: ='Base model'!W8/'Base model'!W6*('Base model'!W6+$F$13+$F$15) -> 4553.92
B138: Q*_flat | D138: Free entry demand, flat cost curve | H138: Occupied kilometres | J138: =(J114-J115*J117+SQRT((J114-J115*J117)^2-4*J116*J121/((J117-J118)/J119-J122)))/2 -> 437932.3679 | K138: 434584.6767 | L138: 447962.5126 | M138: 477313.4944 | N138: 481673.6747 | O138: 319647.9876 | P138: 286686.9464 | Q138: 344285.1019 | R138: 430422.8085 | S138: 498660.6267 | T138: 592067.5749 | U138: 795910.453 | V138: 723380.2769 | W138: 303826.9666
B139: W*_flat | D139: Free entry waiting time, flat cost curve | H139: Minutes, average | J139: =J121/((J117-J118)/J119-J122)/J138 -> 4.490808758 | K139: 4.525402341 | L139: 4.390256903 | M139: 4.120291038 | N139: 4.082993562 | O139: 7.283992939 | P139: 8.121449943 | Q139: 6.175179537 | R139: 4.939381172 | S139: 4.263465376 | T139: 3.590844029 | U139: 2.894366223 | V139: 2.985591556 | W139: 8.340331055
B140: T*_flat | D140: Free entry number of taxis on the road, flat cost curve | H140: Taxis on the road | J140: =(J117-J118)*J138/J119 -> 6881.718333 | K140: 6829.112337 | L140: 7039.33315 | M140: 7500.55777 | N140: 7569.074133 | O140: 4397.947134 | P140: 3944.445399 | Q140: 5085.270015 | R140: 6357.568741 | S140: 7365.476806 | T140: 8745.146011 | U140: 11041.29857 | V140: 10553.27023 | W140: 3918.002778
B144: Difference between free entry and actual (for info) | J144: =J131-J137 -> 486.1374354 | K144: =K131-K137 -> 421.8985973 | L144: 505.8454479 | M144: 612.5908931 | N144: 799.0964969 | O144: -601.7729498 | P144: =P131-P137 -> -918.7136563 | Q144: -655.8474387 | R144: 107.2205876 | S144: 535.9984221 | T144: 1074.726615 | U144: 2213.206414 | V144: 2232.073641 | W144: -1373.492942
B148: Baseline data
B149: Baseline taxis on the road | H149: No. | J149: ='Base model'!J132 -> 4441.692285 | K149: ='Base model'!K132 -> 4475.411867 | L149: ='Base model'!L132 -> 4512.973665 | M149: ='Base model'!M132 -> 4668.728596 | N149: ='Base model'!N132 -> 4520.054851 | O149: ='Base model'!O132 -> 3636.931504 | P149: ='Base model'!P132 -> 3308.553483 | Q149: ='Base model'!Q132 -> 4094.124209 | R149: ='Base model'!R132 -> 4327.915044 | S149: ='Base model'!S132 -> 4489.761308 | T149: ='Base model'!T132 -> 4717.651643 | U149: ='Base model'!U132 -> 5025.83 | V149: ='Base model'!V132 -> 4769.41605 | W149: ='Base model'!W132 -> 3367.423977
B150: Baseline revenue per taxi | H150: $/taxi | J150: ='Base model'!J149 -> 267.4212239 | K150: ='Base model'!K149 -> 264.0367523 | L150: ='Base model'!L149 -> 269.2947339 | M150: ='Base model'!M149 -> 277.0046569 | N150: ='Base model'!N149 -> 286.3859073 | O150: ='Base model'!O149 -> 245.4220151 | P150: ='Base model'!P149 -> 241.4951194 | Q150: ='Base model'!Q149 -> 237.6369348 | R150: ='Base model'!R149 -> 275.0594378 | S150: ='Base model'!S149 -> 303.3618741 | T150: ='Base model'!T149 -> 338.636111 | U150: ='Base model'!U149 -> 438.4021448 | V150: ='Base model'!V149 -> 434.3474806 | W150: ='Base model'!W149 -> 256.4369646
B151: Simulation revenue per taxi | H151: $/taxi | J151: =J79 -> 259.5273165 | K151: 256.2406634 | L151: 261.316028 | M151: 268.7238984 | N151: 277.9129246 | O151: 248.0891166 | P151: 244.2268765 | Q151: 240.2962372 | R151: 254.8175563 | S151: 281.0081942 | T151: 313.6290205 | U151: 411.8301006 | V151: 410.8341349 | W151: 259.605574
B152: Headings for charts | J152: Day | Q152: Night
J153: Monday | K153: Tuesday | L153: Wednesday | M153: Thursday | N153: Friday | O153: Saturday | P153: Sunday | Q153: Monday | R153: Tuesday | S153: Wednesday | T153: Thursday | U153: Friday | V153: Saturday | W153: Sunday
B154: Additional taxis on the road | H154: No. | I154: =B154 -> Additional taxis on the road | J154: =J68-J149 -> 0 | K154: 0 | L154: 0 | M154: 0 | N154: 0 | O154: -164.3444536 | P154: -152.9071388 | Q154: -196.0516479 | R154: 264.411314 | S154: 274.2992122 | T154: 288.2220324 | U154: 307.05 | V154: 291.3845471 | W154: -186.996919
B155: Proportion of taxis on the road 2011/12 | H155: % | I155: Proportion of taxis on the road 2011/12 | J155: ='Base model'!J142/100 -> 0.8285193593 | K155: ='Base model'!K142/100 -> 0.8348091526 | L155: ='Base model'!L142/100 -> 0.8418156435 | M155: ='Base model'!M142/100 -> 0.8708689789 | N155: ='Base model'!N142/100 -> 0.843136514 | O155: ='Base model'!O142/100 -> 0.6784054288 | P155: ='Base model'!P142/100 -> 0.6171523004 | Q155: ='Base model'!Q142/100 -> 0.7250087142 | R155: ='Base model'!R142/100 -> 0.7664096058 | S155: ='Base model'!S142/100 -> 0.7950701803 | T155: ='Base model'!T142/100 -> 0.8354261809 | U155: ='Base model'!U142/100 -> 0.89 | V155: ='Base model'!V142/100 -> 0.8445928901 | W155: ='Base model'!W142/100 -> 0.5963208743
B156: ="Proportion of taxis on the road "&I8 -> Proportion of taxis on the road | H156: % | I156: Proportion of taxis on the road | J156: =J73/100 -> 0.8285193593 | K156: 0.8348091526 | L156: 0.8418156435 | M156: 0.8708689789 | N156: 0.843136514 | O156: 0.6477498695 | P156: 0.5886301704 | Q156: 0.6505461551 | R156: 0.7664096058 | S156: 0.7950701803 | T156: 0.8354261809 | U156: 0.89 | V156: 0.8445928901 | W156: 0.5307788815
B159: Revenue | C159: 2014/15
C160: Revenue | D160: Revenue share
B161: Flagfall ($) | C161: =AC35*R187 -> 2984779.886 | D161: =C161/$C$167 -> 0.1578738246
B162: Night surcharge | C162: =AC36*R188 -> 253019.1255 | D162: 0.01338292891
B163: Standard kilometre charge ($/km) | C163: 8106387.653 | D163: 0.4287707876
B164: Night kilometre charge ($/km) | C164: 3068108.892 | D164: 0.1622813419
B165: Waiting time ($/hour when vehicle slower than 26km/hour) | C165: 4079261.63 | D165: 0.2157641969
B166: Booking fee ($/booking) | C166: 414552.7619 | D166: 0.02192692008
B167: Weighted average | C167: =SUM(C161:C166) -> 18906109.95 | D167: 1
B170: ="Fare setting for "&H8 -> Fare setting for 2017/18 | T170: DO NOT DELETE
B171: Fares | D171: Monday | E171: Tuesday | F171: Wednesday | G171: Thursday | H171: Friday | I171: Saturday | J171: Sunday | K171: Monday | L171: Tuesday | M171: Wednesday | N171: Thursday | O171: Friday | P171: Saturday | Q171: Sunday | T171: Yes
D172: Day | E172: Day | F172: Day | G172: Day | H172: Day | I172: Day | J172: Day | K172: Night | L172: Night | M172: Night | N172: Night | O172: Night | P172: Night | Q172: Night | T172: No
B173: Average flagfall ($) | D173: =IF(AND(O43="Yes", $O$38="5 pm until 5 am"), $Q$21+(1-'Inputs and assumptions'!D10)*Sim_template_201516_onwards!$O$34, IF(AND(O43="Yes", $O$38="10 pm until 6 am"), $Q$21+(1-'Inputs and assumptions'!D9)*Sim_template_201516_onwards!$O$34, IF(AND(O43="Yes", $O$38="12 am until 5 am"), $Q$21+(1-'Inputs and assumptions'!D11)*Sim_template_201516_onwards!$O$34, $Q$21))) -> 3.6 | E173: =IF(AND(O44="Yes", $O$38="5 pm until 5 am"), $Q$21+(1-'Inputs and assumptions'!E10)*Sim_template_201516_onwards!$O$34, IF(AND(O44="Yes", $O$38="10 pm until 6 am"), $Q$21+(1-'Inputs and assumptions'!E9)*Sim_template_201516_onwards!$O$34, IF(AND(O44="Yes", $O$38="12 am until 5 am"), $Q$21+(1-'Inputs and assumptions'!E11)*Sim_template_201516_onwards!$O$34, $Q$21))) -> 3.6 | F173: =IF(AND(O45="Yes", $O$38="5 pm until 5 am"), $Q$21+(1-'Inputs and assumptions'!F10)*Sim_template_201516_onwards!$O$34, IF(AND(O45="Yes", $O$38="10 pm until 6 am"), $Q$21+(1-'Inputs and assumptions'!F9)*Sim_template_201516_onwards!$O$34, IF(AND(O45="Yes", $O$38="12 am until 5 am"), $Q$21+(1-'Inputs and assumptions'!F11)*Sim_template_201516_onwards!$O$34, $Q$21))) -> 3.6 | G173: =IF(AND(O46="Yes", $O$38="5 pm until 5 am"), $Q$21+(1-'Inputs and assumptions'!G10)*Sim_template_201516_onwards!$O$34, IF(AND(O46="Yes", $O$38="10 pm until 6 am"), $Q$21+(1-'Inputs and assumptions'!G9)*Sim_template_201516_onwards!$O$34, IF(AND(O46="Yes", $O$38="12 am until 5 am"), $Q$21+(1-'Inputs and assumptions'!G11)*Sim_template_201516_onwards!$O$34, $Q$21))) -> 3.6 | H173: =IF(AND(O47="Yes", $O$38="5 pm until 5 am"), $Q$21+(1-'Inputs and assumptions'!H10)*Sim_template_201516_onwards!$O$34, IF(AND(O47="Yes", $O$38="10 pm until 6 am"), $Q$21+(1-'Inputs and assumptions'!H9)*Sim_template_201516_onwards!$O$34, IF(AND(O47="Yes", $O$38="12 am until 5 am"), $Q$21+(1-'Inputs and assumptions'!H11)*Sim_template_201516_onwards!$O$34, $Q$21))) -> 3.6 | I173: =IF(AND(O48="Yes", $O$38="5 pm until 5 am"), $Q$21+(1-'Inputs and assumptions'!I10)*Sim_template_201516_onwards!$O$34, IF(AND(O48="Yes", $O$38="10 pm until 6 am"), $Q$21+(1-'Inputs and assumptions'!I9)*Sim_template_201516_onwards!$O$34, IF(AND(O48="Yes", $O$38="12 am until 5 am"), $Q$21+(1-'Inputs and assumptions'!I11)*Sim_template_201516_onwards!$O$34, $Q$21))) -> 3.85 | J173: =IF(AND(O49="Yes", $O$38="5 pm until 5 am"), $Q$21+(1-'Inputs and assumptions'!J10)*Sim_template_201516_onwards!$O$34, IF(AND(O49="Yes", $O$38="10 pm until 6 am"), $Q$21+(1-'Inputs and assumptions'!J9)*Sim_template_201516_onwards!$O$34, IF(AND(O49="Yes", $O$38="12 am until 5 am"), $Q$21+(1-'Inputs and assumptions'!J11)*Sim_template_201516_onwards!$O$34, $Q$21))) -> 3.85 | K173: =IF(AND(O50="Yes", $O$38="5 pm until 5 am"), $Q$21+(1-'Inputs and assumptions'!K10)*Sim_template_201516_onwards!$O$34, IF(AND(O50="Yes", $O$38="10 pm until 6 am"), $Q$21+(1-'Inputs and assumptions'!K9)*Sim_template_201516_onwards!$O$34, IF(AND(O50="Yes", $O$38="12 am until 5 am"), $Q$21+(1-'Inputs and assumptions'!K11)*Sim_template_201516_onwards!$O$34, $Q$21))) -> 3.6 | L173: =IF(AND(O51="Yes", $O$38="5 pm until 5 am"), $Q$21+(1-'Inputs and assumptions'!L10)*Sim_template_201516_onwards!$O$34, IF(AND(O51="Yes", $O$38="10 pm until 6 am"), $Q$21+(1-'Inputs and assumptions'!L9)*Sim_template_201516_onwards!$O$34, IF(AND(O51="Yes", $O$38="12 am until 5 am"), $Q$21+(1-'Inputs and assumptions'!L11)*Sim_template_201516_onwards!$O$34, $Q$21))) -> 3.6 | M173: =IF(AND(O52="Yes", $O$38="5 pm until 5 am"), $Q$21+(1-'Inputs and assumptions'!M10)*Sim_template_201516_onwards!$O$34, IF(AND(O52="Yes", $O$38="10 pm until 6 am"), $Q$21+(1-'Inputs and assumptions'!M9)*Sim_template_201516_onwards!$O$34, IF(AND(O52="Yes", $O$38="12 am until 5 am"), $Q$21+(1-'Inputs and assumptions'!M11)*Sim_template_201516_onwards!$O$34, $Q$21))) -> 3.6 | N173: =IF(AND(O53="Yes", $O$38="5 pm until 5 am"), $Q$21+(1-'Inputs and assumptions'!N10)*Sim_template_201516_onwards!$O$34, IF(AND(O53="Yes", $O$38="10 pm until 6 am"), $Q$21+(1-'Inputs and assumptions'!N9)*Sim_template_201516_onwards!$O$34, IF(AND(O53="Yes", $O$38="12 am until 5 am"), $Q$21+(1-'Inputs and assumptions'!N11)*Sim_template_201516_onwards!$O$34, $Q$21))) -> 3.6 | O173: =IF(AND(O54="Yes", $O$38="5 pm until 5 am"), $Q$21+(1-'Inputs and assumptions'!O10)*Sim_template_201516_onwards!$O$34, IF(AND(O54="Yes", $O$38="10 pm until 6 am"), $Q$21+(1-'Inputs and assumptions'!O9)*Sim_template_201516_onwards!$O$34, IF(AND(O54="Yes", $O$38="12 am until 5 am"), $Q$21+(1-'Inputs and assumptions'!O11)*Sim_template_201516_onwards!$O$34, $Q$21))) -> 4.6 | P173: =IF(AND(O55="Yes", $O$38="5 pm until 5 am"), $Q$21+(1-'Inputs and assumptions'!P10)*Sim_template_201516_onwards!$O$34, IF(AND(O55="Yes", $O$38="10 pm until 6 am"), $Q$21+(1-'Inputs and assumptions'!P9)*Sim_template_201516_onwards!$O$34, IF(AND(O55="Yes", $O$38="12 am until 5 am"), $Q$21+(1-'Inputs and assumptions'!P11)*Sim_template_201516_onwards!$O$34, $Q$21))) -> 5.1 | Q173: =IF(AND(O56="Yes", $O$38="5 pm until 5 am"), $Q$21+(1-'Inputs and assumptions'!Q10)*Sim_template_201516_onwards!$O$34, IF(AND(O56="Yes", $O$38="10 pm until 6 am"), $Q$21+(1-'Inputs and assumptions'!Q9)*Sim_template_201516_onwards!$O$34, IF(AND(O56="Yes", $O$38="12 am until 5 am"), $Q$21+(1-'Inputs and assumptions'!Q11)*Sim_template_201516_onwards!$O$34, $Q$21))) -> 3.6
B174: Standard kilometre charge ($/km) | D174: =$Q$23 -> 2.189740846 | E174: 2.189740846 | F174: 2.189740846 | G174: 2.189740846 | H174: 2.189740846 | I174: 2.189740846 | J174: 2.189740846 | K174: 2.189740846 | L174: 2.189740846 | M174: 2.189740846 | N174: 2.189740846 | O174: 2.189740846 | P174: 2.189740846 | Q174: 2.189740846 | T174: DO NOT DELETE
B175: Night kilometre charge ($/km) | D175: =IF(Q43="No",Q23,IF(Q43="Yes",$P$36,"na")) -> 2.63 | E175: =IF(Q44="No",D174,IF(Q44="Yes",$P$36,"na")) -> 2.63 | F175: =IF(Q45="No",E174,IF(Q45="Yes",$P$36,"na")) -> 2.63 | G175: =IF(Q46="No",F174,IF(Q46="Yes",$P$36,"na")) -> 2.63 | H175: =IF(Q47="No",G174,IF(Q47="Yes",$P$36,"na")) -> 2.63 | I175: =IF(Q48="No",H174,IF(Q48="Yes",$P$36,"na")) -> 2.63 | J175: =IF(Q49="No",I174,IF(Q49="Yes",$P$36,"na")) -> 2.63 | K175: =IF(Q50="No",J174,IF(Q50="Yes",$P$36,"na")) -> 2.63 | L175: =IF(Q51="No",K174,IF(Q51="Yes",$P$36,"na")) -> 2.63 | M175: =IF(Q52="No",L174,IF(Q52="Yes",$P$36,"na")) -> 2.63 | N175: =IF(Q53="No",M174,IF(Q53="Yes",$P$36,"na")) -> 2.63 | O175: =IF(Q54="No",N174,IF(Q54="Yes",$P$36,"na")) -> 2.63 | P175: =IF(Q55="No",O174,IF(Q55="Yes",$P$36,"na")) -> 2.63 | Q175: =IF(Q56="No",P174,IF(Q56="Yes",$P$36,"na")) -> 2.63 | T175: 10 pm until 6 am
B176: Waiting time ($/hour when vehicle slower than 26km/hour) | D176: =$Q$25 -> 56.68 | E176: 56.68 | F176: 56.68 | G176: 56.68 | H176: 56.68 | I176: 56.68 | J176: 56.68 | K176: 56.68 | L176: 56.68 | M176: 56.68 | N176: 56.68 | O176: 56.68 | P176: 56.68 | Q176: 56.68 | T176: 5 pm until 5 am
B177: Booking fee ($/booking) | D177: =$Q$29 -> 2.5 | E177: 2.5 | F177: 2.5 | G177: 2.5 | H177: 2.5 | I177: 2.5 | J177: 2.5 | K177: 2.5 | L177: 2.5 | M177: 2.5 | N177: 2.5 | O177: 2.5 | P177: 2.5 | Q177: 2.5 | T177: 12 am until 5 am
B179: For fare goal seek | D179: =(Q17-Q8)*10000 -> 3.359459377e-06 | F179: Km threshold for waiting
F180: 2012/13
F181: =ROUND(AB39/AB37,0) -> 26
B183: Weights for fares
D184: Monday | E184: Tuesday | F184: Wednesday | G184: Thursday | H184: Friday | I184: Saturday | J184: Sunday | K184: Monday | L184: Tuesday | M184: Wednesday | N184: Thursday | O184: Friday | P184: Saturday | Q184: Sunday | R184: Total
D185: Day | E185: Day | F185: Day | G185: Day | H185: Day | I185: Day | J185: Day | K185: Night | L185: Night | M185: Night | N185: Night | O185: Night | P185: Night | Q185: Night
B186: Occupied kms | D186: ='Base model'!J9 -> 382718.9454 | E186: ='Base model'!K9 -> 380027.3817 | F186: ='Base model'!L9 -> 390784.9258 | G186: ='Base model'!M9 -> 414401.3346 | H186: ='Base model'!N9 -> 419415.022 | I186: ='Base model'!O9 -> 297338.1731 | J186: ='Base model'!P9 -> 271075.3871 | K186: ='Base model'!Q9 -> 315327.6217 | L186: ='Base model'!R9 -> 385484.7998 | M186: ='Base model'!S9 -> 441250.4054 | N186: ='Base model'!T9 -> 517734.0189 | O186: ='Base model'!U9 -> 682678.0371 | P186: ='Base model'!V9 -> 630901.6342 | Q186: ='Base model'!W9 -> 274600.9802
B187: Flagfall (no of trips) | D187: =D186/'Inputs and assumptions'!$C$44 -> 54674.13506 | E187: ='Base model'!K9/'Inputs and assumptions'!$C$44 -> 54289.62595 | F187: ='Base model'!L9/'Inputs and assumptions'!$C$44 -> 55826.41797 | G187: ='Base model'!M9/'Inputs and assumptions'!$C$44 -> 59200.19066 | H187: ='Base model'!N9/'Inputs and assumptions'!$C$44 -> 59916.43172 | I187: ='Base model'!O9/'Inputs and assumptions'!$C$44 -> 42476.88188 | J187: ='Base model'!P9/'Inputs and assumptions'!$C$44 -> 38725.0553 | K187: ='Base model'!Q9/'Inputs and assumptions'!$C$44 -> 45046.8031 | L187: ='Base model'!R9/'Inputs and assumptions'!$C$44 -> 55069.25712 | M187: ='Base model'!S9/'Inputs and assumptions'!$C$44 -> 63035.7722 | N187: ='Base model'!T9/'Inputs and assumptions'!$C$44 -> 73962.00271 | O187: ='Base model'!U9/'Inputs and assumptions'!$C$44 -> 97525.43387 | P187: ='Base model'!V9/'Inputs and assumptions'!$C$44 -> 90128.80489 | Q187: ='Base model'!W9/'Inputs and assumptions'!$C$44 -> 39228.71145 | R187: =SUM(D187:Q187) -> 829105.5239
B188: Night surcharge (no of trips) | I188: =I187*(1-'Inputs and assumptions'!I9) -> 4247.688188 | J188: =J187*(1-'Inputs and assumptions'!J9) -> 3872.50553 | O188: =O187*(1-'Inputs and assumptions'!O9) -> 39010.17355 | P188: =P187*(1-'Inputs and assumptions'!P9) -> 54077.28293 | R188: =SUM(D188:Q188) -> 101207.6502
B189: Standard kilometre charge (kms) | D189: =D186*'Inputs and assumptions'!D9*('Inputs and assumptions'!$C$52/'Inputs and assumptions'!$C$44) -> 288919.3498 | E189: =E186*'Inputs and assumptions'!E9*('Inputs and assumptions'!$C$52/'Inputs and assumptions'!$C$44) -> 286887.4545 | F189: =F186*'Inputs and assumptions'!F9*('Inputs and assumptions'!$C$52/'Inputs and assumptions'!$C$44) -> 295008.46 | G189: =G186*'Inputs and assumptions'!G9*('Inputs and assumptions'!$C$52/'Inputs and assumptions'!$C$44) -> 312836.7843 | H189: =H186*'Inputs and assumptions'!H9*('Inputs and assumptions'!$C$52/'Inputs and assumptions'!$C$44) -> 316621.68 | I189: =I186*'Inputs and assumptions'!I9*('Inputs and assumptions'!$C$52/'Inputs and assumptions'!$C$44) -> 224464.33 | J189: =J186*'Inputs and assumptions'!J9*('Inputs and assumptions'!$C$52/'Inputs and assumptions'!$C$44) -> 204638.2222 | K189: =K186*'Inputs and assumptions'!K9*('Inputs and assumptions'!$C$52/'Inputs and assumptions'!$C$44) -> 198370.6593 | L189: =L186*'Inputs and assumptions'!L9*('Inputs and assumptions'!$C$52/'Inputs and assumptions'!$C$44) -> 242506.1068 | M189: =M186*'Inputs and assumptions'!M9*('Inputs and assumptions'!$C$52/'Inputs and assumptions'!$C$44) -> 277587.9049 | N189: =N186*'Inputs and assumptions'!N9*('Inputs and assumptions'!$C$52/'Inputs and assumptions'!$C$44) -> 325703.2737 | O189: =O186*'Inputs and assumptions'!O9*('Inputs and assumptions'!$C$52/'Inputs and assumptions'!$C$44) -> 343574.8295 | P189: =P186*'Inputs and assumptions'!P9*('Inputs and assumptions'!$C$52/'Inputs and assumptions'!$C$44) -> 211678.0382 | Q189: =Q186*'Inputs and assumptions'!Q9*('Inputs and assumptions'!$C$52/'Inputs and assumptions'!$C$44) -> 172749.7807 | R189: 3701546.874
B190: Night kilometre charge (kms) | D190: =D186*(1-'Inputs and assumptions'!D9)*('Inputs and assumptions'!$C$52/'Inputs and assumptions'!$C$44) -> 32102.14998 | E190: =E186*(1-'Inputs and assumptions'!E9)*('Inputs and assumptions'!$C$52/'Inputs and assumptions'!$C$44) -> 31876.38383 | F190: =F186*(1-'Inputs and assumptions'!F9)*('Inputs and assumptions'!$C$52/'Inputs and assumptions'!$C$44) -> 32778.71777 | G190: =G186*(1-'Inputs and assumptions'!G9)*('Inputs and assumptions'!$C$52/'Inputs and assumptions'!$C$44) -> 34759.6427 | H190: =H186*(1-'Inputs and assumptions'!H9)*('Inputs and assumptions'!$C$52/'Inputs and assumptions'!$C$44) -> 35180.18667 | I190: =I186*(1-'Inputs and assumptions'!I9)*('Inputs and assumptions'!$C$52/'Inputs and assumptions'!$C$44) -> 24940.48111 | J190: =J186*(1-'Inputs and assumptions'!J9)*('Inputs and assumptions'!$C$52/'Inputs and assumptions'!$C$44) -> 22737.58024 | K190: =K186*(1-'Inputs and assumptions'!K9)*('Inputs and assumptions'!$C$52/'Inputs and assumptions'!$C$44) -> 66123.5531 | L190: =L186*(1-'Inputs and assumptions'!L9)*('Inputs and assumptions'!$C$52/'Inputs and assumptions'!$C$44) -> 80835.36893 | M190: =M186*(1-'Inputs and assumptions'!M9)*('Inputs and assumptions'!$C$52/'Inputs and assumptions'!$C$44) -> 92529.30162 | N190: =N186*(1-'Inputs and assumptions'!N9)*('Inputs and assumptions'!$C$52/'Inputs and assumptions'!$C$44) -> 108567.7579 | O190: =O186*(1-'Inputs and assumptions'!O9)*('Inputs and assumptions'!$C$52/'Inputs and assumptions'!$C$44) -> 229049.8863 | P190: =P186*(1-'Inputs and assumptions'!P9)*('Inputs and assumptions'!$C$52/'Inputs and assumptions'!$C$44) -> 317517.0573 | Q190: =Q186*(1-'Inputs and assumptions'!Q9)*('Inputs and assumptions'!$C$52/'Inputs and assumptions'!$C$44) -> 57583.26022 | R190: 1166581.328
B191: Waiting time (hours) | D191: ='Inputs and assumptions'!$C$51/60*Sim_template_201516_onwards!D187 -> 4745.957355 | E191: ='Inputs and assumptions'!$C$51/60*Sim_template_201516_onwards!E187 -> 4712.580259 | F191: ='Inputs and assumptions'!$C$51/60*Sim_template_201516_onwards!F187 -> 4845.980621 | G191: ='Inputs and assumptions'!$C$51/60*Sim_template_201516_onwards!G187 -> 5138.83905 | H191: ='Inputs and assumptions'!$C$51/60*Sim_template_201516_onwards!H187 -> 5201.011949 | I191: ='Inputs and assumptions'!$C$51/60*Sim_template_201516_onwards!I187 -> 3687.181694 | J191: ='Inputs and assumptions'!$C$51/60*Sim_template_201516_onwards!J187 -> 3361.506511 | K191: ='Inputs and assumptions'!$C$51/60*Sim_template_201516_onwards!K187 -> 3910.262252 | L191: ='Inputs and assumptions'!$C$51/60*Sim_template_201516_onwards!L187 -> 4780.255702 | M191: ='Inputs and assumptions'!$C$51/60*Sim_template_201516_onwards!M187 -> 5471.784535 | N191: ='Inputs and assumptions'!$C$51/60*Sim_template_201516_onwards!N187 -> 6420.229791 | O191: ='Inputs and assumptions'!$C$51/60*Sim_template_201516_onwards!O187 -> 8465.640099 | P191: ='Inputs and assumptions'!$C$51/60*Sim_template_201516_onwards!P187 -> 7823.579906 | Q191: ='Inputs and assumptions'!$C$51/60*Sim_template_201516_onwards!Q187 -> 3405.226099 | R191: 71970.03582
B192: Booking fee (number) | D192: =D187*'Inputs and assumptions'!$C$47 -> 10934.82701 | E192: =E187*'Inputs and assumptions'!$C$47 -> 10857.92519 | F192: =F187*'Inputs and assumptions'!$C$47 -> 11165.28359 | G192: =G187*'Inputs and assumptions'!$C$47 -> 11840.03813 | H192: =H187*'Inputs and assumptions'!$C$47 -> 11983.28634 | I192: =I187*'Inputs and assumptions'!$C$47 -> 8495.376375 | J192: =J187*'Inputs and assumptions'!$C$47 -> 7745.011059 | K192: =K187*'Inputs and assumptions'!$C$47 -> 9009.360619 | L192: =L187*'Inputs and assumptions'!$C$47 -> 11013.85142 | M192: =M187*'Inputs and assumptions'!$C$47 -> 12607.15444 | N192: =N187*'Inputs and assumptions'!$C$47 -> 14792.40054 | O192: =O187*'Inputs and assumptions'!$C$47 -> 19505.08677 | P192: =P187*'Inputs and assumptions'!$C$47 -> 18025.76098 | Q192: =Q187*'Inputs and assumptions'!$C$47 -> 7845.742291 | R192: 165821.1048
B194: ="Weights "&I8 -> Weights
B195: Different distance rate night hours adjustment
B196: Distance surcharge hours: | D196: ='Inputs and assumptions'!B9 -> The proportion of trips in each shift for which the standard distance rate currently applies (rather than the night time distance rate)
B197: =Sim_template_201516_onwards!Q38 -> 10 pm until 6 am | D197: =IF($B$197="5 pm until 5 am", 'Inputs and assumptions'!D10, IF($B$197="12 am until 5 am", 'Inputs and assumptions'!D11,'Inputs and assumptions'!D9)) -> 0.9 | E197: =IF($B$197="5 pm until 5 am", 'Inputs and assumptions'!E10, IF($B$197="12 am until 5 am", 'Inputs and assumptions'!E11,'Inputs and assumptions'!E9)) -> 0.9 | F197: =IF($B$197="5 pm until 5 am", 'Inputs and assumptions'!F10, IF($B$197="12 am until 5 am", 'Inputs and assumptions'!F11,'Inputs and assumptions'!F9)) -> 0.9 | G197: =IF($B$197="5 pm until 5 am", 'Inputs and assumptions'!G10, IF($B$197="12 am until 5 am", 'Inputs and assumptions'!G11,'Inputs and assumptions'!G9)) -> 0.9 | H197: =IF($B$197="5 pm until 5 am", 'Inputs and assumptions'!H10, IF($B$197="12 am until 5 am", 'Inputs and assumptions'!H11,'Inputs and assumptions'!H9)) -> 0.9 | I197: =IF($B$197="5 pm until 5 am", 'Inputs and assumptions'!I10, IF($B$197="12 am until 5 am", 'Inputs and assumptions'!I11,'Inputs and assumptions'!I9)) -> 0.9 | J197: =IF($B$197="5 pm until 5 am", 'Inputs and assumptions'!J10, IF($B$197="12 am until 5 am", 'Inputs and assumptions'!J11,'Inputs and assumptions'!J9)) -> 0.9 | K197: =IF($B$197="5 pm until 5 am", 'Inputs and assumptions'!K10, IF($B$197="12 am until 5 am", 'Inputs and assumptions'!K11,'Inputs and assumptions'!K9)) -> 0.75 | L197: =IF($B$197="5 pm until 5 am", 'Inputs and assumptions'!L10, IF($B$197="12 am until 5 am", 'Inputs and assumptions'!L11,'Inputs and assumptions'!L9)) -> 0.75 | M197: =IF($B$197="5 pm until 5 am", 'Inputs and assumptions'!M10, IF($B$197="12 am until 5 am", 'Inputs and assumptions'!M11,'Inputs and assumptions'!M9)) -> 0.75 | N197: =IF($B$197="5 pm until 5 am", 'Inputs and assumptions'!N10, IF($B$197="12 am until 5 am", 'Inputs and assumptions'!N11,'Inputs and assumptions'!N9)) -> 0.75 | O197: =IF($B$197="5 pm until 5 am", 'Inputs and assumptions'!O10, IF($B$197="12 am until 5 am", 'Inputs and assumptions'!O11,'Inputs and assumptions'!O9)) -> 0.6 | P197: =IF($B$197="5 pm until 5 am", 'Inputs and assumptions'!P10, IF($B$197="12 am until 5 am", 'Inputs and assumptions'!P11,'Inputs and assumptions'!P9)) -> 0.4 | Q197: =IF($B$197="5 pm until 5 am", 'Inputs and assumptions'!Q10, IF($B$197="12 am until 5 am", 'Inputs and assumptions'!Q11,'Inputs and assumptions'!Q9)) -> 0.75
D198: =Sim_template_201516_onwards!D184 -> Monday | E198: =Sim_template_201516_onwards!E184 -> Tuesday | F198: =Sim_template_201516_onwards!F184 -> Wednesday | G198: =Sim_template_201516_onwards!G184 -> Thursday | H198: =Sim_template_201516_onwards!H184 -> Friday | I198: =Sim_template_201516_onwards!I184 -> Saturday | J198: =Sim_template_201516_onwards!J184 -> Sunday | K198: =Sim_template_201516_onwards!K184 -> Monday | L198: =Sim_template_201516_onwards!L184 -> Tuesday | M198: =Sim_template_201516_onwards!M184 -> Wednesday | N198: =Sim_template_201516_onwards!N184 -> Thursday | O198: =Sim_template_201516_onwards!O184 -> Friday | P198: =Sim_template_201516_onwards!P184 -> Saturday | Q198: =Sim_template_201516_onwards!Q184 -> Sunday | R198: =Sim_template_201516_onwards!R184 -> Total
D199: =Sim_template_201516_onwards!D185 -> Day | E199: =Sim_template_201516_onwards!E185 -> Day | F199: =Sim_template_201516_onwards!F185 -> Day | G199: =Sim_template_201516_onwards!G185 -> Day | H199: =Sim_template_201516_onwards!H185 -> Day | I199: =Sim_template_201516_onwards!I185 -> Day | J199: =Sim_template_201516_onwards!J185 -> Day | K199: =Sim_template_201516_onwards!K185 -> Night | L199: =Sim_template_201516_onwards!L185 -> Night | M199: =Sim_template_201516_onwards!M185 -> Night | N199: =Sim_template_201516_onwards!N185 -> Night | O199: =Sim_template_201516_onwards!O185 -> Night | P199: =Sim_template_201516_onwards!P185 -> Night | Q199: =Sim_template_201516_onwards!Q185 -> Night
B200: =Sim_template_201516_onwards!B189 -> Standard kilometre charge (kms) | D200: =D186*D197*('Inputs and assumptions'!$C$52/'Inputs and assumptions'!$C$44) -> 288919.3498 | E200: =E186*E197*('Inputs and assumptions'!$C$52/'Inputs and assumptions'!$C$44) -> 286887.4545 | F200: =F186*F197*('Inputs and assumptions'!$C$52/'Inputs and assumptions'!$C$44) -> 295008.46 | G200: =G186*G197*('Inputs and assumptions'!$C$52/'Inputs and assumptions'!$C$44) -> 312836.7843 | H200: =H186*H197*('Inputs and assumptions'!$C$52/'Inputs and assumptions'!$C$44) -> 316621.68 | I200: =I186*I197*('Inputs and assumptions'!$C$52/'Inputs and assumptions'!$C$44) -> 224464.33 | J200: =J186*J197*('Inputs and assumptions'!$C$52/'Inputs and assumptions'!$C$44) -> 204638.2222 | K200: =K186*K197*('Inputs and assumptions'!$C$52/'Inputs and assumptions'!$C$44) -> 198370.6593 | L200: =L186*L197*('Inputs and assumptions'!$C$52/'Inputs and assumptions'!$C$44) -> 242506.1068 | M200: =M186*M197*('Inputs and assumptions'!$C$52/'Inputs and assumptions'!$C$44) -> 277587.9049 | N200: =N186*N197*('Inputs and assumptions'!$C$52/'Inputs and assumptions'!$C$44) -> 325703.2737 | O200: =O186*O197*('Inputs and assumptions'!$C$52/'Inputs and assumptions'!$C$44) -> 343574.8295 | P200: =P186*P197*('Inputs and assumptions'!$C$52/'Inputs and assumptions'!$C$44) -> 211678.0382 | Q200: =Q186*Q197*('Inputs and assumptions'!$C$52/'Inputs and assumptions'!$C$44) -> 172749.7807 | R200: =SUM(D200:Q200) -> 3701546.874
B201: =Sim_template_201516_onwards!B190 -> Night kilometre charge (kms) | D201: =D186*(1-D197)*('Inputs and assumptions'!$C$52/'Inputs and assumptions'!$C$44) -> 32102.14998 | E201: =E186*(1-E197)*('Inputs and assumptions'!$C$52/'Inputs and assumptions'!$C$44) -> 31876.38383 | F201: =F186*(1-F197)*('Inputs and assumptions'!$C$52/'Inputs and assumptions'!$C$44) -> 32778.71777 | G201: =G186*(1-G197)*('Inputs and assumptions'!$C$52/'Inputs and assumptions'!$C$44) -> 34759.6427 | H201: =H186*(1-H197)*('Inputs and assumptions'!$C$52/'Inputs and assumptions'!$C$44) -> 35180.18667 | I201: =I186*(1-I197)*('Inputs and assumptions'!$C$52/'Inputs and assumptions'!$C$44) -> 24940.48111 | J201: =J186*(1-J197)*('Inputs and assumptions'!$C$52/'Inputs and assumptions'!$C$44) -> 22737.58024 | K201: =K186*(1-K197)*('Inputs and assumptions'!$C$52/'Inputs and assumptions'!$C$44) -> 66123.5531 | L201: =L186*(1-L197)*('Inputs and assumptions'!$C$52/'Inputs and assumptions'!$C$44) -> 80835.36893 | M201: =M186*(1-M197)*('Inputs and assumptions'!$C$52/'Inputs and assumptions'!$C$44) -> 92529.30162 | N201: =N186*(1-N197)*('Inputs and assumptions'!$C$52/'Inputs and assumptions'!$C$44) -> 108567.7579 | O201: =O186*(1-O197)*('Inputs and assumptions'!$C$52/'Inputs and assumptions'!$C$44) -> 229049.8863 | P201: =P186*(1-P197)*('Inputs and assumptions'!$C$52/'Inputs and assumptions'!$C$44) -> 317517.0573 | Q201: =Q186*(1-Q197)*('Inputs and assumptions'!$C$52/'Inputs and assumptions'!$C$44) -> 57583.26022 | R201: =SUM(D201:Q201) -> 1166581.328
S202: =R201/SUM(R200:R201) -> 0.2396365255
B203: Waiting time threshold adjustment
B204: Flagfall (no of trips) | D204: =D187 -> 54674.13506 | E204: =E187 -> 54289.62595 | F204: 55826.41797 | G204: 59200.19066 | H204: 59916.43172 | I204: 42476.88188 | J204: 38725.0553 | K204: 45046.8031 | L204: 55069.25712 | M204: 63035.7722 | N204: 73962.00271 | O204: 97525.43387 | P204: 90128.80489 | Q204: 39228.71145 | R204: =SUM(D204:Q204) -> 829105.5239
B205: Standard kilometre charge (kms) | D205: =(D191-D207)*AVERAGE(Sim_template_201516_onwards!$F$181:$G$181)*D197+D200 -> 289413.3688 | E205: =(E191-E207)*AVERAGE(Sim_template_201516_onwards!$F$181:$G$181)*E197+E200 -> 287377.9992 | F205: =(F191-F207)*AVERAGE(Sim_template_201516_onwards!$F$181:$G$181)*F197+F200 -> 295512.8906 | G205: =(G191-G207)*AVERAGE(Sim_template_201516_onwards!$F$181:$G$181)*G197+G200 -> 313371.6994 | H205: =(H191-H207)*AVERAGE(Sim_template_201516_onwards!$F$181:$G$181)*H197+H200 -> 317163.0668 | I205: =(I191-I207)*AVERAGE(Sim_template_201516_onwards!$F$181:$G$181)*I197+I200 -> 224848.1383 | J205: =(J191-J207)*AVERAGE(Sim_template_201516_onwards!$F$181:$G$181)*J197+J200 -> 204988.1301 | K205: =(K191-K207)*AVERAGE(Sim_template_201516_onwards!$F$181:$G$181)*K197+K200 -> 198709.8504 | L205: =(L191-L207)*AVERAGE(Sim_template_201516_onwards!$F$181:$G$181)*L197+L200 -> 242920.7645 | M205: =(M191-M207)*AVERAGE(Sim_template_201516_onwards!$F$181:$G$181)*M197+M200 -> 278062.5484 | N205: =(N191-N207)*AVERAGE(Sim_template_201516_onwards!$F$181:$G$181)*N197+N200 -> 326260.189 | O205: =(O191-O207)*AVERAGE(Sim_template_201516_onwards!$F$181:$G$181)*O197+O200 -> 344162.3031 | P205: =(P191-P207)*AVERAGE(Sim_template_201516_onwards!$F$181:$G$181)*P197+P200 -> 212039.9834 | Q205: =(Q191-Q207)*AVERAGE(Sim_template_201516_onwards!$F$181:$G$181)*Q197+Q200 -> 173045.163 | R205: =SUM(D205:Q205) -> 3707876.095
B206: Night kilometre charge (kms) | D206: =(D191-D207)*AVERAGE(Sim_template_201516_onwards!$F$181:$G$181)*(1-D197)+D201 -> 32157.04098 | E206: =(E191-E207)*AVERAGE(Sim_template_201516_onwards!$F$181:$G$181)*(1-E197)+E201 -> 31930.8888 | F206: =(F191-F207)*AVERAGE(Sim_template_201516_onwards!$F$181:$G$181)*(1-F197)+F201 -> 32834.76563 | G206: =(G191-G207)*AVERAGE(Sim_template_201516_onwards!$F$181:$G$181)*(1-G197)+G201 -> 34819.07771 | H206: =(H191-H207)*AVERAGE(Sim_template_201516_onwards!$F$181:$G$181)*(1-H197)+H201 -> 35240.34076 | I206: =(I191-I207)*AVERAGE(Sim_template_201516_onwards!$F$181:$G$181)*(1-I197)+I201 -> 24983.12648 | J206: =(J191-J207)*AVERAGE(Sim_template_201516_onwards!$F$181:$G$181)*(1-J197)+J201 -> 22776.4589 | K206: =(K191-K207)*AVERAGE(Sim_template_201516_onwards!$F$181:$G$181)*(1-K197)+K201 -> 66236.6168 | L206: =(L191-L207)*AVERAGE(Sim_template_201516_onwards!$F$181:$G$181)*(1-L197)+L201 -> 80973.58815 | M206: =(M191-M207)*AVERAGE(Sim_template_201516_onwards!$F$181:$G$181)*(1-M197)+M201 -> 92687.51613 | N206: =(N191-N207)*AVERAGE(Sim_template_201516_onwards!$F$181:$G$181)*(1-N197)+N201 -> 108753.3963 | O206: =(O191-O207)*AVERAGE(Sim_template_201516_onwards!$F$181:$G$181)*(1-O197)+O201 -> 229441.5354 | P206: =(P191-P207)*AVERAGE(Sim_template_201516_onwards!$F$181:$G$181)*(1-P197)+P201 -> 318059.9751 | Q206: =(Q191-Q207)*AVERAGE(Sim_template_201516_onwards!$F$181:$G$181)*(1-Q197)+Q201 -> 57681.72101 | R206: 1168576.048
B207: Waiting time hours | D207: =D191*(1+(Sim_template_201516_onwards!$Q$27-Sim_template_201516_onwards!$F$181)/Sim_template_201516_onwards!$F$181) -> 4724.845431 | E207: =E191*(1+(Sim_template_201516_onwards!$Q$27-Sim_template_201516_onwards!$F$181)/Sim_template_201516_onwards!$F$181) -> 4691.616811 | F207: =F191*(1+(Sim_template_201516_onwards!$Q$27-Sim_template_201516_onwards!$F$181)/Sim_template_201516_onwards!$F$181) -> 4824.423754 | G207: =G191*(1+(Sim_template_201516_onwards!$Q$27-Sim_template_201516_onwards!$F$181)/Sim_template_201516_onwards!$F$181) -> 5115.979431 | H207: =H191*(1+(Sim_template_201516_onwards!$Q$27-Sim_template_201516_onwards!$F$181)/Sim_template_201516_onwards!$F$181) -> 5177.875761 | I207: =I191*(1+(Sim_template_201516_onwards!$Q$27-Sim_template_201516_onwards!$F$181)/Sim_template_201516_onwards!$F$181) -> 3670.77963 | J207: =J191*(1+(Sim_template_201516_onwards!$Q$27-Sim_template_201516_onwards!$F$181)/Sim_template_201516_onwards!$F$181) -> 3346.553181 | K207: =K191*(1+(Sim_template_201516_onwards!$Q$27-Sim_template_201516_onwards!$F$181)/Sim_template_201516_onwards!$F$181) -> 3892.867835 | L207: =L191*(1+(Sim_template_201516_onwards!$Q$27-Sim_template_201516_onwards!$F$181)/Sim_template_201516_onwards!$F$181) -> 4758.991205 | M207: =M191*(1+(Sim_template_201516_onwards!$Q$27-Sim_template_201516_onwards!$F$181)/Sim_template_201516_onwards!$F$181) -> 5447.443841 | N207: =N191*(1+(Sim_template_201516_onwards!$Q$27-Sim_template_201516_onwards!$F$181)/Sim_template_201516_onwards!$F$181) -> 6391.670032 | O207: =O191*(1+(Sim_template_201516_onwards!$Q$27-Sim_template_201516_onwards!$F$181)/Sim_template_201516_onwards!$F$181) -> 8427.981534 | P207: =P191*(1+(Sim_template_201516_onwards!$Q$27-Sim_template_201516_onwards!$F$181)/Sim_template_201516_onwards!$F$181) -> 7788.777482 | Q207: =Q191*(1+(Sim_template_201516_onwards!$Q$27-Sim_template_201516_onwards!$F$181)/Sim_template_201516_onwards!$F$181) -> 3390.078286 | R207: 71649.88422
B208: Booking fee (number) | D208: =D192 -> 10934.82701 | E208: =E192 -> 10857.92519 | F208: 11165.28359 | G208: 11840.03813 | H208: 11983.28634 | I208: 8495.376375 | J208: 7745.011059 | K208: 9009.360619 | L208: 11013.85142 | M208: 12607.15444 | N208: 14792.40054 | O208: 19505.08677 | P208: 18025.76098 | Q208: 7845.742291 | R208: 165821.1048

Sheet Inputs and assumptions
U1: Source/Notes
A2: Assumptions by shift
A3: Day | B3: Description | C3: Unit | D3: Monday | E3: Tuesday | F3: Wednesday | G3: Thursday | H3: Friday | I3: Saturday | J3: Sunday | K3: Monday | L3: Tuesday | M3: Wednesday | N3: Thursday | O3: Friday | P3: Saturday | Q3: Sunday
A4: Shift | D4: Day | E4: Day | F4: Day | G4: Day | H4: Day | I4: Day | J4: Day | K4: Night | L4: Night | M4: Night | N4: Night | O4: Night | P4: Night | Q4: Night | S4: DO NOT DELETE
A5: Price elasticity of demand | B5: Impact of a 1% price decrease on demand | C5: Unit | D5: 0.8 | E5: 0.8 | F5: 0.8 | G5: 0.8 | H5: 0.8 | I5: 0.8 | J5: 0.8 | K5: 0.8 | L5: 0.8 | M5: 0.8 | N5: 0.8 | O5: 0.8 | P5: 0.8 | Q5: 0.8 | S5: Yes
A6: Weekend labour cost premium applied | B6: Yes if the shift is a weekend | C6: Yes/No | D6: No | E6: No | F6: No | G6: No | H6: No | I6: Yes | J6: Yes | K6: No | L6: No | M6: No | N6: No | O6: Yes | P6: Yes | Q6: Yes | S6: No
A7: Revenue per taxi | B7: Revenue per taxi | C7: $ | D7: 263.8 | E7: 259.5 | F7: 264.1 | G7: 268.6 | H7: 282.9 | I7: 276.2 | J7: 279 | K7: 258.9 | L7: 283 | M7: 309.3 | N7: 341.2 | O7: 423.4 | P7: 426.7 | Q7: 275 | U7: CIE survey undertaken in October 2011 (including GST)
A8: Share of standard taxis on the road | B8: The proportion of non-WAT taxis on the road | C8: Per cent | D8: 80.51806543 | E8: 81.27663018 | F8: 82.12163046 | G8: 85.62553515 | H8: 82.28093073 | I8: 59.74686969 | J8: 53.92299986 | K8: 65.29732991 | L8: 73.02747428 | M8: 76.48401104 | N8: 81.35104533 | O8: 87.932784 | P8: 82.45657332 | Q8: 53.53463517 | U8: Sourced from CIE Survey 2012, based on network data provided by Combined Communications Networks and adjusted by the CIE.
A9: Share of current trips at standard distance rate (10 pm - 6 am) | B9: The proportion of trips in each shift for which the standard distance rate currently applies (rather than the night time distance rate) | C9: Per cent | D9: 0.9 | E9: 0.9 | F9: 0.9 | G9: 0.9 | H9: 0.9 | I9: 0.9 | J9: 0.9 | K9: 0.75 | L9: 0.75 | M9: 0.75 | N9: 0.75 | O9: 0.6 | P9: 0.4 | Q9: 0.75
A10: If the surcharge hours of operation changed to | B10: =Sim_template_201415!T164 -> 5 pm until 5 am | C10: Per cent | D10: 0.95 | E10: 0.95 | F10: 0.95 | G10: 0.95 | H10: 0.95 | I10: 0.95 | J10: 0.95 | K10: 0.2 | L10: 0.2 | M10: 0.2 | N10: 0.2 | O10: 0.15 | P10: 0.05 | Q10: 0.2
A11: =A10 -> If the surcharge hours of operation changed to | B11: =Sim_template_201415!T165 -> 12 am until 5 am | C11: Per cent | D11: 0.95 | E11: 0.95 | F11: 0.95 | G11: 0.95 | H11: 0.95 | I11: 0.95 | J11: 0.95 | K11: 0.85 | L11: 0.85 | M11: 0.85 | N11: 0.85 | O11: 0.7 | P11: 0.5 | Q11: 0.85
A12: W_base | B12: Baseline waiting time | C12: Minutes | D12: 7.933993399 | E12: 7.933993399 | F12: 7.933993399 | G12: 7.933993399 | H12: 7.731132075 | I12: 7.731132075 | J12: 7.7125 | K12: 7.060283688 | L12: 7.060283688 | M12: 7.060283688 | N12: 7.060283688 | O12: 9.166112957 | P12: 9.166112957 | Q12: 9.954545455 | U12: IPART 2012 Survey (Taverner)
A13: Maximum proportion of taxis on the road for each shift | D13: =$C$55+MAX(D8-PERCENTILE($D$8:$Q$8,$C$57),0)/(MAX($D$8:$Q$8)-PERCENTILE($D$8:$Q$8,$C$57))*$C$56 -> 0.8285193593 | E13: =$C$55+MAX(E8-PERCENTILE($D$8:$Q$8,$C$57),0)/(MAX($D$8:$Q$8)-PERCENTILE($D$8:$Q$8,$C$57))*$C$56 -> 0.8348091526 | F13: 0.8418156435 | G13: 0.8708689789 | H13: 0.843136514 | I13: 0.76 | J13: 0.76 | K13: 0.76 | L13: 0.7664096058 | M13: 0.7950701803 | N13: 0.8354261809 | O13: 0.89 | P13: 0.8445928901 | Q13: 0.76
B14: 2012/13 Regulated Fares (including GST)
B15: Flagfall ($) | C15: 3.5 | F15: Colour coding
B16: Standard kilometre charge ($/km) | C16: 2.14 | F16: Input data
B17: Night kilometre charge ($/km) | C17: =ROUND(2.568,2) -> 2.57 | F17: Assumptions
B18: Waiting time ($/hour when vehicle slower than 26km/hour) | C18: 55.3
B19: Booking fee ($/booking) | C19: 2.4
B20: GST | C20: 0.1
B22: Costs of a standard taxi (excluding GST) ($2011/12)
B23: Labour cost ($/hour) | C23: =H31 -> 10 | F23: Operator costs (/taxi/yr) | H23: Amount ($2011/12) | I23: % Variable | U23: From CIE Survey 2012, for a weekday.
B24: Weekend labour cost premium ($ per hour) | C24: =H32 -> 2 | F24: Operator administration | H24: 9223
B25: Operator variable costs ($/km) | C25: =SUMPRODUCT(H25:H26,I25:I26)/C45 -> 0.09684579439 | F25: Maintenance | H25: 7562 | I25: 0.5
B26: Operator costs (fixed, non plate, $/year) | C26: =SUM(H24:H28) - SUMPRODUCT(H25:H26,I25:I26) -> 32621.5 | F26: Insurance | H26: 13163 | I26: 0.5
B27: Fuel cost ($/km) | C27: =H33/C45 -> 0.136588785 | F27: Vehicle lease | H27: 5805
B28: Cleaning ($/night shift) | C28: 11 | F28: Network fees | H28: 7231
B29: For calculation of peak licence value:
B30: Annual fixed costs to be apportioned over fewer shifts | C30: =H25+H26+H28-SUMPRODUCT(H25:H26,I25:I26) -> 17593.5 | F30: Driver costs | H30: ($2011/12)
B31: Cost escalation from 2011/12 to 2012/13 | C31: 0.037 | F31: Labour ($/hr) | H31: 10 | U31: Urban taxi cost index
F32: Weekend labour premium ($/hr) | H32: 2
B33: 2012/13 Taxi licence numbers | F33: Fuel ($/taxi/yr) | H33: 14615 | U33: From Transport for NSW Nov 2012
B34: Fringe | C34: 14 | F34: Cleaning ($/night shift) | H34: 11
B35: Unrestricted | C35: 4729
B36: WAT | C36: 618
B37: PAL | C37: 286
B38: Unrestricted + fringe | C38: =SUM(C34:C35) -> 4743
B39: Total non-PAL | C39: =SUM(C34:C36) -> 5361
B40: Total | C40: =SUM(C34:C37) -> 5647
B42: Other assumptions
B43: Hours per shift (no.) | C43: 10 | U43: CIE survey
B44: Average trip length (kms) | C44: 7 | U44: BTS survey, provided by IPART
B45: Total km travelled /taxi/year | C45: 107000
B46: Number of shifts operated per year | C46: 552
B47: Share of trips with booking fee (per cent) | C47: 0.2 | U47: Based on IPART assumption for standard fare, confirmed by figures from CIE survey 2012.
B48: Speed when on waiting time (km/hour) | C48: =26/2 -> 13 | U48: Waiting time covers all speeds from 0 to 26 kilometres per hour. Based on half of maximum speed for waiting time.
B49: Average speed (km/hour) | C49: 32 | F49: Meter data | U49: Calibrated to match occupancy figures from meter data.
B50: Revenue at waiting time rate/revenue at dist. rate | C50: =H52/H53 -> 0.3820331681 | F50: Total km | H50: 5141146
B51: Minutes on waiting time rate (/trip) | C51: =((C44*C16)*C50/(C18+C50*C48*C16))*60 -> 5.208266047 | F51: Occupied km | H51: 2577606 | U51: Calculation of waiting time minutes based on meter data showing waiting revenue against distance revenue.
B52: Kms on distance rate (/trip) | C52: =C44-C51/60*C48 -> 5.871542356 | F52: Revenue at time rate ($2011/12) | H52: 1990899
B53: Multiplier for occupied to total kms for a trip | C53: =H50/H51 -> 1.994542998 | F53: Revenue at distance rate ($2010/11) | H53: 5211325 | U53: Based on meter data records provided by the Australian Taxi Drive Association. Measures total kilometres versus occupied kms.
B54: Value of time ($/hour) | C54: 30 | U54: Standard values of time used in economic appraisals are lower (around $15). However, taxi users are likely to have a higher value of time.
B55: Share of cabs at which constraint on number of cabs becomes binding | C55: 0.76 | U55: Key assumption - based on share of trips at which revenue per cab begins to increase and hence licence constraint becomes important.
B56: Increase in constraint for highest demand shift (%) | C56: 0.13
B57: Per cent of shifts to which higher constraint not applied | C57: 0.3
B58: Slope of the supply curve | C58: 45
B59: Standard deviation of expected shift revenue | C59: =12.5240326851699*2 -> 25.04806537
B60: Calibration constant to account for rising marginal costs | C60: =C58*3/4 -> 33.75 | U60: Required because we have average cost data, therefore need to reduce the fixed component so that fixed + variable = average
B61: Flat or upward sloping cost curve | C61: Upward sloping
B62: For calculation of peak licence value: | L62: DO NOT DELETE
B63: What revenue premium can peak licences obtain by working across best part of shifts? | C63: 0.085 | L63: Flat | U63: This is set to align the peak licence value to that observed.
B64: Of shifts available, what per cent do peak licences do (%) | C64: 0.9 | L64: Upward sloping
B66: Increase in demand per taxi 2012 | C66: 0
B69: For fare change calculations
B70: Fuel cost 2012/13 inc GST | C70: ='Inputs and assumptions'!C27*1.1*(1+'Inputs and assumptions'!C31) -> 0.1558068271 | D70: Source
B71: Night speed waiting rate | C71: 0 | D71: Assumption
B72: Night - Revenue at waiting time rate/revenue at dist. rate | C72: 0.1 | D72: Assumption
B73: Night Speed when on waiting time (km/hour) | C73: 45 | D73: Assumption
C76: Sydney All Groups CPI Index | E76: 2012/13 to 2014/15
B77: 2011-09-01 | C77: 99.9 | E77: =AVERAGE(C89:C92)/AVERAGE(C81:C84) -> 1.048932332
B78: 2011-12-01 | C78: 99.8
B79: 2012-03-01 | C79: 99.9
B80: 2012-06-01 | C80: 100.5
B81: 2012-09-01 | C81: 102.2
B82: 2012-12-01 | C82: 102.3
B83: 2013-03-01 | C83: 102.7
B84: 2013-06-01 | C84: 103.1
B85: 2013-09-01 | C85: 104.3
B86: 2013-12-01 | C86: 105
B87: 2014-03-01 | C87: 105.6
B88: 2014-06-01 | C88: 106
B89: 2014-09-01 | C89: 106.6
B90: 2014-12-01 | C90: =C89*(1+$D$90)^0.25 -> 107.2600935 | D90: 0.025
B91: 2015-03-01 | C91: =C90*(1+$D$90)^0.25 -> 107.9242744
B92: 2015-06-01 | C92: =C91*(1+$D$90)^0.25 -> 108.5925681

Sheet Base model
A2: CALIBRATION OF MODEL PARAMETERS
A3: Day | B3: Description | C3: Unit | J3: Monday | K3: Tuesday | L3: Wednesday | M3: Thursday | N3: Friday | O3: Saturday | P3: Sunday | Q3: Monday | R3: Tuesday | S3: Wednesday | T3: Thursday | U3: Friday | V3: Saturday | W3: Sunday
A4: Shift | J4: Day | K4: Day | L4: Day | M4: Day | N4: Day | O4: Day | P4: Day | Q4: Night | R4: Night | S4: Night | T4: Night | U4: Night | V4: Night | W4: Night
A5: Revenue adjustment for fare increases and demand | B5: Revenue adjustment for price increase from July 2012 | C5: Per cent | J5: =(1+'Inputs and assumptions'!$C$31)*(1+'Inputs and assumptions'!$C$66) -> 1.037 | K5: =(1+'Inputs and assumptions'!$C$31)*(1+'Inputs and assumptions'!$C$66) -> 1.037 | L5: =(1+'Inputs and assumptions'!$C$31)*(1+'Inputs and assumptions'!$C$66) -> 1.037 | M5: =(1+'Inputs and assumptions'!$C$31)*(1+'Inputs and assumptions'!$C$66) -> 1.037 | N5: =(1+'Inputs and assumptions'!$C$31)*(1+'Inputs and assumptions'!$C$66) -> 1.037 | O5: =(1+'Inputs and assumptions'!$C$31)*(1+'Inputs and assumptions'!$C$66) -> 1.037 | P5: =(1+'Inputs and assumptions'!$C$31)*(1+'Inputs and assumptions'!$C$66) -> 1.037 | Q5: =(1+'Inputs and assumptions'!$C$31)*(1+'Inputs and assumptions'!$C$66) -> 1.037 | R5: =(1+'Inputs and assumptions'!$C$31)*(1+'Inputs and assumptions'!$C$66) -> 1.037 | S5: =(1+'Inputs and assumptions'!$C$31)*(1+'Inputs and assumptions'!$C$66) -> 1.037 | T5: =(1+'Inputs and assumptions'!$C$31)*(1+'Inputs and assumptions'!$C$66) -> 1.037 | U5: =(1+'Inputs and assumptions'!$C$31)*(1+'Inputs and assumptions'!$C$66) -> 1.037 | V5: =(1+'Inputs and assumptions'!$C$31)*(1+'Inputs and assumptions'!$C$66) -> 1.037 | W5: =(1+'Inputs and assumptions'!$C$31)*(1+'Inputs and assumptions'!$C$66) -> 1.037 | X5: now multiplicate
A6: T_max | B6: The maximum number of taxis, based on the number of taxi plates | C6: No. | J6: ='Inputs and assumptions'!$C$39 -> 5361 | K6: ='Inputs and assumptions'!$C$39 -> 5361 | L6: ='Inputs and assumptions'!$C$39 -> 5361 | M6: ='Inputs and assumptions'!$C$39 -> 5361 | N6: ='Inputs and assumptions'!$C$39 -> 5361 | O6: ='Inputs and assumptions'!$C$39 -> 5361 | P6: ='Inputs and assumptions'!$C$39 -> 5361 | Q6: ='Inputs and assumptions'!$C$40 -> 5647 | R6: ='Inputs and assumptions'!$C$40 -> 5647 | S6: ='Inputs and assumptions'!$C$40 -> 5647 | T6: ='Inputs and assumptions'!$C$40 -> 5647 | U6: ='Inputs and assumptions'!$C$40 -> 5647 | V6: ='Inputs and assumptions'!$C$40 -> 5647 | W6: ='Inputs and assumptions'!$C$40 -> 5647 | X6: ok
A7: T_base | B7: The number of taxis actually on the road, based on network data | C7: No. | J7: ='Inputs and assumptions'!D8/100*J6 -> 4316.573488 | K7: ='Inputs and assumptions'!E8/100*K6 -> 4357.240144 | L7: ='Inputs and assumptions'!F8/100*L6 -> 4402.540609 | M7: ='Inputs and assumptions'!G8/100*M6 -> 4590.38494 | N7: ='Inputs and assumptions'!H8/100*N6 -> 4411.080696 | O7: ='Inputs and assumptions'!I8/100*O6 -> 3203.029684 | P7: ='Inputs and assumptions'!J8/100*P6 -> 2890.812023 | Q7: ='Inputs and assumptions'!K8/100*Q6 -> 3687.34022 | R7: ='Inputs and assumptions'!L8/100*R6 -> 4123.861473 | S7: ='Inputs and assumptions'!M8/100*S6 -> 4319.052103 | T7: ='Inputs and assumptions'!N8/100*T6 -> 4593.89353 | U7: ='Inputs and assumptions'!O8/100*U6 -> 4965.564312 | V7: ='Inputs and assumptions'!P8/100*V6 -> 4656.322695 | W7: ='Inputs and assumptions'!Q8/100*W6 -> 3023.100848 | X7: ok
A8: T_max_effective | B8: The maximum effective number of taxis on the road | C8: No. | J8: =('Inputs and assumptions'!$C$55+MAX('Inputs and assumptions'!D8-PERCENTILE('Inputs and assumptions'!$D$8:$Q$8,'Inputs and assumptions'!$C$57),0)/(MAX('Inputs and assumptions'!$D$8:$Q$8)-PERCENTILE('Inputs and assumptions'!$D$8:$Q$8,'Inputs and assumptions'!$C$57))*'Inputs and assumptions'!$C$56)*J6 -> 4441.692285 | K8: =('Inputs and assumptions'!$C$55+MAX('Inputs and assumptions'!E8-PERCENTILE('Inputs and assumptions'!$D$8:$Q$8,'Inputs and assumptions'!$C$57),0)/(MAX('Inputs and assumptions'!$D$8:$Q$8)-PERCENTILE('Inputs and assumptions'!$D$8:$Q$8,'Inputs and assumptions'!$C$57))*'Inputs and assumptions'!$C$56)*K6 -> 4475.411867 | L8: =('Inputs and assumptions'!$C$55+MAX('Inputs and assumptions'!F8-PERCENTILE('Inputs and assumptions'!$D$8:$Q$8,'Inputs and assumptions'!$C$57),0)/(MAX('Inputs and assumptions'!$D$8:$Q$8)-PERCENTILE('Inputs and assumptions'!$D$8:$Q$8,'Inputs and assumptions'!$C$57))*'Inputs and assumptions'!$C$56)*L6 -> 4512.973665 | M8: =('Inputs and assumptions'!$C$55+MAX('Inputs and assumptions'!G8-PERCENTILE('Inputs and assumptions'!$D$8:$Q$8,'Inputs and assumptions'!$C$57),0)/(MAX('Inputs and assumptions'!$D$8:$Q$8)-PERCENTILE('Inputs and assumptions'!$D$8:$Q$8,'Inputs and assumptions'!$C$57))*'Inputs and assumptions'!$C$56)*M6 -> 4668.728596 | N8: =('Inputs and assumptions'!$C$55+MAX('Inputs and assumptions'!H8-PERCENTILE('Inputs and assumptions'!$D$8:$Q$8,'Inputs and assumptions'!$C$57),0)/(MAX('Inputs and assumptions'!$D$8:$Q$8)-PERCENTILE('Inputs and assumptions'!$D$8:$Q$8,'Inputs and assumptions'!$C$57))*'Inputs and assumptions'!$C$56)*N6 -> 4520.054851 | O8: =('Inputs and assumptions'!$C$55+MAX('Inputs and assumptions'!I8-PERCENTILE('Inputs and assumptions'!$D$8:$Q$8,'Inputs and assumptions'!$C$57),0)/(MAX('Inputs and assumptions'!$D$8:$Q$8)-PERCENTILE('Inputs and assumptions'!$D$8:$Q$8,'Inputs and assumptions'!$C$57))*'Inputs and assumptions'!$C$56)*O6 -> 4074.36 | P8: =('Inputs and assumptions'!$C$55+MAX('Inputs and assumptions'!J8-PERCENTILE('Inputs and assumptions'!$D$8:$Q$8,'Inputs and assumptions'!$C$57),0)/(MAX('Inputs and assumptions'!$D$8:$Q$8)-PERCENTILE('Inputs and assumptions'!$D$8:$Q$8,'Inputs and assumptions'!$C$57))*'Inputs and assumptions'!$C$56)*P6 -> 4074.36 | Q8: =('Inputs and assumptions'!$C$55+MAX('Inputs and assumptions'!K8-PERCENTILE('Inputs and assumptions'!$D$8:$Q$8,'Inputs and assumptions'!$C$57),0)/(MAX('Inputs and assumptions'!$D$8:$Q$8)-PERCENTILE('Inputs and assumptions'!$D$8:$Q$8,'Inputs and assumptions'!$C$57))*'Inputs and assumptions'!$C$56)*Q6 -> 4291.72 | R8: =('Inputs and assumptions'!$C$55+MAX('Inputs and assumptions'!L8-PERCENTILE('Inputs and assumptions'!$D$8:$Q$8,'Inputs and assumptions'!$C$57),0)/(MAX('Inputs and assumptions'!$D$8:$Q$8)-PERCENTILE('Inputs and assumptions'!$D$8:$Q$8,'Inputs and assumptions'!$C$57))*'Inputs and assumptions'!$C$56)*R6 -> 4327.915044 | S8: =('Inputs and assumptions'!$C$55+MAX('Inputs and assumptions'!M8-PERCENTILE('Inputs and assumptions'!$D$8:$Q$8,'Inputs and assumptions'!$C$57),0)/(MAX('Inputs and assumptions'!$D$8:$Q$8)-PERCENTILE('Inputs and assumptions'!$D$8:$Q$8,'Inputs and assumptions'!$C$57))*'Inputs and assumptions'!$C$56)*S6 -> 4489.761308 | T8: =('Inputs and assumptions'!$C$55+MAX('Inputs and assumptions'!N8-PERCENTILE('Inputs and assumptions'!$D$8:$Q$8,'Inputs and assumptions'!$C$57),0)/(MAX('Inputs and assumptions'!$D$8:$Q$8)-PERCENTILE('Inputs and assumptions'!$D$8:$Q$8,'Inputs and assumptions'!$C$57))*'Inputs and assumptions'!$C$56)*T6 -> 4717.651643 | U8: =('Inputs and assumptions'!$C$55+MAX('Inputs and assumptions'!O8-PERCENTILE('Inputs and assumptions'!$D$8:$Q$8,'Inputs and assumptions'!$C$57),0)/(MAX('Inputs and assumptions'!$D$8:$Q$8)-PERCENTILE('Inputs and assumptions'!$D$8:$Q$8,'Inputs and assumptions'!$C$57))*'Inputs and assumptions'!$C$56)*U6 -> 5025.83 | V8: =('Inputs and assumptions'!$C$55+MAX('Inputs and assumptions'!P8-PERCENTILE('Inputs and assumptions'!$D$8:$Q$8,'Inputs and assumptions'!$C$57),0)/(MAX('Inputs and assumptions'!$D$8:$Q$8)-PERCENTILE('Inputs and assumptions'!$D$8:$Q$8,'Inputs and assumptions'!$C$57))*'Inputs and assumptions'!$C$56)*V6 -> 4769.41605 | W8: =('Inputs and assumptions'!$C$55+MAX('Inputs and assumptions'!Q8-PERCENTILE('Inputs and assumptions'!$D$8:$Q$8,'Inputs and assumptions'!$C$57),0)/(MAX('Inputs and assumptions'!$D$8:$Q$8)-PERCENTILE('Inputs and assumptions'!$D$8:$Q$8,'Inputs and assumptions'!$C$57))*'Inputs and assumptions'!$C$56)*W6 -> 4291.72 | X8: =('Inputs and assumptions'!$C$55+MAX('Inputs and assumptions'!R8-PERCENTILE('Inputs and assumptions'!$D$8:$Q$8,'Inputs and assumptions'!$C$57),0)/(MAX('Inputs and assumptions'!$D$8:$Q$8)-PERCENTILE('Inputs and assumptions'!$D$8:$Q$8,'Inputs and assumptions'!$C$57))*'Inputs and assumptions'!$C$56)*X6 -> 
A9: Q_base | B9: Baseline quantity of taxis demanded per shift | C9: Kms occupied | J9: =J7*'Inputs and assumptions'!D7/J13/$B$20*J5 -> 382718.9454 | K9: =K7*'Inputs and assumptions'!E7/K13/$B$20*K5 -> 380027.3817 | L9: =L7*'Inputs and assumptions'!F7/L13/$B$20*L5 -> 390784.9258 | M9: =M7*'Inputs and assumptions'!G7/M13/$B$20*M5 -> 414401.3346 | N9: =N7*'Inputs and assumptions'!H7/N13/$B$20*N5 -> 419415.022 | O9: =O7*'Inputs and assumptions'!I7/O13/$B$20*O5 -> 297338.1731 | P9: =P7*'Inputs and assumptions'!J7/P13/$B$20*P5 -> 271075.3871 | Q9: =Q7*'Inputs and assumptions'!K7/Q13/$B$20*Q5 -> 315327.6217 | R9: =R7*'Inputs and assumptions'!L7/R13/$B$20*R5 -> 385484.7998 | S9: =S7*'Inputs and assumptions'!M7/S13/$B$20*S5 -> 441250.4054 | T9: =T7*'Inputs and assumptions'!N7/T13/$B$20*T5 -> 517734.0189 | U9: =U7*'Inputs and assumptions'!O7/U13/$B$20*U5 -> 682678.0371 | V9: =V7*'Inputs and assumptions'!P7/V13/$B$20*V5 -> 630901.6342 | W9: =W7*'Inputs and assumptions'!Q7/W13/$B$20*W5 -> 274600.9802 | X9: ok - see check below. Forumula simplified, GST adjustment no longer hard-coded
B10: Demand intercept with y axis | C10: Kms occupied | J10: =J9+J11*J13+'Inputs and assumptions'!D12*J12 -> 750754.6418 | K10: =K9+K11*K13+'Inputs and assumptions'!E12*K12 -> 745474.7778 | L10: =L9+L11*L13+'Inputs and assumptions'!F12*L12 -> 766577.1462 | M10: =M9+M11*M13+'Inputs and assumptions'!G12*M12 -> 812903.9058 | N10: =N9+N11*N13+'Inputs and assumptions'!H12*N12 -> 821005.5818 | O10: =O9+O11*O13+'Inputs and assumptions'!I12*O12 -> 582039.9533 | P10: =P9+P11*P13+'Inputs and assumptions'!J12*P12 -> 530527.6125 | Q10: =Q9+Q11*Q13+'Inputs and assumptions'!K12*Q12 -> 612163.2256 | R10: =R9+R11*R13+'Inputs and assumptions'!L12*R12 -> 748363.2967 | S10: =S9+S11*S13+'Inputs and assumptions'!M12*S12 -> 856624.1995 | T10: =T9+T11*T13+'Inputs and assumptions'!N12*T12 -> 1005106.135 | U10: =U9+U11*U13+'Inputs and assumptions'!O12*U12 -> 1351981.545 | V10: =V9+V11*V13+'Inputs and assumptions'!P12*V12 -> 1246928.967 | W10: =W9+W11*W13+'Inputs and assumptions'!Q12*W12 -> 549010.5928 | X10: ok
B11: Impact of price on demand kilometres | C11: Change in Q per extra dollar | J11: ='Inputs and assumptions'!D$5*J9/J13 -> 109156.5769 | K11: ='Inputs and assumptions'!E$5*K9/K13 -> 108388.9069 | L11: ='Inputs and assumptions'!F$5*L9/L13 -> 111457.1027 | M11: ='Inputs and assumptions'!G$5*M9/M13 -> 118192.8193 | N11: ='Inputs and assumptions'!H$5*N9/N13 -> 119622.7902 | O11: ='Inputs and assumptions'!I$5*O9/O13 -> 84804.83541 | P11: ='Inputs and assumptions'!J$5*P9/P13 -> 77314.33654 | Q11: ='Inputs and assumptions'!K$5*Q9/Q13 -> 88385.83826 | R11: ='Inputs and assumptions'!L$5*R9/R13 -> 108050.7854 | S11: ='Inputs and assumptions'!M$5*S9/S13 -> 123681.7972 | T11: ='Inputs and assumptions'!N$5*T9/T13 -> 145120.0343 | U11: ='Inputs and assumptions'!O$5*U9/U13 -> 188111.9187 | V11: ='Inputs and assumptions'!P$5*V9/V13 -> 170004.9267 | W11: ='Inputs and assumptions'!Q$5*W9/W13 -> 76970.22446 | X11: ok
B12: Impact of waiting time on demand kilometres | C12: Change in Q per extra minute | J12: =('Inputs and assumptions'!$C$54/'Inputs and assumptions'!$C$44)/60*J11 -> 7796.898352 | K12: =('Inputs and assumptions'!$C$54/'Inputs and assumptions'!$C$44)/60*K11 -> 7742.064775 | L12: =('Inputs and assumptions'!$C$54/'Inputs and assumptions'!$C$44)/60*L11 -> 7961.221624 | M12: =('Inputs and assumptions'!$C$54/'Inputs and assumptions'!$C$44)/60*M11 -> 8442.344237 | N12: =('Inputs and assumptions'!$C$54/'Inputs and assumptions'!$C$44)/60*N11 -> 8544.485015 | O12: =('Inputs and assumptions'!$C$54/'Inputs and assumptions'!$C$44)/60*O11 -> 6057.488243 | P12: =('Inputs and assumptions'!$C$54/'Inputs and assumptions'!$C$44)/60*P11 -> 5522.45261 | Q12: =('Inputs and assumptions'!$C$54/'Inputs and assumptions'!$C$44)/60*Q11 -> 6313.274161 | R12: =('Inputs and assumptions'!$C$54/'Inputs and assumptions'!$C$44)/60*R11 -> 7717.91324 | S12: =('Inputs and assumptions'!$C$54/'Inputs and assumptions'!$C$44)/60*S11 -> 8834.414088 | T12: =('Inputs and assumptions'!$C$54/'Inputs and assumptions'!$C$44)/60*T11 -> 10365.71673 | U12: =('Inputs and assumptions'!$C$54/'Inputs and assumptions'!$C$44)/60*U11 -> 13436.56562 | V12: =('Inputs and assumptions'!$C$54/'Inputs and assumptions'!$C$44)/60*V11 -> 12143.20905 | W12: =('Inputs and assumptions'!$C$54/'Inputs and assumptions'!$C$44)/60*W11 -> 5497.873176 | X12: ok
A13: P | B13: Price per kilometre of demand (excluding GST) | C13: $/km occupied | J13: =(('Inputs and assumptions'!$C$15+'Inputs and assumptions'!$C$47*'Inputs and assumptions'!$C$19)/'Inputs and assumptions'!$C$44+('Inputs and assumptions'!$C$16*'Inputs and assumptions'!D9+'Inputs and assumptions'!$C$17*(1-'Inputs and assumptions'!D9))*'Inputs and assumptions'!$C$52/'Inputs and assumptions'!$C$44+('Inputs and assumptions'!$C$51/60*'Inputs and assumptions'!$C$18)/'Inputs and assumptions'!$C$44)/$B$20 -> 2.804917165 | K13: =(('Inputs and assumptions'!$C$15+'Inputs and assumptions'!$C$47*'Inputs and assumptions'!$C$19)/'Inputs and assumptions'!$C$44+('Inputs and assumptions'!$C$16*'Inputs and assumptions'!E9+'Inputs and assumptions'!$C$17*(1-'Inputs and assumptions'!E9))*'Inputs and assumptions'!$C$52/'Inputs and assumptions'!$C$44+('Inputs and assumptions'!$C$51/60*'Inputs and assumptions'!$C$18)/'Inputs and assumptions'!$C$44)/$B$20 -> 2.804917165 | L13: =(('Inputs and assumptions'!$C$15+'Inputs and assumptions'!$C$47*'Inputs and assumptions'!$C$19)/'Inputs and assumptions'!$C$44+('Inputs and assumptions'!$C$16*'Inputs and assumptions'!F9+'Inputs and assumptions'!$C$17*(1-'Inputs and assumptions'!F9))*'Inputs and assumptions'!$C$52/'Inputs and assumptions'!$C$44+('Inputs and assumptions'!$C$51/60*'Inputs and assumptions'!$C$18)/'Inputs and assumptions'!$C$44)/$B$20 -> 2.804917165 | M13: =(('Inputs and assumptions'!$C$15+'Inputs and assumptions'!$C$47*'Inputs and assumptions'!$C$19)/'Inputs and assumptions'!$C$44+('Inputs and assumptions'!$C$16*'Inputs and assumptions'!G9+'Inputs and assumptions'!$C$17*(1-'Inputs and assumptions'!G9))*'Inputs and assumptions'!$C$52/'Inputs and assumptions'!$C$44+('Inputs and assumptions'!$C$51/60*'Inputs and assumptions'!$C$18)/'Inputs and assumptions'!$C$44)/$B$20 -> 2.804917165 | N13: =(('Inputs and assumptions'!$C$15+'Inputs and assumptions'!$C$47*'Inputs and assumptions'!$C$19)/'Inputs and assumptions'!$C$44+('Inputs and assumptions'!$C$16*'Inputs and assumptions'!H9+'Inputs and assumptions'!$C$17*(1-'Inputs and assumptions'!H9))*'Inputs and assumptions'!$C$52/'Inputs and assumptions'!$C$44+('Inputs and assumptions'!$C$51/60*'Inputs and assumptions'!$C$18)/'Inputs and assumptions'!$C$44)/$B$20 -> 2.804917165 | O13: =(('Inputs and assumptions'!$C$15+'Inputs and assumptions'!$C$47*'Inputs and assumptions'!$C$19)/'Inputs and assumptions'!$C$44+('Inputs and assumptions'!$C$16*'Inputs and assumptions'!I9+'Inputs and assumptions'!$C$17*(1-'Inputs and assumptions'!I9))*'Inputs and assumptions'!$C$52/'Inputs and assumptions'!$C$44+('Inputs and assumptions'!$C$51/60*'Inputs and assumptions'!$C$18)/'Inputs and assumptions'!$C$44)/$B$20 -> 2.804917165 | P13: =(('Inputs and assumptions'!$C$15+'Inputs and assumptions'!$C$47*'Inputs and assumptions'!$C$19)/'Inputs and assumptions'!$C$44+('Inputs and assumptions'!$C$16*'Inputs and assumptions'!J9+'Inputs and assumptions'!$C$17*(1-'Inputs and assumptions'!J9))*'Inputs and assumptions'!$C$52/'Inputs and assumptions'!$C$44+('Inputs and assumptions'!$C$51/60*'Inputs and assumptions'!$C$18)/'Inputs and assumptions'!$C$44)/$B$20 -> 2.804917165 | Q13: =(('Inputs and assumptions'!$C$15+'Inputs and assumptions'!$C$47*'Inputs and assumptions'!$C$19)/'Inputs and assumptions'!$C$44+('Inputs and assumptions'!$C$16*'Inputs and assumptions'!K9+'Inputs and assumptions'!$C$17*(1-'Inputs and assumptions'!K9))*'Inputs and assumptions'!$C$52/'Inputs and assumptions'!$C$44+('Inputs and assumptions'!$C$51/60*'Inputs and assumptions'!$C$18)/'Inputs and assumptions'!$C$44)/$B$20 -> 2.854100864 | R13: =(('Inputs and assumptions'!$C$15+'Inputs and assumptions'!$C$47*'Inputs and assumptions'!$C$19)/'Inputs and assumptions'!$C$44+('Inputs and assumptions'!$C$16*'Inputs and assumptions'!L9+'Inputs and assumptions'!$C$17*(1-'Inputs and assumptions'!L9))*'Inputs and assumptions'!$C$52/'Inputs and assumptions'!$C$44+('Inputs and assumptions'!$C$51/60*'Inputs and assumptions'!$C$18)/'Inputs and assumptions'!$C$44)/$B$20 -> 2.854100864 | S13: =(('Inputs and assumptions'!$C$15+'Inputs and assumptions'!$C$47*'Inputs and assumptions'!$C$19)/'Inputs and assumptions'!$C$44+('Inputs and assumptions'!$C$16*'Inputs and assumptions'!M9+'Inputs and assumptions'!$C$17*(1-'Inputs and assumptions'!M9))*'Inputs and assumptions'!$C$52/'Inputs and assumptions'!$C$44+('Inputs and assumptions'!$C$51/60*'Inputs and assumptions'!$C$18)/'Inputs and assumptions'!$C$44)/$B$20 -> 2.854100864 | T13: =(('Inputs and assumptions'!$C$15+'Inputs and assumptions'!$C$47*'Inputs and assumptions'!$C$19)/'Inputs and assumptions'!$C$44+('Inputs and assumptions'!$C$16*'Inputs and assumptions'!N9+'Inputs and assumptions'!$C$17*(1-'Inputs and assumptions'!N9))*'Inputs and assumptions'!$C$52/'Inputs and assumptions'!$C$44+('Inputs and assumptions'!$C$51/60*'Inputs and assumptions'!$C$18)/'Inputs and assumptions'!$C$44)/$B$20 -> 2.854100864 | U13: =(('Inputs and assumptions'!$C$15+'Inputs and assumptions'!$C$47*'Inputs and assumptions'!$C$19)/'Inputs and assumptions'!$C$44+('Inputs and assumptions'!$C$16*'Inputs and assumptions'!O9+'Inputs and assumptions'!$C$17*(1-'Inputs and assumptions'!O9))*'Inputs and assumptions'!$C$52/'Inputs and assumptions'!$C$44+('Inputs and assumptions'!$C$51/60*'Inputs and assumptions'!$C$18)/'Inputs and assumptions'!$C$44)/$B$20 -> 2.903284563 | V13: =(('Inputs and assumptions'!$C$15+'Inputs and assumptions'!$C$47*'Inputs and assumptions'!$C$19)/'Inputs and assumptions'!$C$44+('Inputs and assumptions'!$C$16*'Inputs and assumptions'!P9+'Inputs and assumptions'!$C$17*(1-'Inputs and assumptions'!P9))*'Inputs and assumptions'!$C$52/'Inputs and assumptions'!$C$44+('Inputs and assumptions'!$C$51/60*'Inputs and assumptions'!$C$18)/'Inputs and assumptions'!$C$44)/$B$20 -> 2.968862828 | W13: =(('Inputs and assumptions'!$C$15+'Inputs and assumptions'!$C$47*'Inputs and assumptions'!$C$19)/'Inputs and assumptions'!$C$44+('Inputs and assumptions'!$C$16*'Inputs and assumptions'!Q9+'Inputs and assumptions'!$C$17*(1-'Inputs and assumptions'!Q9))*'Inputs and assumptions'!$C$52/'Inputs and assumptions'!$C$44+('Inputs and assumptions'!$C$51/60*'Inputs and assumptions'!$C$18)/'Inputs and assumptions'!$C$44)/$B$20 -> 2.854100864 | X13: ok - see check below. Very long formula!! GST adjustment no longer hard-coded
A14: c | B14: Variable cost | C14: $/km occupied | J14: =('Inputs and assumptions'!C25+'Inputs and assumptions'!C27)*'Inputs and assumptions'!C53*(1+'Inputs and assumptions'!$C$31) -> 0.4828223323 | K14: =J14 -> 0.4828223323 | L14: =K14 -> 0.4828223323 | M14: 0.4828223323 | N14: 0.4828223323 | O14: 0.4828223323 | P14: 0.4828223323 | Q14: 0.4828223323 | R14: 0.4828223323 | S14: 0.4828223323 | T14: 0.4828223323 | U14: 0.4828223323 | V14: 0.4828223323 | W14: 0.4828223323 | X14: ok
B15: Fixed component of shift costs | C15: $/taxi/shift | J15: =(('Inputs and assumptions'!$C$23+IF('Inputs and assumptions'!D6="Yes",'Inputs and assumptions'!$C$24,0))*'Inputs and assumptions'!$C$43+'Inputs and assumptions'!$C$26/'Inputs and assumptions'!$C$46)*(1+'Inputs and assumptions'!$C$31)-IF('Inputs and assumptions'!$C$61="Flat",0,'Inputs and assumptions'!$C$60) -> 131.2335063 | K15: =(('Inputs and assumptions'!$C$23+IF('Inputs and assumptions'!E6="Yes",'Inputs and assumptions'!$C$24,0))*'Inputs and assumptions'!$C$43+'Inputs and assumptions'!$C$26/'Inputs and assumptions'!$C$46)*(1+'Inputs and assumptions'!$C$31)-IF('Inputs and assumptions'!$C$61="Flat",0,'Inputs and assumptions'!$C$60) -> 131.2335063 | L15: =(('Inputs and assumptions'!$C$23+IF('Inputs and assumptions'!F6="Yes",'Inputs and assumptions'!$C$24,0))*'Inputs and assumptions'!$C$43+'Inputs and assumptions'!$C$26/'Inputs and assumptions'!$C$46)*(1+'Inputs and assumptions'!$C$31)-IF('Inputs and assumptions'!$C$61="Flat",0,'Inputs and assumptions'!$C$60) -> 131.2335063 | M15: =(('Inputs and assumptions'!$C$23+IF('Inputs and assumptions'!G6="Yes",'Inputs and assumptions'!$C$24,0))*'Inputs and assumptions'!$C$43+'Inputs and assumptions'!$C$26/'Inputs and assumptions'!$C$46)*(1+'Inputs and assumptions'!$C$31)-IF('Inputs and assumptions'!$C$61="Flat",0,'Inputs and assumptions'!$C$60) -> 131.2335063 | N15: =(('Inputs and assumptions'!$C$23+IF('Inputs and assumptions'!H6="Yes",'Inputs and assumptions'!$C$24,0))*'Inputs and assumptions'!$C$43+'Inputs and assumptions'!$C$26/'Inputs and assumptions'!$C$46)*(1+'Inputs and assumptions'!$C$31)-IF('Inputs and assumptions'!$C$61="Flat",0,'Inputs and assumptions'!$C$60) -> 131.2335063 | O15: =(('Inputs and assumptions'!$C$23+IF('Inputs and assumptions'!I6="Yes",'Inputs and assumptions'!$C$24,0))*'Inputs and assumptions'!$C$43+'Inputs and assumptions'!$C$26/'Inputs and assumptions'!$C$46)*(1+'Inputs and assumptions'!$C$31)-IF('Inputs and assumptions'!$C$61="Flat",0,'Inputs and assumptions'!$C$60) -> 151.9735063 | P15: =(('Inputs and assumptions'!$C$23+IF('Inputs and assumptions'!J6="Yes",'Inputs and assumptions'!$C$24,0))*'Inputs and assumptions'!$C$43+'Inputs and assumptions'!$C$26/'Inputs and assumptions'!$C$46)*(1+'Inputs and assumptions'!$C$31)-IF('Inputs and assumptions'!$C$61="Flat",0,'Inputs and assumptions'!$C$60) -> 151.9735063 | Q15: =(('Inputs and assumptions'!$C$23+IF('Inputs and assumptions'!K6="Yes",'Inputs and assumptions'!$C$24,0))*'Inputs and assumptions'!$C$43+'Inputs and assumptions'!$C$28+'Inputs and assumptions'!$C$26/'Inputs and assumptions'!$C$46)*(1+'Inputs and assumptions'!$C$31)-IF('Inputs and assumptions'!$C$61="Flat",0,'Inputs and assumptions'!$C$60) -> 142.6405063 | R15: =(('Inputs and assumptions'!$C$23+IF('Inputs and assumptions'!L6="Yes",'Inputs and assumptions'!$C$24,0))*'Inputs and assumptions'!$C$43+'Inputs and assumptions'!$C$28+'Inputs and assumptions'!$C$26/'Inputs and assumptions'!$C$46)*(1+'Inputs and assumptions'!$C$31)-IF('Inputs and assumptions'!$C$61="Flat",0,'Inputs and assumptions'!$C$60) -> 142.6405063 | S15: =(('Inputs and assumptions'!$C$23+IF('Inputs and assumptions'!M6="Yes",'Inputs and assumptions'!$C$24,0))*'Inputs and assumptions'!$C$43+'Inputs and assumptions'!$C$28+'Inputs and assumptions'!$C$26/'Inputs and assumptions'!$C$46)*(1+'Inputs and assumptions'!$C$31)-IF('Inputs and assumptions'!$C$61="Flat",0,'Inputs and assumptions'!$C$60) -> 142.6405063 | T15: =(('Inputs and assumptions'!$C$23+IF('Inputs and assumptions'!N6="Yes",'Inputs and assumptions'!$C$24,0))*'Inputs and assumptions'!$C$43+'Inputs and assumptions'!$C$28+'Inputs and assumptions'!$C$26/'Inputs and assumptions'!$C$46)*(1+'Inputs and assumptions'!$C$31)-IF('Inputs and assumptions'!$C$61="Flat",0,'Inputs and assumptions'!$C$60) -> 142.6405063 | U15: =(('Inputs and assumptions'!$C$23+IF('Inputs and assumptions'!O6="Yes",'Inputs and assumptions'!$C$24,0))*'Inputs and assumptions'!$C$43+'Inputs and assumptions'!$C$28+'Inputs and assumptions'!$C$26/'Inputs and assumptions'!$C$46)*(1+'Inputs and assumptions'!$C$31)-IF('Inputs and assumptions'!$C$61="Flat",0,'Inputs and assumptions'!$C$60) -> 163.3805063 | V15: =(('Inputs and assumptions'!$C$23+IF('Inputs and assumptions'!P6="Yes",'Inputs and assumptions'!$C$24,0))*'Inputs and assumptions'!$C$43+'Inputs and assumptions'!$C$28+'Inputs and assumptions'!$C$26/'Inputs and assumptions'!$C$46)*(1+'Inputs and assumptions'!$C$31)-IF('Inputs and assumptions'!$C$61="Flat",0,'Inputs and assumptions'!$C$60) -> 163.3805063 | W15: =(('Inputs and assumptions'!$C$23+IF('Inputs and assumptions'!Q6="Yes",'Inputs and assumptions'!$C$24,0))*'Inputs and assumptions'!$C$43+'Inputs and assumptions'!$C$28+'Inputs and assumptions'!$C$26/'Inputs and assumptions'!$C$46)*(1+'Inputs and assumptions'!$C$31)-IF('Inputs and assumptions'!$C$61="Flat",0,'Inputs and assumptions'!$C$60) -> 163.3805063 | X15: ok - see check below. Very long formula!!
B16: Variable component of fixed costs | C16: $/additional taxi per shift | J16: =IF('Inputs and assumptions'!$C$61="Flat",0.0000000000000001,'Inputs and assumptions'!$C$58/5000) -> 0.009 | K16: =IF('Inputs and assumptions'!$C$61="Flat",0.0000000000000001,'Inputs and assumptions'!$C$58/5000) -> 0.009 | L16: =IF('Inputs and assumptions'!$C$61="Flat",0.0000000000000001,'Inputs and assumptions'!$C$58/5000) -> 0.009 | M16: =IF('Inputs and assumptions'!$C$61="Flat",0.0000000000000001,'Inputs and assumptions'!$C$58/5000) -> 0.009 | N16: =IF('Inputs and assumptions'!$C$61="Flat",0.0000000000000001,'Inputs and assumptions'!$C$58/5000) -> 0.009 | O16: =IF('Inputs and assumptions'!$C$61="Flat",0.0000000000000001,'Inputs and assumptions'!$C$58/5000) -> 0.009 | P16: =IF('Inputs and assumptions'!$C$61="Flat",0.0000000000000001,'Inputs and assumptions'!$C$58/5000) -> 0.009 | Q16: =IF('Inputs and assumptions'!$C$61="Flat",0.0000000000000001,'Inputs and assumptions'!$C$58/5000) -> 0.009 | R16: =IF('Inputs and assumptions'!$C$61="Flat",0.0000000000000001,'Inputs and assumptions'!$C$58/5000) -> 0.009 | S16: =IF('Inputs and assumptions'!$C$61="Flat",0.0000000000000001,'Inputs and assumptions'!$C$58/5000) -> 0.009 | T16: =IF('Inputs and assumptions'!$C$61="Flat",0.0000000000000001,'Inputs and assumptions'!$C$58/5000) -> 0.009 | U16: =IF('Inputs and assumptions'!$C$61="Flat",0.0000000000000001,'Inputs and assumptions'!$C$58/5000) -> 0.009 | V16: =IF('Inputs and assumptions'!$C$61="Flat",0.0000000000000001,'Inputs and assumptions'!$C$58/5000) -> 0.009 | W16: =IF('Inputs and assumptions'!$C$61="Flat",0.0000000000000001,'Inputs and assumptions'!$C$58/5000) -> 0.009 | X16: flat demand curve gives Div0 error
B17: Waiting time constant | C17: Unit | J17: ='Inputs and assumptions'!D12*(J7-J9*J18) -> 24758.6356 | K17: =J17 -> 24758.6356 | L17: =K17 -> 24758.6356 | M17: 24758.6356 | N17: 24758.6356 | O17: 24758.6356 | P17: 24758.6356 | Q17: 24758.6356 | R17: 24758.6356 | S17: 24758.6356 | T17: 24758.6356 | U17: 24758.6356 | V17: 24758.6356 | W17: 24758.6356 | X17: formula correct (as per Description, with estimated base waiting time). Uses waiting time for Monday day. Stricktly speaking, shouldn't it use a weighted average waiting time?
B18: Constant to link occupied taxi kms to occupied taxis | C18: Unit (inverse of km per shift) | J18: =1/'Inputs and assumptions'!C49/'Inputs and assumptions'!C43 -> 0.003125 | K18: =J18 -> 0.003125 | L18: =K18 -> 0.003125 | M18: 0.003125 | N18: 0.003125 | O18: 0.003125 | P18: 0.003125 | Q18: 0.003125 | R18: 0.003125 | S18: 0.003125 | T18: 0.003125 | U18: 0.003125 | V18: 0.003125 | W18: 0.003125 | X18: assume this is correct - looks ok
J19: =RANK(J9,$J$9:$W$9,1) -> 6 | K19: 5 | L19: 8 | M19: 9 | N19: 10 | O19: 3 | P19: 1 | Q19: 4 | R19: 7 | S19: 11 | T19: 12 | U19: 14 | V19: 13 | W19: 2
A20: GST adjustor | B20: =(1+'Inputs and assumptions'!$C$20) -> 1.1 | J20: Day | Q20: Night
J21: M | K21: T | L21: W | M21: T | N21: F | O21: S | P21: S | Q21: M | R21: T | S21: W | T21: T | U21: F | V21: S | W21: S
C22: Average number of trips by day 2011/12 | J22: =J130/52 -> 7403.349821 | K22: =K130/52 -> 7365.145355 | L22: 7574.859661 | M22: 8060.641933 | N22: 8068.248745 | O22: 5563.301162 | P22: 4980.01268 | Q22: 5959.497066 | R22: 7291.887038 | S22: 8342.935878 | T22: 9785.742666 | U22: 13267.67519 | V22: 12198.77875 | W22: 5289.481245 | X22: =X130 -> ok
C23: Average number of trips by day 2011/12 without a restriction on the number of taxis | J23: =J118/52 -> 7605.227159 | K23: =K118/52 -> 7546.428196 | L23: 7781.40586 | M23: 8297.02949 | N23: 8370.149491 | O23: 5563.301162 | P23: 4980.01268 | Q23: 5959.497066 | R23: 7471.351326 | S23: 8669.48209 | T23: 10310.36247 | U23: 14313.69345 | V23: 13174.76614 | W23: 5289.481245
C24: Proportion of taxis on the road | J24: =J142/100 -> 0.8285193593 | K24: =K142/100 -> 0.8348091526 | L24: 0.8418156435 | M24: 0.8708689789 | N24: 0.843136514 | O24: 0.6784054288 | P24: 0.6171523004 | Q24: 0.7250087142 | R24: 0.7664096058 | S24: 0.7950701803 | T24: 0.8354261809 | U24: 0.89 | V24: 0.8445928901 | W24: 0.5963208743 | X24: =X142 -> ok
C106: Occupancy | J106: =J148 -> 0.2708526995 | K106: =K148 -> 0.2674247993 | L106: 0.2727502499 | M106: 0.2805591045 | N106: 0.2900607325 | O106: 0.2485712029 | P106: 0.2445939184 | Q106: 0.2365385669 | R106: 0.2737881016 | S106: 0.3019597228 | T106: 0.3370709208 | U106: 0.4289833158 | V106: 0.415627726 | W106: 0.2552517022
A109: =IF(ROW(A118)=118,"","MACRO ERROR - DO NOT RUN MODEL") -> 
U115: =U22/S22-1 -> 0.5902885245 | V115: =V22/Q22-1 -> 1.04694769
J116: Monday | K116: Tuesday | L116: Wednesday | M116: Thursday | N116: Friday | O116: Saturday | P116: Sunday | Q116: Monday | R116: Tuesday | S116: Wednesday | T116: Thursday | U116: Friday | V116: Saturday | W116: Sunday
A117: BASELINE MODEL | J117: Day | K117: Day | L117: Day | M117: Day | N117: Day | O117: Day | P117: Day | Q117: Night | R117: Night | S117: Night | T117: Night | U117: Night | V117: Night | W117: Night
A118: Q* | B118: Free entry demand | C118: Occupied kilometres | J118: 395471.8123 | K118: 392414.2662 | L118: 404633.1047 | M118: 431445.5335 | N118: 435247.7735 | O118: 289291.6604 | P118: 258960.6594 | Q118: 309893.8475 | R118: 388510.269 | S118: 450813.0687 | T118: 536138.8482 | U118: 744312.0595 | V118: 685087.8393 | W118: 275053.0247
A119: W* | B119: Free entry waiting time | C119: Minutes, average | J119: 6.298360062 | K119: 6.334047537 | L119: 6.194539382 | M119: 5.915099316 | N119: 5.878153051 | O119: 9.059490033 | P119: 9.906222348 | Q119: 7.920974049 | R119: 6.668277582 | S119: 5.977850475 | T119: 5.284735528 | U119: 4.57907605 | V119: 4.703848917 | W119: 9.872323745
A120: T* | B120: Free entry number of taxis on the road | C120: Taxis on the road | J120: 5166.815035 | K120: 5135.112042 | L120: 5261.326979 | M120: 5533.934223 | N120: 5572.124616 | O120: 3636.931504 | P120: 3308.553483 | Q120: 4094.124209 | R120: 4926.992756 | S120: 5550.519661 | T120: 6360.367607 | U120: 7732.881587 | V120: 7404.383942 | W120: 3367.423977
A121: Q* zero condition | B121: Zero condition to solve for free entry | C121: Occupied kilometres | J121: =J10-J11*J13-J12*J119-J118 -> -7.566995919e-09 | K121: 5.820766091e-10 | L121: -8.731149137e-10 | M121: 8.731149137e-10 | N121: -8.731149137e-10 | O121: 0 | P121: 6.4028427e-10 | Q121: 0 | R121: 0 | S121: 0 | T121: 0 | U121: 0 | V121: 0 | W121: 6.98491931e-10 | X121: ok
A122: W* zero condition | B122: Zero condition to solve for free entry | C122: Minutes, average | J122: =J17/(J120-J118*J18)-J119 -> -3.230551382e-07 | K122: -2.004529875e-11 | L122: -1.97717398e-11 | M122: -1.930988702e-11 | N122: -1.838262875e-11 | O122: -7.519318501e-12 | P122: -5.375255796e-12 | Q122: -7.549516567e-13 | R122: -5.784706048e-12 | S122: -8.372857963e-12 | T122: -1.000000083e-11 | U122: -4.956035582e-12 | V122: -1.26929578e-11 | W122: 4.268585485e-12 | X122: formula correct (as per Description) and check below
A123: T* zero condition | B123: Zero condition to solve for free entry | C123: Taxis on the road | J123: =(-J15+SQRT(J15^2+4*J16*(J13-J14)*J118))/(2*J16)-J120 -> -9.99238182e-07 | K123: 1.099579094e-09 | L123: 1.091393642e-09 | M123: 1.146872819e-09 | N123: 1.126863935e-09 | O123: 2.123670129e-10 | P123: 1.2187229e-10 | Q123: 2.273736754e-11 | R123: 2.792148734e-10 | S123: 4.674802767e-10 | T123: 6.730260793e-10 | U123: 3.337845556e-10 | V123: 9.476934792e-10 | W123: 0 | X123: formula correct (as per Description) and check below
A124: Qbar | B124: Fixed taxi numbers demand | C124: Occupied kilometres | J124: =((J18*(J10-J11*J13)+J126)-SQRT((J18*(J10-J11*J13)+J126)^2-4*J18*(J126*(J10-J11*J13)-J12*J17)))/(2*J18) -> 384974.1907 | K124: 382987.5585 | L124: 393892.7024 | M124: 419153.3805 | N124: 419548.9348 | O124: 296523.818 | P124: 271291.5817 | Q124: 312740.9078 | R124: 379178.126 | S124: 433832.6657 | T124: 508858.6187 | U124: 689919.1098 | V124: 634336.4952 | W124: 289154.1056 | X124: formula correct (as per Description) and check below
A125: Wbar | B125: Fixed taxi numbers waiting time | C125: Minutes, average | J125: =J17/(J126-J124*J18) -> 7.64474437 | K125: 7.551643614 | L125: 7.543629115 | M125: 7.371111129 | N125: 7.715459657 | O125: 7.86556983 | P125: 7.673351698 | Q125: 7.470009887 | R125: 7.877431234 | S125: 7.899925081 | T125: 7.916510084 | U125: 8.627204957 | V125: 8.88325025 | W125: 7.307499051 | X125: formula correct (as per Description) and check below
A126: Tbar | B126: Fixed taxi numbers | C126: Taxis on the road | J126: =J8 -> 4441.692285 | K126: 4475.411867 | L126: 4512.973665 | M126: 4668.728596 | N126: 4520.054851 | O126: 4074.36 | P126: 4074.36 | Q126: 4291.72 | R126: 4327.915044 | S126: 4489.761308 | T126: 4717.651643 | U126: 5025.83 | V126: 4769.41605 | W126: 4291.72 | X126: ok
A127: Q*_flat | B127: Free entry demand, flat cost curve | C127: Occupied kilometres | J127: =(J10-J11*J13+SQRT((J10-J11*J13)^2-4*J12*J17/((J13-J14)/J15-J18)))/2 -> 412455.4079 | K127: 409309.5538 | L127: 421880.9294 | M127: 449463.4568 | N127: 453452.1726 | O127: 303516.0118 | P127: 272365.8559 | Q127: 324183.3976 | R127: 405026.3049 | S127: 469081.7379 | T127: 556772.8045 | U127: 768824.0916 | V127: 707039.9052 | W127: 287800.9819 | X127: formula correct (as per Description) and check below
A128: W*_flat | B128: Free entry waiting time, flat cost curve | C128: Minutes, average | J128: =J17/((J13-J14)/J15-J18)/J127 -> 4.120109831 | K128: 4.151775997 | L128: 4.028059726 | M128: 3.780867065 | N128: 3.747609304 | O128: 6.711264036 | P128: 7.478823246 | Q128: 5.657560527 | R128: 4.528316238 | S128: 3.909952243 | T128: 3.29413933 | U128: 2.754797969 | V128: 2.89608411 | W128: 7.553616716 | X128: formula correct (as per Description) and check below
A129: T*_flat | B129: Free entry number of taxis on the road, flat cost curve | C129: Taxis on the road | J129: =(J13-J14)*J127/J15 -> 7298.140529 | K129: =(K13-K14)*K127/K15 -> 7242.476608 | L129: 7464.919239 | M129: 7952.974813 | N129: 8023.552646 | O129: 4637.604143 | P129: 4161.642129 | Q129: 5389.276515 | R129: 6733.221904 | S129: 7798.08964 | T129: 9255.87992 | U129: 11390.03494 | V129: 10758.50403 | W129: 4177.097409 | X129: formula correct (as per Description) and check below. But answer is correct only if 'flat' option is selected
A130: Q | B130: Equilibrium demand | C130: Occupied kilometres | J130: =IF(J132=J$126,J124,IF('Inputs and assumptions'!$C$61="Flat",J127,J118)) -> 384974.1907 | K130: =IF(K132=K$126,K124,IF('Inputs and assumptions'!$C$61="Flat",K127,K118)) -> 382987.5585 | L130: =IF(L132=L$126,L124,IF('Inputs and assumptions'!$C$61="Flat",L127,L118)) -> 393892.7024 | M130: =IF(M132=M$126,M124,IF('Inputs and assumptions'!$C$61="Flat",M127,M118)) -> 419153.3805 | N130: =IF(N132=N$126,N124,IF('Inputs and assumptions'!$C$61="Flat",N127,N118)) -> 419548.9348 | O130: =IF(O132=O$126,O124,IF('Inputs and assumptions'!$C$61="Flat",O127,O118)) -> 289291.6604 | P130: =IF(P132=P$126,P124,IF('Inputs and assumptions'!$C$61="Flat",P127,P118)) -> 258960.6594 | Q130: =IF(Q132=Q$126,Q124,IF('Inputs and assumptions'!$C$61="Flat",Q127,Q118)) -> 309893.8475 | R130: =IF(R132=R$126,R124,IF('Inputs and assumptions'!$C$61="Flat",R127,R118)) -> 379178.126 | S130: =IF(S132=S$126,S124,IF('Inputs and assumptions'!$C$61="Flat",S127,S118)) -> 433832.6657 | T130: =IF(T132=T$126,T124,IF('Inputs and assumptions'!$C$61="Flat",T127,T118)) -> 508858.6187 | U130: =IF(U132=U$126,U124,IF('Inputs and assumptions'!$C$61="Flat",U127,U118)) -> 689919.1098 | V130: =IF(V132=V$126,V124,IF('Inputs and assumptions'!$C$61="Flat",V127,V118)) -> 634336.4952 | W130: =IF(W132=W$126,W124,IF('Inputs and assumptions'!$C$61="Flat",W127,W118)) -> 275053.0247 | X130: ok
A131: W | B131: Equilibrium waiting time | C131: Minutes, average | J131: =IF(J132=J$126,J125,IF('Inputs and assumptions'!$C$61="Flat",J128,J119)) -> 7.64474437 | K131: =IF(K132=K$126,K125,IF('Inputs and assumptions'!$C$61="Flat",K128,K119)) -> 7.551643614 | L131: =IF(L132=L$126,L125,IF('Inputs and assumptions'!$C$61="Flat",L128,L119)) -> 7.543629115 | M131: =IF(M132=M$126,M125,IF('Inputs and assumptions'!$C$61="Flat",M128,M119)) -> 7.371111129 | N131: =IF(N132=N$126,N125,IF('Inputs and assumptions'!$C$61="Flat",N128,N119)) -> 7.715459657 | O131: =IF(O132=O$126,O125,IF('Inputs and assumptions'!$C$61="Flat",O128,O119)) -> 9.059490033 | P131: =IF(P132=P$126,P125,IF('Inputs and assumptions'!$C$61="Flat",P128,P119)) -> 9.906222348 | Q131: =IF(Q132=Q$126,Q125,IF('Inputs and assumptions'!$C$61="Flat",Q128,Q119)) -> 7.920974049 | R131: =IF(R132=R$126,R125,IF('Inputs and assumptions'!$C$61="Flat",R128,R119)) -> 7.877431234 | S131: =IF(S132=S$126,S125,IF('Inputs and assumptions'!$C$61="Flat",S128,S119)) -> 7.899925081 | T131: =IF(T132=T$126,T125,IF('Inputs and assumptions'!$C$61="Flat",T128,T119)) -> 7.916510084 | U131: =IF(U132=U$126,U125,IF('Inputs and assumptions'!$C$61="Flat",U128,U119)) -> 8.627204957 | V131: =IF(V132=V$126,V125,IF('Inputs and assumptions'!$C$61="Flat",V128,V119)) -> 8.88325025 | W131: =IF(W132=W$126,W125,IF('Inputs and assumptions'!$C$61="Flat",W128,W119)) -> 9.872323745 | X131: ok
A132: T | B132: Equilibrium number of taxis on the road | C132: Taxis on the road | J132: =IF('Inputs and assumptions'!$C$61="Flat",MIN(J129,J126),MIN(J120,J126)) -> 4441.692285 | K132: =IF('Inputs and assumptions'!$C$61="Flat",MIN(K129,K126),MIN(K120,K126)) -> 4475.411867 | L132: =IF('Inputs and assumptions'!$C$61="Flat",MIN(L129,L126),MIN(L120,L126)) -> 4512.973665 | M132: =IF('Inputs and assumptions'!$C$61="Flat",MIN(M129,M126),MIN(M120,M126)) -> 4668.728596 | N132: =IF('Inputs and assumptions'!$C$61="Flat",MIN(N129,N126),MIN(N120,N126)) -> 4520.054851 | O132: =IF('Inputs and assumptions'!$C$61="Flat",MIN(O129,O126),MIN(O120,O126)) -> 3636.931504 | P132: =IF('Inputs and assumptions'!$C$61="Flat",MIN(P129,P126),MIN(P120,P126)) -> 3308.553483 | Q132: =IF('Inputs and assumptions'!$C$61="Flat",MIN(Q129,Q126),MIN(Q120,Q126)) -> 4094.124209 | R132: =IF('Inputs and assumptions'!$C$61="Flat",MIN(R129,R126),MIN(R120,R126)) -> 4327.915044 | S132: =IF('Inputs and assumptions'!$C$61="Flat",MIN(S129,S126),MIN(S120,S126)) -> 4489.761308 | T132: =IF('Inputs and assumptions'!$C$61="Flat",MIN(T129,T126),MIN(T120,T126)) -> 4717.651643 | U132: =IF('Inputs and assumptions'!$C$61="Flat",MIN(U129,U126),MIN(U120,U126)) -> 5025.83 | V132: =IF('Inputs and assumptions'!$C$61="Flat",MIN(V129,V126),MIN(V120,V126)) -> 4769.41605 | W132: =IF('Inputs and assumptions'!$C$61="Flat",MIN(W129,W126),MIN(W120,W126)) -> 3367.423977 | X132: ok
A133: Difference between max effective and free entry (for info) | J133: =J120-J126 -> 725.1227491 | K133: =K120-K126 -> 659.7001745 | L133: 748.3533141 | M133: 865.2056271 | N133: 1052.069765 | O133: -437.4284962 | P133: -765.8065175 | Q133: -197.5957909 | R133: 599.0777127 | S133: 1060.758353 | T133: 1642.715963 | U133: 2707.051587 | V133: 2634.967892 | W133: -924.296023
A136: MODEL OUTPUTS
J137: Monday | K137: Tuesday | L137: Wednesday | M137: Thursday | N137: Friday | O137: Saturday | P137: Sunday | Q137: Monday | R137: Tuesday | S137: Wednesday | T137: Thursday | U137: Friday | V137: Saturday | W137: Sunday
J138: Day | K138: Day | L138: Day | M138: Day | N138: Day | O138: Day | P138: Day | Q138: Night | R138: Night | S138: Night | T138: Night | U138: Night | V138: Night | W138: Night
A139: Revenue per taxi (excluding GST) | J139: =J130*J13/J132 -> 243.1102035 | K139: =K130*K13/K132 -> 240.0334112 | L139: =L130*L13/L132 -> 244.8133945 | M139: 251.8224154 | N139: 260.3508248 | O139: 223.1109228 | P139: =P130*P13/P132 -> 219.5410177 | Q139: 216.033577 | R139: 250.0540343 | S139: 275.7835219 | T139: 307.85101 | U139: 398.5474043 | V139: 394.861346 | W139: 233.1245132 | X139: ok
A140: Cost per taxi | J140: =J15+J16*J132+J14*J130/J132 -> 213.0563312 | K140: =K15+K16*K132+K14*K130/K132 -> 212.830186 | L140: 213.9910411 | M140: 216.5993281 | N140: 216.7292958 | O140: 223.1109228 | P140: 219.5410177 | Q140: 216.033577 | R140: 223.8928649 | S140: 229.7020854 | T140: 237.1778889 | U140: 274.8922484 | V140: 270.5210422 | W140: =W15+W16*W132+W14*W130/W132 -> 233.1245132 | X140: ok
A141: Surplus per taxi for average shift | J141: =J139-J140 -> 30.05387236 | K141: 27.20322511 | L141: =L139-L140 -> 30.82235338 | M141: 35.22308729 | N141: 43.62152899 | O141: 1.270450412e-11 | P141: 7.730704965e-12 | Q141: 1.222133506e-12 | R141: 26.16116947 | S141: 46.08143651 | T141: 70.67312106 | U141: 123.655156 | V141: 124.3403038 | W141: =W139-W140 -> 0 | X141: ok
A142: Share of taxis on the road | J142: =J132/J6*100 -> 82.85193593 | K142: =K132/K6*100 -> 83.48091526 | L142: =L132/L6*100 -> 84.18156435 | M142: 87.08689789 | N142: 84.3136514 | O142: 67.84054288 | P142: 61.71523004 | Q142: 72.50087142 | R142: 76.64096058 | S142: 79.50701803 | T142: 83.54261809 | U142: 89 | V142: 84.45928901 | W142: 59.63208743 | X142: ok
A143: Free market taxis on the road as a proportion of maximum | J143: =J120/J126*100 -> 116.3253711 | K143: =K120/K126*100 -> 114.7405467 | L143: =L120/L126*100 -> 116.5822664 | M143: 118.5319324 | N143: 123.2755973 | O143: 89.26387221 | P143: 81.20425006 | Q143: 95.39588345 | R143: 113.8421782 | S143: 123.6261636 | T143: 134.8206287 | U143: 153.8627766 | V143: 155.2471805 | W143: 78.46327293 | X143: ok
A144: Average surplus accruing to shift (adjusted for distribution) | J144: =J141*J145+_xlfn.NORM.DIST(-1*(J143-100)/'Inputs and assumptions'!$C$59,0,1,FALSE)*'Inputs and assumptions'!$C$59/$C$145 -> 36.46116643 | K144: =K141*K145+_xlfn.NORM.DIST(-1*(K143-100)/'Inputs and assumptions'!$C$59,0,1,FALSE)*'Inputs and assumptions'!$C$59/$C$145 -> 34.34324948 | L144: =L141*L145+_xlfn.NORM.DIST(-1*(L143-100)/'Inputs and assumptions'!$C$59,0,1,FALSE)*'Inputs and assumptions'!$C$59/$C$145 -> 37.03863355 | M144: =M141*M145+_xlfn.NORM.DIST(-1*(M143-100)/'Inputs and assumptions'!$C$59,0,1,FALSE)*'Inputs and assumptions'!$C$59/$C$145 -> 40.4313673 | N144: =N141*N145+_xlfn.NORM.DIST(-1*(N143-100)/'Inputs and assumptions'!$C$59,0,1,FALSE)*'Inputs and assumptions'!$C$59/$C$145 -> 47.28206955 | O144: =O141*O145+_xlfn.NORM.DIST(-1*(O143-100)/'Inputs and assumptions'!$C$59,0,1,FALSE)*'Inputs and assumptions'!$C$59/$C$145 -> 15.95080653 | P144: =P141*P145+_xlfn.NORM.DIST(-1*(P143-100)/'Inputs and assumptions'!$C$59,0,1,FALSE)*'Inputs and assumptions'!$C$59/$C$145 -> 13.19485324 | Q144: =Q141*Q145+_xlfn.NORM.DIST(-1*(Q143-100)/'Inputs and assumptions'!$C$59,0,1,FALSE)*'Inputs and assumptions'!$C$59/$C$145 -> 17.19251477 | R144: =R141*R145+_xlfn.NORM.DIST(-1*(R143-100)/'Inputs and assumptions'!$C$59,0,1,FALSE)*'Inputs and assumptions'!$C$59/$C$145 -> 33.57692812 | S144: =S141*S145+_xlfn.NORM.DIST(-1*(S143-100)/'Inputs and assumptions'!$C$59,0,1,FALSE)*'Inputs and assumptions'!$C$59/$C$145 -> 49.32627296 | T144: =T141*T145+_xlfn.NORM.DIST(-1*(T143-100)/'Inputs and assumptions'!$C$59,0,1,FALSE)*'Inputs and assumptions'!$C$59/$C$145 -> 71.51412216 | U144: =U141*U145+_xlfn.NORM.DIST(-1*(U143-100)/'Inputs and assumptions'!$C$59,0,1,FALSE)*'Inputs and assumptions'!$C$59/$C$145 -> 123.438068 | V144: =V141*V145+_xlfn.NORM.DIST(-1*(V143-100)/'Inputs and assumptions'!$C$59,0,1,FALSE)*'Inputs and assumptions'!$C$59/$C$145 -> 124.1719094 | W144: =W141*W145+_xlfn.NORM.DIST(-1*(W143-100)/'Inputs and assumptions'!$C$59,0,1,FALSE)*'Inputs and assumptions'!$C$59/$C$145 -> 12.08210733 | X144: can't check
A145: Percentage of shifts where surplus accrues | C145: =STDEV(J143:W143)/STDEV(J141:W141) -> 0.5714894073 | J145: =(1-_xlfn.NORM.DIST(-1*(J143-100)/'Inputs and assumptions'!$C$59,0,1,TRUE)) -> 0.7427225622 | K145: =(1-_xlfn.NORM.DIST(-1*(K143-100)/'Inputs and assumptions'!$C$59,0,1,TRUE)) -> 0.7218984209 | L145: =(1-_xlfn.NORM.DIST(-1*(L143-100)/'Inputs and assumptions'!$C$59,0,1,TRUE)) -> 0.7460201088 | M145: =(1-_xlfn.NORM.DIST(-1*(M143-100)/'Inputs and assumptions'!$C$59,0,1,TRUE)) -> 0.7703059604 | N145: =(1-_xlfn.NORM.DIST(-1*(N143-100)/'Inputs and assumptions'!$C$59,0,1,TRUE)) -> 0.8236169464 | O145: =(1-_xlfn.NORM.DIST(-1*(O143-100)/'Inputs and assumptions'!$C$59,0,1,TRUE)) -> 0.3340995163 | P145: =(1-_xlfn.NORM.DIST(-1*(P143-100)/'Inputs and assumptions'!$C$59,0,1,TRUE)) -> 0.2265107412 | Q145: =(1-_xlfn.NORM.DIST(-1*(Q143-100)/'Inputs and assumptions'!$C$59,0,1,TRUE)) -> 0.4270807597 | R145: =(1-_xlfn.NORM.DIST(-1*(R143-100)/'Inputs and assumptions'!$C$59,0,1,TRUE)) -> 0.7097397682 | S145: =(1-_xlfn.NORM.DIST(-1*(S143-100)/'Inputs and assumptions'!$C$59,0,1,TRUE)) -> 0.8272191494 | T145: =(1-_xlfn.NORM.DIST(-1*(T143-100)/'Inputs and assumptions'!$C$59,0,1,TRUE)) -> 0.9177587011 | U145: =(1-_xlfn.NORM.DIST(-1*(U143-100)/'Inputs and assumptions'!$C$59,0,1,TRUE)) -> 0.9842372858 | V145: =(1-_xlfn.NORM.DIST(-1*(V143-100)/'Inputs and assumptions'!$C$59,0,1,TRUE)) -> 0.9862956236 | W145: =(1-_xlfn.NORM.DIST(-1*(W143-100)/'Inputs and assumptions'!$C$59,0,1,TRUE)) -> 0.1949452424 | X145: can't check
A146: Surplus (basic) | C146: $/taxi | J146: =SUMPRODUCT(J142:W142,J141:W141)*365/7/100 -> 24601.5424
A147: Surplus accounting for shift variation | C147: $/taxi | J147: =SUMPRODUCT(J142:W142,J144:W144)*365/7/100 -> 28323.94682
A148: Occupancy rate of taxis (time) | J148: =J130*J18/J132 -> 0.2708526995 | K148: =K130*K18/K132 -> 0.2674247993 | L148: 0.2727502499 | M148: 0.2805591045 | N148: 0.2900607325 | O148: 0.2485712029 | P148: 0.2445939184 | Q148: 0.2365385669 | R148: 0.2737881016 | S148: 0.3019597228 | T148: 0.3370709208 | U148: 0.4289833158 | V148: 0.415627726 | W148: 0.2552517022 | X148: ok - see check in previous version
A149: Revenue per taxi (including GST) | C149: =(U149-(U150*1.99)*'Inputs and assumptions'!C27)/10/60 -> 0.668482147 | J149: =J139*$B$20 -> 267.4212239 | K149: =K139*$B$20 -> 264.0367523 | L149: 269.2947339 | M149: 277.0046569 | N149: 286.3859073 | O149: 245.4220151 | P149: 241.4951194 | Q149: 237.6369348 | R149: 275.0594378 | S149: 303.3618741 | T149: 338.636111 | U149: 438.4021448 | V149: 434.3474806 | W149: 256.4369646 | X149: ok - GST no longer hard-coded
A150: Occupied kms per shift | J150: =J139/J13 -> 86.67286384 | K150: =K139/K13 -> 85.57593577 | L150: 87.28007997 | M150: 89.77891344 | N150: 92.8194344 | O150: 79.54278493 | P150: 78.27005389 | Q150: 75.69234142 | R150: 87.61219251 | S150: 96.62711131 | T150: 107.8626946 | U150: 137.2746611 | V150: 133.0008723 | W150: 81.68054471 | X150: ok - formula simplified
A152: MODEL VALIDATION
A154: Model validation | M154: Source/Notes
B155: Model | C155: Data | J155: Difference (per cent)
A156: Average occupancy | B156: =SUMPRODUCT(J148:W148,J142:W142)/SUM(J142:W142) -> 0.2984975214 | C156: 0.3 | J156: =B156/C156*100-100 -> -0.5008261971
A157: Kilometres per year | B157: ='Inputs and assumptions'!C53*B158 -> 108952.7 | C157: 107000 | J157: =B157/C157*100-100 -> 1.824953224 | M157: Average kilometres from CIE 2012 survey
A158: Occupied kilometres per taxi per year | B158: =SUMPRODUCT(J150:W150,J142:W142)/100*365/7 -> 54625.39541 | C158: NA
A159: Average revenue per taxi per year (excluding GST) | B159: =B160+B161 -> 159395.0213 | C159: =152556*(1+'Inputs and assumptions'!C31) -> 158200.572 | J159: =B159/C159*100-100 -> 0.7550221409 | M159: Average revenue from CIE 2012 survey, escalated by IPART 2012 price increase.
A160: Average cost per taxi per year (excluding plate lease costs) | B160: =SUMPRODUCT(J140:W140,J142:W142)/100*365/7 -> 131071.0745 | C160: =(C159)-C161 -> 130045.572 | J160: =B160/C160*100-100 -> 0.7885716594 | M160: From CIE survey, escalated by IPART 2012 price increase.
A161: Plate lease costs | B161: =J147 -> 28323.94682 | C161: 28155 | J161: =B161/C161*100-100 -> 0.6000597423
A162: ="Peak plate lease costs driving "&'Inputs and assumptions'!C64*100&"% of peak days" -> Peak plate lease costs driving 90% of peak days | B162: =(SUM($Q$144:$W$144)+'Inputs and assumptions'!$C$63*SUM('Base model'!$Q$139:$W$139))*365/7*'Inputs and assumptions'!$C$64-('Inputs and assumptions'!$C$30*(1-'Inputs and assumptions'!$C$64*365/'Inputs and assumptions'!$C$46)) -> 21398.96244 | C162: =26786.36/34651.92*C161 -> 21764.161 | J162: =B162/C162*100-100 -> -1.677981338
B164: =200000/B159-1 -> 0.2547443346
P203: 0 | Q203: 0 | R203: 0 | S203: 0 | T203: 0 | U203: 0 | V203: 0 | W203: 0 | X203: 0 | Y203: 0 | Z203: 0 | AA203: 0 | AB203: 0 | AC203: 0
P204: 0 | Q204: 0 | R204: 0 | S204: 0 | T204: 0 | U204: 0 | V204: 0 | W204: 0 | X204: 0 | Y204: 0 | Z204: 0 | AA204: 0 | AB204: 0 | AC204: 0
P205: 0 | Q205: 0 | R205: 0 | S205: 0 | T205: 0 | U205: 0 | V205: 0 | W205: 0 | X205: 0 | Y205: 0 | Z205: 0 | AA205: 0 | AB205: 0 | AC205: 0
P206: 0 | Q206: 0 | R206: 0 | S206: 0 | T206: 0 | U206: 0 | V206: 0 | W206: 0 | X206: 0 | Y206: 0 | Z206: 0 | AA206: 0 | AB206: 0 | AC206: 0
P207: 0 | Q207: 0 | R207: 0 | S207: 0 | T207: 0 | U207: 0 | V207: 0 | W207: 0 | X207: 0 | Y207: 0 | Z207: 0 | AA207: 0 | AB207: 0 | AC207: 0
P208: 0 | Q208: 0 | R208: 0 | S208: 0 | T208: 0 | U208: 0 | V208: 0 | W208: 0 | X208: 0 | Y208: 0 | Z208: 0 | AA208: 0 | AB208: 0 | AC208: 0
